Workbook

Sheet Main
B10: 2023-09-04
B12: Sheet No. | C12: Template Name | D12: Summary
B13: 1 | C13: Future Intra | D13: For Intraday trading in F&O segment
B14: 2 | C14: Cash Intra | D14: For Intraday trading in cash market segment
B15: 3 | C15: Mid-cap Intra | D15: For Intraday trading in Mid-cap stocks
B16: 4 | C16: Bulk Deals | D16: Reveals Bulk Deals carried on NSE & BSE
B17: 5 | C17: Call Tracker
K27: `

Sheet Future Intra
M5: Back to Main Page
A6: FOR INTRA DAY TRADING | L6: =Main!B10 -> 2023-09-04
A9: Sr.no | B9: Sector | C9: Scrip | D9: Expiry Date | E9: CLOSE RATE | F9: Pivot Point | G9: Supports | J9: Resistances
E10: Point | F10: Point | G10: S1 | H10: S2 | I10: S3 | J10: R1 | K10: R2 | L10: R3 | M10: HIGH | N10: LOW | O10: OI | P10: % Change in OI
A11: 1 | B11: Index | C11: NIFTY | D11: 2023-09-28 | E11: 19512.10 | F11: 19472.68 | G11: 19416.42 | H11: 19320.73 | I11: 19264.47 | J11: 19568.37 | K11: 19624.63 | L11: 19720.32 | M11: 19528.95 | N11: 19377 | O11: 10222400 | P11: -4%
A12: 2 | B12: Index | C12: BANKNIFTY | D12: 2023-09-28 | E12: 44601.50 | F12: 44469.55 | G12: 44192.95 | H12: 43784.40 | I12: 43507.80 | J12: 44878.10 | K12: 45154.70 | L12: 45563.25 | M12: 44746.15 | N12: 44061 | O12: 2333235 | P12: -7%
A13: 3 | B13: Index | C13: FINNIFTY | D13: 2023-09-26 | E13: 19868.95 | F13: 19816.97 | G13: 19722.38 | H13: 19575.82 | I13: 19481.23 | J13: 19963.53 | K13: 20058.12 | L13: 20204.68 | M13: 19911.55 | N13: 19670.4 | O13: 52120 | P13: 4%
A14: 4 | B14: Index | C14: MIDCPNIFTY | D14: 2023-09-25 | E14: 8941.05 | F14: 8917.72 | G14: 8883.23 | H14: 8825.42 | I14: 8790.93 | J14: 8975.53 | K14: 9010.02 | L14: 9067.83 | M14: 8952.2 | N14: 8859.9 | O14: 97875 | P14: 18%
A15: 5 | B15: Chemical | C15: AARTIIND | D15: 2023-09-28 | E15: 494.55 | F15: 496.40 | G15: 490.95 | H15: 487.35 | I15: 481.90 | J15: 500.00 | K15: 505.45 | L15: 509.05 | M15: 501.85 | N15: 492.8 | O15: 11101000 | P15: 3%
A16: 6 | B16: Capital_Goods | C16: ABB | D16: 2023-09-28 | E16: 4307.50 | F16: 4339.23 | G16: 4258.47 | H16: 4209.43 | I16: 4128.67 | J16: 4388.27 | K16: 4469.03 | L16: 4518.07 | M16: 4420 | N16: 4290.2 | O16: 1290250 | P16: 1%
A17: 7 | B17: Pharma | C17: ABBOTINDIA | D17: 2023-09-28 | E17: 22837.70 | F17: 22926.67 | G17: 22547.03 | H17: 22256.37 | I17: 21876.73 | J17: 23217.33 | K17: 23596.97 | L17: 23887.63 | M17: 23306.3 | N17: 22636 | O17: 67200 | P17: 5%
A18: 8 | B18: Others | C18: ABCAPITAL | D18: 2023-09-28 | E18: 185.30 | F18: 184.47 | G18: 182.73 | H18: 180.17 | I18: 178.43 | J18: 187.03 | K18: 188.77 | L18: 191.33 | M18: 186.2 | N18: 181.9 | O18: 35953200 | P18: 2%
A19: 9 | B19: Textile | C19: ABFRL | D19: 2023-09-28 | E19: 219.70 | F19: 219.83 | G19: 218.12 | H19: 216.53 | I19: 214.82 | J19: 221.42 | K19: 223.13 | L19: 224.72 | M19: 221.55 | N19: 218.25 | O19: 25537200 | P19: 8%
A20: 10 | B20: Cement | C20: ACC | D20: 2023-09-28 | E20: 2020.75 | F20: 2023.22 | G20: 1995.93 | H20: 1971.12 | I20: 1943.83 | J20: 2048.03 | K20: 2075.32 | L20: 2100.13 | M20: 2050.5 | N20: 1998.4 | O20: 6230100 | P20: -1%
A21: 11 | B21: Others | C21: ADANIENT | D21: 2023-09-28 | E21: 2459.00 | F21: 2443.22 | G21: 2409.48 | H21: 2359.97 | I21: 2326.23 | J21: 2492.73 | K21: 2526.47 | L21: 2575.98 | M21: 2476.95 | N21: 2393.7 | O21: 10986900 | P21: -1%
A22: 12 | B22: Others | C22: ADANIPORTS | D22: 2023-09-28 | E22: 804.85 | F22: 801.05 | G22: 788.10 | H22: 771.35 | I22: 758.40 | J22: 817.80 | K22: 830.75 | L22: 847.50 | M22: 814 | N22: 784.3 | O22: 41701600 | P22: 2%
A23: 13 | B23: Pharma | C23: ALKEM | D23: 2023-09-28 | E23: 3640.25 | F23: 3647.52 | G23: 3618.28 | H23: 3596.32 | I23: 3567.08 | J23: 3669.48 | K23: 3698.72 | L23: 3720.68 | M23: 3676.75 | N23: 3625.55 | O23: 666000 | P23: 1%
A24: 14 | B24: Cement | C24: AMBUJACEM | D24: 2023-09-28 | E24: 437.00 | F24: 435.10 | G24: 429.85 | H24: 422.70 | I24: 417.45 | J24: 442.25 | K24: 447.50 | L24: 454.65 | M24: 440.35 | N24: 427.95 | O24: 68013000 | P24: 1%
A25: 15 | B25: Others | C25: APOLLOHOSP | D25: 2023-09-28 | E25: 4859.90 | F25: 4854.30 | G25: 4830.60 | H25: 4801.30 | I25: 4777.60 | J25: 4883.60 | K25: 4907.30 | L25: 4936.60 | M25: 4878 | N25: 4825 | O25: 2244250 | P25: -0%
A26: 16 | B26: Automobile | C26: APOLLOTYRE | D26: 2023-09-28 | E26: 387.30 | F26: 388.70 | G26: 385.05 | H26: 382.80 | I26: 379.15 | J26: 390.95 | K26: 394.60 | L26: 396.85 | M26: 392.35 | N26: 386.45 | O26: 9365300 | P26: 5%
A27: 17 | B27: Automobile | C27: ASHOKLEY | D27: 2023-09-28 | E27: 185.45 | F27: 184.38 | G27: 182.07 | H27: 178.68 | I27: 176.37 | J27: 187.77 | K27: 190.08 | L27: 193.47 | M27: 186.7 | N27: 181 | O27: 83835000 | P27: 1%
A28: 18 | B28: FMCG | C28: ASIANPAINT | D28: 2023-09-28 | E28: 3267.85 | F28: 3256.65 | G28: 3241.30 | H28: 3214.75 | I28: 3199.40 | J28: 3283.20 | K28: 3298.55 | L28: 3325.10 | M28: 3272 | N28: 3230.1 | O28: 4165600 | P28: 0%
A29: 19 | B29: Others | C29: ASTRAL | D29: 2023-09-28 | E29: 1918.80 | F29: 1921.40 | G29: 1899.45 | H29: 1880.10 | I29: 1858.15 | J29: 1940.75 | K29: 1962.70 | L29: 1982.05 | M29: 1943.35 | N29: 1902.05 | O29: 3995162 | P29: 3%
A30: 20 | B30: Others | C30: ATUL | D30: 2023-09-28 | E30: 7387.65 | F30: 7363.83 | G30: 7327.67 | H30: 7267.68 | I30: 7231.52 | J30: 7423.82 | K30: 7459.98 | L30: 7519.97 | M30: 7400 | N30: 7303.85 | O30: 347475 | P30: -2%
A31: 21 | B31: Banking | C31: AUBANK | D31: 2023-09-28 | E31: 723.00 | F31: 723.38 | G31: 715.32 | H31: 707.63 | I31: 699.57 | J31: 731.07 | K31: 739.13 | L31: 746.82 | M31: 731.45 | N31: 715.7 | O31: 14981000 | P31: 2%
A32: 22 | B32: Pharma | C32: AUROPHARMA | D32: 2023-09-28 | E32: 828.35 | F32: 831.95 | G32: 821.90 | H32: 815.45 | I32: 805.40 | J32: 838.40 | K32: 848.45 | L32: 854.90 | M32: 842 | N32: 825.5 | O32: 13323200 | P32: -5%
A33: 23 | B33: Banking | C33: AXISBANK | D33: 2023-09-28 | E33: 993.30 | F33: 988.22 | G33: 979.58 | H33: 965.87 | I33: 957.23 | J33: 1001.93 | K33: 1010.57 | L33: 1024.28 | M33: 996.85 | N33: 974.5 | O33: 39279375 | P33: -3%
A34: 24 | B34: Automobile | C34: BAJAJ-AUTO | D34: 2023-09-28 | E34: 4702.45 | F34: 4693.80 | G34: 4662.00 | H34: 4621.55 | I34: 4589.75 | J34: 4734.25 | K34: 4766.05 | L34: 4806.50 | M34: 4725.6 | N34: 4653.35 | O34: 2371750 | P34: 3%
A35: 25 | B35: Finance | C35: BAJAJFINSV | D35: 2023-09-28 | E35: 1525.30 | F35: 1516.15 | G35: 1503.35 | H35: 1481.40 | I35: 1468.60 | J35: 1538.10 | K35: 1550.90 | L35: 1572.85 | M35: 1528.95 | N35: 1494.2 | O35: 9605000 | P35: -3%
A36: 26 | B36: Finance | C36: BAJFINANCE | D36: 2023-09-28 | E36: 7341.15 | F36: 7292.37 | G36: 7234.78 | H36: 7128.42 | I36: 7070.83 | J36: 7398.73 | K36: 7456.32 | L36: 7562.68 | M36: 7349.95 | N36: 7186 | O36: 4350250 | P36: -3%
A37: 27 | B37: Automobile | C37: BALKRISIND | D37: 2023-09-28 | E37: 2374.30 | F37: 2366.93 | G37: 2352.87 | H37: 2331.43 | I37: 2317.37 | J37: 2388.37 | K37: 2402.43 | L37: 2423.87 | M37: 2381 | N37: 2345.5 | O37: 1761300 | P37: -1%
A38: 28 | B38: Others | C38: BALRAMCHIN | D38: 2023-09-28 | E38: 398.30 | F38: 397.88 | G38: 392.77 | H38: 387.23 | I38: 382.12 | J38: 403.42 | K38: 408.53 | L38: 414.07 | M38: 403 | N38: 392.35 | O38: 12987200 | P38: 7%
A39: 29 | B39: Banking | C39: BANDHANBNK | D39: 2023-09-28 | E39: 236.70 | F39: 235.18 | G39: 232.17 | H39: 227.63 | I39: 224.62 | J39: 239.72 | K39: 242.73 | L39: 247.27 | M39: 238.2 | N39: 230.65 | O39: 77822500 | P39: -2%
A40: 30 | B40: Banking | C40: BANKBARODA | D40: 2023-09-28 | E40: 191.85 | F40: 190.85 | G40: 188.55 | H40: 185.25 | I40: 182.95 | J40: 194.15 | K40: 196.45 | L40: 199.75 | M40: 193.15 | N40: 187.55 | O40: 122159700 | P40: 1%
A41: 31 | B41: FMCG | C41: BATAINDIA | D41: 2023-09-28 | E41: 1692.25 | F41: 1685.90 | G41: 1677.20 | H41: 1662.15 | I41: 1653.45 | J41: 1700.95 | K41: 1709.65 | L41: 1724.70 | M41: 1694.6 | N41: 1670.85 | O41: 1454625 | P41: -1%
A42: 32 | B42: Capital_Goods | C42: BEL | D42: 2023-09-28 | E42: 138.40 | F42: 137.32 | G42: 135.63 | H42: 132.87 | I42: 131.18 | J42: 140.08 | K42: 141.77 | L42: 144.53 | M42: 139 | N42: 134.55 | O42: 74658600 | P42: 0%
A43: 33 | B43: FMCG | C43: BERGEPAINT | D43: 2023-09-28 | E43: 711.10 | F43: 709.83 | G43: 705.87 | H43: 700.63 | I43: 696.67 | J43: 715.07 | K43: 719.03 | L43: 724.27 | M43: 713.8 | N43: 704.6 | O43: 7799000 | P43: 4%
A44: 34 | B44: Automobile | C44: BHARATFORG | D44: 2023-09-28 | E44: 1085.45 | F44: 1078.57 | G44: 1069.13 | H44: 1052.82 | I44: 1043.38 | J44: 1094.88 | K44: 1104.32 | L44: 1120.63 | M44: 1088 | N44: 1062.25 | O44: 8893000 | P44: -3%
A45: 35 | B45: Telecom | C45: BHARTIARTL | D45: 2023-09-28 | E45: 867.70 | F45: 864.60 | G45: 859.50 | H45: 851.30 | I45: 846.20 | J45: 872.80 | K45: 877.90 | L45: 886.10 | M45: 869.7 | N45: 856.4 | O45: 41654650 | P45: -1%
A46: 36 | B46: Capital_Goods | C46: BHEL | D46: 2023-09-28 | E46: 136.95 | F46: 132.30 | G46: 126.75 | H46: 116.55 | I46: 111.00 | J46: 142.50 | K46: 148.05 | L46: 158.25 | M46: 137.85 | N46: 122.1 | O46: 99718500 | P46: 39%
A47: 37 | B47: Pharma | C47: BIOCON | D47: 2023-09-28 | E47: 262.05 | F47: 262.05 | G47: 259.75 | H47: 257.45 | I47: 255.15 | J47: 264.35 | K47: 266.65 | L47: 268.95 | M47: 264.35 | N47: 259.75 | O47: 27820000 | P47: 1%
A48: 38 | B48: Automobile | C48: BOSCHLTD | D48: 2023-09-28 | E48: 19096.60 | F48: 18946.37 | G48: 18770.73 | H48: 18444.87 | I48: 18269.23 | J48: 19272.23 | K48: 19447.87 | L48: 19773.73 | M48: 19122 | N48: 18620.5 | O48: 125300 | P48: 4%
A49: 39 | B49: Oil_Gas | C49: BPCL | D49: 2023-09-28 | E49: 345.75 | F49: 344.78 | G49: 342.97 | H49: 340.18 | I49: 338.37 | J49: 347.57 | K49: 349.38 | L49: 352.17 | M49: 346.6 | N49: 342 | O49: 27572400 | P49: -0%
A50: 40 | B50: FMCG | C50: BRITANNIA | D50: 2023-09-28 | E50: 4501.85 | F50: 4488.60 | G50: 4468.30 | H50: 4434.75 | I50: 4414.45 | J50: 4522.15 | K50: 4542.45 | L50: 4576.00 | M50: 4508.9 | N50: 4455.05 | O50: 2155200 | P50: -1%
A51: 41 | B51: Technology | C51: BSOFT | D51: 2023-09-28 | E51: 532.10 | F51: 525.62 | G51: 516.73 | H51: 501.37 | I51: 492.48 | J51: 540.98 | K51: 549.87 | L51: 565.23 | M51: 534.5 | N51: 510.25 | O51: 7140000 | P51: 13%
A52: 42 | B52: Banking | C52: CANBK | D52: 2023-09-28 | E52: 330.85 | F52: 328.33 | G52: 324.07 | H52: 317.28 | I52: 313.02 | J52: 335.12 | K52: 339.38 | L52: 346.17 | M52: 332.6 | N52: 321.55 | O52: 57096900 | P52: -2%
A53: 43 | B53: Finance | C53: CANFINHOME | D53: 2023-09-28 | E53: 765.50 | F53: 761.72 | G53: 752.73 | H53: 739.97 | I53: 730.98 | J53: 774.48 | K53: 783.47 | L53: 796.23 | M53: 770.7 | N53: 748.95 | O53: 3716700 | P53: 1%
A54: 44 | B54: Others | C54: CHAMBLFERT | D54: 2023-09-28 | E54: 281.05 | F54: 279.83 | G54: 277.42 | H54: 273.78 | I54: 271.37 | J54: 283.47 | K54: 285.88 | L54: 289.52 | M54: 282.25 | N54: 276.2 | O54: 11863600 | P54: -0%
A55: 45 | B55: Finance | C55: CHOLAFIN | D55: 2023-09-28 | E55: 1133.00 | F55: 1130.68 | G55: 1122.57 | H55: 1112.13 | I55: 1104.02 | J55: 1141.12 | K55: 1149.23 | L55: 1159.67 | M55: 1138.8 | N55: 1120.25 | O55: 13708750 | P55: -1%
A56: 46 | B56: Pharma | C56: CIPLA | D56: 2023-09-28 | E56: 1246.95 | F56: 1253.32 | G56: 1238.63 | H56: 1230.32 | I56: 1215.63 | J56: 1261.63 | K56: 1276.32 | L56: 1284.63 | M56: 1268 | N56: 1245 | O56: 9408750 | P56: 4%
A57: 47 | B57: Others | C57: COALINDIA | D57: 2023-09-28 | E57: 238.60 | F57: 236.70 | G57: 234.50 | H57: 230.40 | I57: 228.20 | J57: 240.80 | K57: 243.00 | L57: 247.10 | M57: 238.9 | N57: 232.6 | O57: 69715800 | P57: 9%
A58: 48 | B58: Technology | C58: COFORGE | D58: 2023-09-28 | E58: 5439.55 | F58: 5442.08 | G58: 5409.47 | H58: 5379.38 | I58: 5346.77 | J58: 5472.17 | K58: 5504.78 | L58: 5534.87 | M58: 5474.7 | N58: 5412 | O58: 1202100 | P58: 2%
A59: 49 | B59: FMCG | C59: COLPAL | D59: 2023-09-28 | E59: 1952.60 | F59: 1946.03 | G59: 1934.57 | H59: 1916.53 | I59: 1905.07 | J59: 1964.07 | K59: 1975.53 | L59: 1993.57 | M59: 1957.5 | N59: 1928 | O59: 2594550 | P59: 1%
A60: 50 | B60: Others | C60: CONCOR | D60: 2023-09-28 | E60: 689.70 | F60: 685.20 | G60: 677.55 | H60: 665.40 | I60: 657.75 | J60: 697.35 | K60: 705.00 | L60: 717.15 | M60: 692.85 | N60: 673.05 | O60: 4737000 | P60: 1%
A61: 51 | B61: Others | C61: COROMANDEL | D61: 2023-09-28 | E61: 1117.90 | F61: 1111.57 | G61: 1099.13 | H61: 1080.37 | I61: 1067.93 | J61: 1130.33 | K61: 1142.77 | L61: 1161.53 | M61: 1124 | N61: 1092.8 | O61: 1693300 | P61: 15%
A62: 52 | B62: Capital_Goods | C62: CROMPTON | D62: 2023-09-28 | E62: 305.15 | F62: 304.22 | G62: 301.93 | H62: 298.72 | I62: 296.43 | J62: 307.43 | K62: 309.72 | L62: 312.93 | M62: 306.5 | N62: 301 | O62: 11606400 | P62: -0%
A63: 53 | B63: Banking | C63: CUB | D63: 2023-09-28 | E63: 126.55 | F63: 125.88 | G63: 124.97 | H63: 123.38 | I63: 122.47 | J63: 127.47 | K63: 128.38 | L63: 129.97 | M63: 126.8 | N63: 124.3 | O63: 39975000 | P63: 2%
A64: 54 | B64: Capital_Goods | C64: CUMMINSIND | D64: 2023-09-28 | E64: 1703.65 | F64: 1693.73 | G64: 1678.37 | H64: 1653.08 | I64: 1637.72 | J64: 1719.02 | K64: 1734.38 | L64: 1759.67 | M64: 1709.1 | N64: 1668.45 | O64: 6378000 | P64: -1%
A65: 55 | B65: FMCG | C65: DABUR | D65: 2023-09-28 | E65: 557.15 | F65: 556.75 | G65: 554.55 | H65: 551.95 | I65: 549.75 | J65: 559.35 | K65: 561.55 | L65: 564.15 | M65: 558.95 | N65: 554.15 | O65: 18143750 | P65: 3%
A66: 56 | B66: Cement | C66: DALBHARAT | D66: 2023-09-28 | E66: 2137.85 | F66: 2122.83 | G66: 2102.12 | H66: 2066.38 | I66: 2045.67 | J66: 2158.57 | K66: 2179.28 | L66: 2215.02 | M66: 2143.55 | N66: 2087.1 | O66: 1516500 | P66: 7%
A67: 57 | B67: Chemical | C67: DEEPAKNTR | D67: 2023-09-28 | E67: 2241.70 | F67: 2236.08 | G67: 2225.72 | H67: 2209.73 | I67: 2199.37 | J67: 2252.07 | K67: 2262.43 | L67: 2278.42 | M67: 2246.45 | N67: 2220.1 | O67: 2733300 | P67: 2%
A68: 58 | B68: Others | C68: DELTACORP | D68: 2023-09-28 | E68: 184.15 | F68: 183.58 | G68: 182.47 | H68: 180.78 | I68: 179.67 | J68: 185.27 | K68: 186.38 | L68: 188.07 | M68: 184.7 | N68: 181.9 | O68: 13406400 | P68: 7%
A69: 59 | B69: Pharma | C69: DIVISLAB | D69: 2023-09-28 | E69: 3612.90 | F69: 3596.97 | G69: 3570.93 | H69: 3528.97 | I69: 3502.93 | J69: 3638.93 | K69: 3664.97 | L69: 3706.93 | M69: 3623 | N69: 3555 | O69: 2415600 | P69: -1%
A70: 60 | B70: Others | C70: DIXON | D70: 2023-09-28 | E70: 5085.70 | F70: 5099.35 | G70: 5001.00 | H70: 4916.30 | I70: 4817.95 | J70: 5184.05 | K70: 5282.40 | L70: 5367.10 | M70: 5197.7 | N70: 5014.65 | O70: 1418200 | P70: 1%
A71: 61 | B71: Realty | C71: DLF | D71: 2023-09-28 | E71: 505.75 | F71: 506.93 | G71: 501.42 | H71: 497.08 | I71: 491.57 | J71: 511.27 | K71: 516.78 | L71: 521.12 | M71: 512.45 | N71: 502.6 | O71: 37512750 | P71: -2%
A72: 62 | B72: Pharma | C72: DRREDDY | D72: 2023-09-28 | E72: 5603.10 | F72: 5611.62 | G72: 5563.28 | H72: 5523.47 | I72: 5475.13 | J72: 5651.43 | K72: 5699.77 | L72: 5739.58 | M72: 5659.95 | N72: 5571.8 | O72: 2898250 | P72: -2%
A73: 63 | B73: Automobile | C73: EICHERMOT | D73: 2023-09-28 | E73: 3420.15 | F73: 3398.35 | G73: 3366.85 | H73: 3313.55 | I73: 3282.05 | J73: 3451.65 | K73: 3483.15 | L73: 3536.45 | M73: 3429.85 | N73: 3345.05 | O73: 3751475 | P73: -3%
A74: 64 | B74: Automobile | C74: ESCORTS | D74: 2023-09-28 | E74: 3156.40 | F74: 3147.78 | G74: 3088.57 | H74: 3020.73 | I74: 2961.52 | J74: 3215.62 | K74: 3274.83 | L74: 3342.67 | M74: 3207 | N74: 3079.95 | O74: 1443200 | P74: 16%
A75: 65 | B75: Automobile | C75: EXIDEIND | D75: 2023-09-28 | E75: 267.65 | F75: 267.80 | G75: 265.45 | H75: 263.25 | I75: 260.90 | J75: 270.00 | K75: 272.35 | L75: 274.55 | M75: 270.15 | N75: 265.6 | O75: 15991200 | P75: 4%
A76: 66 | B76: Banking | C76: FEDERALBNK | D76: 2023-09-28 | E76: 144.45 | F76: 143.95 | G76: 142.40 | H76: 140.35 | I76: 138.80 | J76: 146.00 | K76: 147.55 | L76: 149.60 | M76: 145.5 | N76: 141.9 | O76: 126895000 | P76: -4%
A77: 67 | B77: Oil_Gas | C77: GAIL | D77: 2023-09-28 | E77: 122.25 | F77: 120.55 | G77: 117.95 | H77: 113.65 | I77: 111.05 | J77: 124.85 | K77: 127.45 | L77: 131.75 | M77: 123.15 | N77: 116.25 | O77: 120898950 | P77: 6%
A78: 68 | B78: Pharma | C78: GLENMARK | D78: 2023-09-28 | E78: 759.45 | F78: 761.83 | G78: 749.22 | H78: 738.98 | I78: 726.37 | J78: 772.07 | K78: 784.68 | L78: 794.92 | M78: 774.45 | N78: 751.6 | O78: 5895700 | P78: 2%
A79: 69 | B79: Infrastructure | C79: GMRINFRA | D79: 2023-09-28 | E79: 63.40 | F79: 62.92 | G79: 62.18 | H79: 60.97 | I79: 60.23 | J79: 64.13 | K79: 64.87 | L79: 66.08 | M79: 63.65 | N79: 61.7 | O79: 119745000 | P79: 6%
A80: 70 | B80: Others | C80: GNFC | D80: 2023-09-28 | E80: 628.10 | F80: 624.25 | G80: 619.40 | H80: 610.70 | I80: 605.85 | J80: 632.95 | K80: 637.80 | L80: 646.50 | M80: 629.1 | N80: 615.55 | O80: 7183800 | P80: 9%
A81: 71 | B81: FMCG | C81: GODREJCP | D81: 2023-09-28 | E81: 1010.80 | F81: 1009.70 | G81: 1003.10 | H81: 995.40 | I81: 988.80 | J81: 1017.40 | K81: 1024.00 | L81: 1031.70 | M81: 1016.3 | N81: 1002 | O81: 8258000 | P81: -1%
A82: 72 | B82: Realty | C82: GODREJPROP | D82: 2023-09-28 | E82: 1653.95 | F82: 1655.18 | G82: 1645.37 | H82: 1636.78 | I82: 1626.97 | J82: 1663.77 | K82: 1673.58 | L82: 1682.17 | M82: 1665 | N82: 1646.6 | O82: 3089875 | P82: 0%
A83: 73 | B83: Pharma | C83: GRANULES | D83: 2023-09-28 | E83: 304.45 | F83: 303.52 | G83: 301.38 | H83: 298.32 | I83: 296.18 | J83: 306.58 | K83: 308.72 | L83: 311.78 | M83: 305.65 | N83: 300.45 | O83: 7750000 | P83: -0%
A84: 74 | B84: Cement | C84: GRASIM | D84: 2023-09-28 | E84: 1824.15 | F84: 1818.90 | G84: 1803.85 | H84: 1783.55 | I84: 1768.50 | J84: 1839.20 | K84: 1854.25 | L84: 1874.55 | M84: 1833.95 | N84: 1798.6 | O84: 13819175 | P84: 0%
A85: 75 | B85: Oil_Gas | C85: GUJGASLTD | D85: 2023-09-28 | E85: 454.70 | F85: 455.08 | G85: 446.27 | H85: 437.83 | I85: 429.02 | J85: 463.52 | K85: 472.33 | L85: 480.77 | M85: 463.9 | N85: 446.65 | O85: 8845000 | P85: 6%
A86: 76 | B86: Others | C86: HAL | D86: 2023-09-28 | E86: 3972.00 | F86: 3965.07 | G86: 3931.73 | H86: 3891.47 | I86: 3858.13 | J86: 4005.33 | K86: 4038.67 | L86: 4078.93 | M86: 3998.4 | N86: 3924.8 | O86: 4791300 | P86: -2%
A87: 77 | B87: Capital_Goods | C87: HAVELLS | D87: 2023-09-28 | E87: 1383.15 | F87: 1385.22 | G87: 1373.93 | H87: 1364.72 | I87: 1353.43 | J87: 1394.43 | K87: 1405.72 | L87: 1414.93 | M87: 1396.5 | N87: 1376 | O87: 5389500 | P87: -1%
A88: 78 | B88: Technology | C88: HCLTECH | D88: 2023-09-28 | E88: 1189.90 | F88: 1186.08 | G88: 1180.32 | H88: 1170.73 | I88: 1164.97 | J88: 1195.67 | K88: 1201.43 | L88: 1211.02 | M88: 1191.85 | N88: 1176.5 | O88: 9082500 | P88: -4%
A89: 79 | B89: Finance | C89: HDFCAMC | D89: 2023-09-28 | E89: 2389.95 | F89: 2380.70 | G89: 2359.20 | H89: 2328.45 | I89: 2306.95 | J89: 2411.45 | K89: 2432.95 | L89: 2463.70 | M89: 2402.2 | N89: 2349.95 | O89: 5684700 | P89: 8%
A90: 80 | B90: Banking | C90: HDFCBANK | D90: 2023-09-28 | E90: 1583.95 | F90: 1581.18 | G90: 1573.77 | H90: 1563.58 | I90: 1556.17 | J90: 1591.37 | K90: 1598.78 | L90: 1608.97 | M90: 1588.6 | N90: 1571 | O90: 133679150 | P90: 1%
A91: 81 | B91: Finance | C91: HDFCLIFE | D91: 2023-09-28 | E91: 644.25 | F91: 644.98 | G91: 640.57 | H91: 636.88 | I91: 632.47 | J91: 648.67 | K91: 653.08 | L91: 656.77 | M91: 649.4 | N91: 641.3 | O91: 16678200 | P91: -1%
A92: 82 | B92: Automobile | C92: HEROMOTOCO | D92: 2023-09-28 | E92: 2941.65 | F92: 2936.62 | G92: 2921.28 | H92: 2900.92 | I92: 2885.58 | J92: 2956.98 | K92: 2972.32 | L92: 2992.68 | M92: 2951.95 | N92: 2916.25 | O92: 3956700 | P92: 1%
A93: 83 | B93: Metals | C93: HINDALCO | D93: 2023-09-28 | E93: 476.80 | F93: 474.33 | G93: 466.97 | H93: 457.13 | I93: 449.77 | J93: 484.17 | K93: 491.53 | L93: 501.37 | M93: 481.7 | N93: 464.5 | O93: 25720800 | P93: 4%
A94: 84 | B94: Metals | C94: HINDCOPPER | D94: 2023-09-28 | E94: 167.55 | F94: 164.47 | G94: 160.53 | H94: 153.52 | I94: 149.58 | J94: 171.48 | K94: 175.42 | L94: 182.43 | M94: 168.4 | N94: 157.45 | O94: 34375800 | P94: 11%
A95: 85 | B95: Oil_Gas | C95: HINDPETRO | D95: 2023-09-28 | E95: 251.55 | F95: 250.60 | G95: 248.50 | H95: 245.45 | I95: 243.35 | J95: 253.65 | K95: 255.75 | L95: 258.80 | M95: 252.7 | N95: 247.55 | O95: 46572300 | P95: -0%
A96: 86 | B96: FMCG | C96: HINDUNILVR | D96: 2023-09-28 | E96: 2511.80 | F96: 2514.40 | G96: 2505.80 | H96: 2499.80 | I96: 2491.20 | J96: 2520.40 | K96: 2529.00 | L96: 2535.00 | M96: 2523 | N96: 2508.4 | O96: 8439600 | P96: 0%
A97: 87 | B97: Finance | C97: IBULHSGFIN | D97: 2023-09-28 | E97: 197.25 | F97: 198.72 | G97: 190.43 | H97: 183.62 | I97: 175.33 | J97: 205.53 | K97: 213.82 | L97: 220.63 | M97: 207 | N97: 191.9 | O97: 70329000 | P97: 24%
A98: 88 | B98: Banking | C98: ICICIBANK | D98: 2023-09-28 | E98: 972.05 | F98: 969.10 | G98: 961.45 | H98: 950.85 | I98: 943.20 | J98: 979.70 | K98: 987.35 | L98: 997.95 | M98: 976.75 | N98: 958.5 | O98: 89394200 | P98: -1%
A99: 89 | B99: Finance | C99: ICICIGI | D99: 2023-09-28 | E99: 1349.60 | F99: 1344.87 | G99: 1329.73 | H99: 1309.87 | I99: 1294.73 | J99: 1364.73 | K99: 1379.87 | L99: 1399.73 | M99: 1360 | N99: 1325 | O99: 3128500 | P99: -4%
A100: 90 | B100: Finance | C100: ICICIPRULI | D100: 2023-09-28 | E100: 563.90 | F100: 564.62 | G100: 558.33 | H100: 552.77 | I100: 546.48 | J100: 570.18 | K100: 576.47 | L100: 582.03 | M100: 570.9 | N100: 559.05 | O100: 7924500 | P100: -2%
A101: 91 | B101: Telecom | C101: IDEA | D101: 2023-09-28 | E101: 10.15 | F101: 9.95 | G101: 9.40 | H101: 8.65 | I101: 8.10 | J101: 10.70 | K101: 11.25 | L101: 12.00 | M101: 10.5 | N101: 9.2 | O101: 1032800000 | P101: 22%
A102: 92 | B102: Finance | C102: IDFC | D102: 2023-09-28 | E102: 123.80 | F102: 121.95 | G102: 119.70 | H102: 115.60 | I102: 113.35 | J102: 126.05 | K102: 128.30 | L102: 132.40 | M102: 124.2 | N102: 117.85 | O102: 107850000 | P102: 2%
A103: 93 | B103: Banking | C103: IDFCFIRSTB | D103: 2023-09-28 | E103: 90.70 | F103: 89.50 | G103: 87.75 | H103: 84.80 | I103: 83.05 | J103: 92.45 | K103: 94.20 | L103: 97.15 | M103: 91.25 | N103: 86.55 | O103: 286275000 | P103: -0%
A104: 94 | B104: Others | C104: IEX | D104: 2023-09-28 | E104: 132.70 | F104: 131.07 | G104: 128.73 | H104: 124.77 | I104: 122.43 | J104: 135.03 | K104: 137.37 | L104: 141.33 | M104: 133.4 | N104: 127.1 | O104: 51438750 | P104: 6%
A105: 95 | B105: Oil_Gas | C105: IGL | D105: 2023-09-28 | E105: 468.25 | F105: 469.33 | G105: 464.97 | H105: 461.68 | I105: 457.32 | J105: 472.62 | K105: 476.98 | L105: 480.27 | M105: 473.7 | N105: 466.05 | O105: 10012750 | P105: 2%
A106: 96 | B106: Infrastructure | C106: INDHOTEL | D106: 2023-09-28 | E106: 426.90 | F106: 425.02 | G106: 420.68 | H106: 414.47 | I106: 410.13 | J106: 431.23 | K106: 435.57 | L106: 441.78 | M106: 429.35 | N106: 418.8 | O106: 19298000 | P106: -1%
A107: 97 | B107: Cement | C107: INDIACEM | D107: 2023-09-28 | E107: 262.95 | F107: 253.43 | G107: 241.72 | H107: 220.48 | I107: 208.77 | J107: 274.67 | K107: 286.38 | L107: 307.62 | M107: 265.15 | N107: 232.2 | O107: 23646600 | P107: 28%
A108: 98 | B108: Others | C108: INDIAMART | D108: 2023-09-28 | E108: 3127.70 | F108: 3114.52 | G108: 3091.03 | H108: 3054.37 | I108: 3030.88 | J108: 3151.18 | K108: 3174.67 | L108: 3211.33 | M108: 3138 | N108: 3077.85 | O108: 661500 | P108: 2%
A109: 99 | B109: Others | C109: INDIGO | D109: 2023-09-28 | E109: 2448.30 | F109: 2438.28 | G109: 2421.62 | H109: 2394.93 | I109: 2378.27 | J109: 2464.97 | K109: 2481.63 | L109: 2508.32 | M109: 2454.95 | N109: 2411.6 | O109: 6854100 | P109: 1%
A110: 100 | B110: Banking | C110: INDUSINDBK | D110: 2023-09-28 | E110: 1422.05 | F110: 1411.10 | G110: 1392.95 | H110: 1363.85 | I110: 1345.70 | J110: 1440.20 | K110: 1458.35 | L110: 1487.45 | M110: 1429.25 | N110: 1382 | O110: 20094000 | P110: -2%
A111: 101 | B111: Telecom | C111: INDUSTOWER | D111: 2023-09-28 | E111: 182.90 | F111: 181.20 | G111: 177.10 | H111: 171.30 | I111: 167.20 | J111: 187.00 | K111: 191.10 | L111: 196.90 | M111: 185.3 | N111: 175.4 | O111: 86727200 | P111: 2%
A112: 102 | B112: Technology | C112: INFY | D112: 2023-09-28 | E112: 1448.90 | F112: 1445.05 | G112: 1438.75 | H112: 1428.60 | I112: 1422.30 | J112: 1455.20 | K112: 1461.50 | L112: 1471.65 | M112: 1451.35 | N112: 1434.9 | O112: 24958800 | P112: -2%
A113: 103 | B113: Oil_Gas | C113: IOC | D113: 2023-09-28 | E113: 89.70 | F113: 89.83 | G113: 89.07 | H113: 88.43 | I113: 87.67 | J113: 90.47 | K113: 91.23 | L113: 91.87 | M113: 90.6 | N113: 89.2 | O113: 104929500 | P113: -0%
A114: 104 | B114: Pharma | C114: IPCALAB | D114: 2023-09-28 | E114: 871.30 | F114: 869.97 | G114: 864.53 | H114: 857.77 | I114: 852.33 | J114: 876.73 | K114: 882.17 | L114: 888.93 | M114: 875.4 | N114: 863.2 | O114: 1507350 | P114: -3%
A115: 105 | B115: Others | C115: IRCTC | D115: 2023-09-28 | E115: 692.85 | F115: 687.77 | G115: 680.78 | H115: 668.72 | I115: 661.73 | J115: 699.83 | K115: 706.82 | L115: 718.88 | M115: 694.75 | N115: 675.7 | O115: 13032250 | P115: 3%
A116: 106 | B116: FMCG | C116: ITC | D116: 2023-09-28 | E116: 443.10 | F116: 443.28 | G116: 440.17 | H116: 437.23 | I116: 434.12 | J116: 446.22 | K116: 449.33 | L116: 452.27 | M116: 446.4 | N116: 440.35 | O116: 65619200 | P116: -2%
A117: 107 | B117: Metals | C117: JINDALSTEL | D117: 2023-09-28 | E117: 705.80 | F117: 704.72 | G117: 690.43 | H117: 675.07 | I117: 660.78 | J117: 720.08 | K117: 734.37 | L117: 749.73 | M117: 719 | N117: 689.35 | O117: 25313750 | P117: -1%
A118: 108 | B118: Cement | C118: JKCEMENT | D118: 2023-09-28 | E118: 3364.00 | F118: 3354.67 | G118: 3327.28 | H118: 3290.57 | I118: 3263.18 | J118: 3391.38 | K118: 3418.77 | L118: 3455.48 | M118: 3382.05 | N118: 3317.95 | O118: 522750 | P118: 3%
A119: 109 | B119: Metals | C119: JSWSTEEL | D119: 2023-09-28 | E119: 811.90 | F119: 802.93 | G119: 792.47 | H119: 773.03 | I119: 762.57 | J119: 822.37 | K119: 832.83 | L119: 852.27 | M119: 813.4 | N119: 783.5 | O119: 18725850 | P119: 3%
A120: 110 | B120: Others | C120: JUBLFOOD | D120: 2023-09-28 | E120: 503.20 | F120: 505.37 | G120: 499.18 | H120: 495.17 | I120: 488.98 | J120: 509.38 | K120: 515.57 | L120: 519.58 | M120: 511.55 | N120: 501.35 | O120: 16612500 | P120: -1%
A121: 111 | B121: Banking | C121: KOTAKBANK | D121: 2023-09-28 | E121: 1779.40 | F121: 1776.37 | G121: 1766.23 | H121: 1753.07 | I121: 1742.93 | J121: 1789.53 | K121: 1799.67 | L121: 1812.83 | M121: 1786.5 | N121: 1763.2 | O121: 28774800 | P121: -3%
A122: 112 | B122: Finance | C122: L&TFH | D122: 2023-09-28 | E122: 127.35 | F122: 126.50 | G122: 125.10 | H122: 122.85 | I122: 121.45 | J122: 128.75 | K122: 130.15 | L122: 132.40 | M122: 127.9 | N122: 124.25 | O122: 64654380 | P122: 2%
A123: 113 | B123: Others | C123: LALPATHLAB | D123: 2023-09-28 | E123: 2211.20 | F123: 2198.72 | G123: 2177.58 | H123: 2143.97 | I123: 2122.83 | J123: 2232.33 | K123: 2253.47 | L123: 2287.08 | M123: 2219.85 | N123: 2165.1 | O123: 600600 | P123: -3%
A124: 114 | B124: Pharma | C124: LAURUSLABS | D124: 2023-09-28 | E124: 397.35 | F124: 398.77 | G124: 392.93 | H124: 388.52 | I124: 382.68 | J124: 403.18 | K124: 409.02 | L124: 413.43 | M124: 404.6 | N124: 394.35 | O124: 10378500 | P124: -0%
A125: 115 | B125: Finance | C125: LICHSGFIN | D125: 2023-09-28 | E125: 436.55 | F125: 433.48 | G125: 427.97 | H125: 419.38 | I125: 413.87 | J125: 442.07 | K125: 447.58 | L125: 456.17 | M125: 439 | N125: 424.9 | O125: 20208000 | P125: 8%
A126: 116 | B126: Capital_Goods | C126: LT | D126: 2023-09-28 | E126: 2716.50 | F126: 2713.67 | G126: 2700.33 | H126: 2684.17 | I126: 2670.83 | J126: 2729.83 | K126: 2743.17 | L126: 2759.33 | M126: 2727 | N126: 2697.5 | O126: 6120000 | P126: 6%
A127: 117 | B127: Technology | C127: LTIM | D127: 2023-09-28 | E127: 5324.30 | F127: 5293.85 | G127: 5250.75 | H127: 5177.20 | I127: 5134.10 | J127: 5367.40 | K127: 5410.50 | L127: 5484.05 | M127: 5336.95 | N127: 5220.3 | O127: 1660350 | P127: 1%
A128: 118 | B128: Technology | C128: LTTS | D128: 2023-09-28 | E128: 4481.80 | F128: 4470.18 | G128: 4448.37 | H128: 4414.93 | I128: 4393.12 | J128: 4503.62 | K128: 4525.43 | L128: 4558.87 | M128: 4492 | N128: 4436.75 | O128: 613600 | P128: -2%
A129: 119 | B129: Pharma | C129: LUPIN | D129: 2023-09-28 | E129: 1099.95 | F129: 1099.28 | G129: 1093.37 | H129: 1086.78 | I129: 1080.87 | J129: 1105.87 | K129: 1111.78 | L129: 1118.37 | M129: 1105.2 | N129: 1092.7 | O129: 5683100 | P129: -1%
A130: 120 | B130: Automobile | C130: M&M | D130: 2023-09-28 | E130: 1601.00 | F130: 1599.32 | G130: 1584.58 | H130: 1568.17 | I130: 1553.43 | J130: 1615.73 | K130: 1630.47 | L130: 1646.88 | M130: 1614.05 | N130: 1582.9 | O130: 14570500 | P130: 0%
A131: 121 | B131: Finance | C131: M&MFIN | D131: 2023-09-28 | E131: 294.45 | F131: 293.17 | G131: 290.58 | H131: 286.72 | I131: 284.13 | J131: 297.03 | K131: 299.62 | L131: 303.48 | M131: 295.75 | N131: 289.3 | O131: 39036000 | P131: 4%
A132: 122 | B132: Finance | C132: MANAPPURAM | D132: 2023-09-28 | E132: 153.00 | F132: 153.90 | G132: 150.80 | H132: 148.60 | I132: 145.50 | J132: 156.10 | K132: 159.20 | L132: 161.40 | M132: 157 | N132: 151.7 | O132: 72888000 | P132: 8%
A133: 123 | B133: FMCG | C133: MARICO | D133: 2023-09-28 | E133: 569.60 | F133: 570.37 | G133: 564.73 | H133: 559.87 | I133: 554.23 | J133: 575.23 | K133: 580.87 | L133: 585.73 | M133: 576 | N133: 565.5 | O133: 10837200 | P133: 6%
A134: 124 | B134: Automobile | C134: MARUTI | D134: 2023-09-28 | E134: 10368.65 | F134: 10270.88 | G134: 10118.42 | H134: 9868.18 | I134: 9715.72 | J134: 10521.12 | K134: 10673.58 | L134: 10923.82 | M134: 10423.35 | N134: 10020.65 | O134: 3059100 | P134: 8%
A135: 125 | B135: FMCG | C135: MCDOWELL-N | D135: 2023-09-28 | E135: 1017.55 | F135: 1018.10 | G135: 1010.20 | H135: 1002.85 | I135: 994.95 | J135: 1025.45 | K135: 1033.35 | L135: 1040.70 | M135: 1026 | N135: 1010.75 | O135: 9456300 | P135: -2%
A136: 126 | B136: Others | C136: MCX | D136: 2023-09-28 | E136: 1818.80 | F136: 1776.17 | G136: 1713.63 | H136: 1608.47 | I136: 1545.93 | J136: 1881.33 | K136: 1943.87 | L136: 2049.03 | M136: 1838.7 | N136: 1671 | O136: 3328400 | P136: 10%
A137: 127 | B137: Pharma | C137: METROPOLIS | D137: 2023-09-28 | E137: 1369.00 | F137: 1361.02 | G137: 1347.03 | H137: 1325.07 | I137: 1311.08 | J137: 1382.98 | K137: 1396.97 | L137: 1418.93 | M137: 1375 | N137: 1339.05 | O137: 1611600 | P137: -0%
A138: 128 | B138: Finance | C138: MFSL | D138: 2023-09-28 | E138: 943.80 | F138: 941.48 | G138: 930.82 | H138: 917.83 | I138: 907.17 | J138: 954.47 | K138: 965.13 | L138: 978.12 | M138: 952.15 | N138: 928.5 | O138: 6541600 | P138: 3%
A139: 129 | B139: Oil_Gas | C139: MGL | D139: 2023-09-28 | E139: 1034.25 | F139: 1031.37 | G139: 1022.88 | H139: 1011.52 | I139: 1003.03 | J139: 1042.73 | K139: 1051.22 | L139: 1062.58 | M139: 1039.85 | N139: 1020 | O139: 2395200 | P139: -3%
A140: 130 | B140: Automobile | C140: MOTHERSON | D140: 2023-09-28 | E140: 98.10 | F140: 97.40 | G140: 96.10 | H140: 94.10 | I140: 92.80 | J140: 99.40 | K140: 100.70 | L140: 102.70 | M140: 98.7 | N140: 95.4 | O140: 69104300 | P140: -0%
A141: 131 | B141: Technology | C141: MPHASIS | D141: 2023-09-28 | E141: 2446.80 | F141: 2445.22 | G141: 2428.48 | H141: 2410.17 | I141: 2393.43 | J141: 2463.53 | K141: 2480.27 | L141: 2498.58 | M141: 2461.95 | N141: 2426.9 | O141: 2491225 | P141: 0%
A142: 132 | B142: Automobile | C142: MRF | D142: 2023-09-28 | E142: 108296.65 | F142: 108648.88 | G142: 107597.77 | H142: 106898.88 | I142: 105847.77 | J142: 109347.77 | K142: 110398.88 | L142: 111097.77 | M142: 109700 | N142: 107950 | O142: 34480 | P142: -5%
A143: 133 | B143: Finance | C143: MUTHOOTFIN | D143: 2023-09-28 | E143: 1249.20 | F143: 1247.12 | G143: 1237.48 | H143: 1225.77 | I143: 1216.13 | J143: 1258.83 | K143: 1268.47 | L143: 1280.18 | M143: 1256.75 | N143: 1235.4 | O143: 6421250 | P143: 2%
A144: 134 | B144: Metals | C144: NATIONALUM | D144: 2023-09-28 | E144: 98.10 | F144: 96.87 | G144: 95.33 | H144: 92.57 | I144: 91.03 | J144: 99.63 | K144: 101.17 | L144: 103.93 | M144: 98.4 | N144: 94.1 | O144: 51960000 | P144: 6%
A145: 135 | B145: Others | C145: NAUKRI | D145: 2023-09-28 | E145: 4401.95 | F145: 4389.08 | G145: 4351.42 | H145: 4300.88 | I145: 4263.22 | J145: 4439.62 | K145: 4477.28 | L145: 4527.82 | M145: 4426.75 | N145: 4338.55 | O145: 1581150 | P145: 3%
A146: 136 | B146: Chemical | C146: NAVINFLUOR | D146: 2023-09-28 | E146: 4609.00 | F146: 4589.10 | G146: 4562.20 | H146: 4515.40 | I146: 4488.50 | J146: 4635.90 | K146: 4662.80 | L146: 4709.60 | M146: 4616 | N146: 4542.3 | O146: 693750 | P146: -0%
A147: 137 | B147: FMCG | C147: NESTLEIND | D147: 2023-09-28 | E147: 21968.80 | F147: 22032.83 | G147: 21845.97 | H147: 21723.13 | I147: 21536.27 | J147: 22155.67 | K147: 22342.53 | L147: 22465.37 | M147: 22219.7 | N147: 21910 | O147: 328800 | P147: 3%
A148: 138 | B148: Metals | C148: NMDC | D148: 2023-09-28 | E148: 131.50 | F148: 128.95 | G148: 126.00 | H148: 120.50 | I148: 117.55 | J148: 134.45 | K148: 137.40 | L148: 142.90 | M148: 131.9 | N148: 123.45 | O148: 105853500 | P148: 15%
A149: 139 | B149: Power | C149: NTPC | D149: 2023-09-28 | E149: 232.25 | F149: 227.55 | G149: 222.35 | H149: 212.45 | I149: 207.25 | J149: 237.45 | K149: 242.65 | L149: 252.55 | M149: 232.75 | N149: 217.65 | O149: 67275000 | P149: 11%
A150: 140 | B150: Realty | C150: OBEROIRLTY | D150: 2023-09-28 | E150: 1135.05 | F150: 1134.45 | G150: 1122.80 | H150: 1110.55 | I150: 1098.90 | J150: 1146.70 | K150: 1158.35 | L150: 1170.60 | M150: 1146.1 | N150: 1122.2 | O150: 6626200 | P150: 4%
A151: 141 | B151: Technology | C151: OFSS | D151: 2023-09-28 | E151: 4165.45 | F151: 4160.42 | G151: 4125.03 | H151: 4084.62 | I151: 4049.23 | J151: 4200.83 | K151: 4236.22 | L151: 4276.63 | M151: 4195.8 | N151: 4120 | O151: 247800 | P151: 16%
A152: 142 | B152: Oil_Gas | C152: ONGC | D152: 2023-09-28 | E152: 182.15 | F152: 181.07 | G152: 176.13 | H152: 170.12 | I152: 165.18 | J152: 187.08 | K152: 192.02 | L152: 198.03 | M152: 186 | N152: 175.05 | O152: 40132400 | P152: 17%
A153: 143 | B153: Textile | C153: PAGEIND | D153: 2023-09-28 | E153: 40102.90 | F153: 40202.20 | G153: 39850.85 | H153: 39598.80 | I153: 39247.45 | J153: 40454.25 | K153: 40805.60 | L153: 41057.65 | M153: 40553.55 | N153: 39950.15 | O153: 147855 | P153: -1%
A154: 144 | B154: Pharma | C154: PEL | D154: 2023-09-28 | E154: 1085.60 | F154: 1078.47 | G154: 1062.33 | H154: 1039.07 | I154: 1022.93 | J154: 1101.73 | K154: 1117.87 | L154: 1141.13 | M154: 1094.6 | N154: 1055.2 | O154: 9363000 | P154: -3%
A155: 145 | B155: Technology | C155: PERSISTENT | D155: 2023-09-28 | E155: 5579.15 | F155: 5522.58 | G155: 5431.87 | H155: 5284.58 | I155: 5193.87 | J155: 5669.87 | K155: 5760.58 | L155: 5907.87 | M155: 5613.3 | N155: 5375.3 | O155: 1219750 | P155: 12%
A156: 146 | B156: Oil_Gas | C156: PETRONET | D156: 2023-09-28 | E156: 221.10 | F156: 219.53 | G156: 217.47 | H156: 213.83 | I156: 211.77 | J156: 223.17 | K156: 225.23 | L156: 228.87 | M156: 221.6 | N156: 215.9 | O156: 21021000 | P156: -0%
A157: 147 | B157: Finance | C157: PFC | D157: 2023-09-28 | E157: 259.10 | F157: 258.10 | G157: 252.95 | H157: 246.80 | I157: 241.65 | J157: 264.25 | K157: 269.40 | L157: 275.55 | M157: 263.25 | N157: 251.95 | O157: 65261200 | P157: 3%
A158: 148 | B158: FMCG | C158: PIDILITIND | D158: 2023-09-28 | E158: 2509.75 | F158: 2515.13 | G158: 2492.32 | H158: 2474.88 | I158: 2452.07 | J158: 2532.57 | K158: 2555.38 | L158: 2572.82 | M158: 2537.95 | N158: 2497.7 | O158: 2633250 | P158: 5%
A159: 149 | B159: Chemical | C159: PIIND | D159: 2023-09-28 | E159: 3648.50 | F159: 3645.88 | G159: 3617.22 | H159: 3585.93 | I159: 3557.27 | J159: 3677.17 | K159: 3705.83 | L159: 3737.12 | M159: 3674.55 | N159: 3614.6 | O159: 2365250 | P159: 2%
A160: 150 | B160: Banking | C160: PNB | D160: 2023-09-28 | E160: 65.90 | F160: 65.13 | G160: 63.57 | H160: 61.23 | I160: 59.67 | J160: 67.47 | K160: 69.03 | L160: 71.37 | M160: 66.7 | N160: 62.8 | O160: 309104000 | P160: 12%
A161: 151 | B161: Others | C161: POLYCAB | D161: 2023-09-28 | E161: 5224.20 | F161: 5194.08 | G161: 5150.17 | H161: 5076.13 | I161: 5032.22 | J161: 5268.12 | K161: 5312.03 | L161: 5386.07 | M161: 5238 | N161: 5120.05 | O161: 1787100 | P161: -0%
A162: 152 | B162: Power | C162: POWERGRID | D162: 2023-09-28 | E162: 253.65 | F162: 251.33 | G162: 248.42 | H162: 243.18 | I162: 240.27 | J162: 256.57 | K162: 259.48 | L162: 264.72 | M162: 254.25 | N162: 246.1 | O162: 40815900 | P162: -1%
A163: 153 | B163: Media | C163: PVRINOX | D163: 2023-09-28 | E163: 1792.05 | F163: 1793.30 | G163: 1779.80 | H163: 1767.55 | I163: 1754.05 | J163: 1805.55 | K163: 1819.05 | L163: 1831.30 | M163: 1806.8 | N163: 1781.05 | O163: 4372401 | P163: 6%
A164: 154 | B164: Cement | C164: RAMCOCEM | D164: 2023-09-28 | E164: 883.75 | F164: 876.90 | G164: 866.80 | H164: 849.85 | I164: 839.75 | J164: 893.85 | K164: 903.95 | L164: 920.90 | M164: 887 | N164: 859.95 | O164: 3172200 | P164: 2%
A165: 155 | B165: Banking | C165: RBLBANK | D165: 2023-09-28 | E165: 239.90 | F165: 239.83 | G165: 236.47 | H165: 233.03 | I165: 229.67 | J165: 243.27 | K165: 246.63 | L165: 250.07 | M165: 243.2 | N165: 236.4 | O165: 41180000 | P165: 10%
A166: 156 | B166: Power | C166: RECLTD | D166: 2023-09-28 | E166: 240.20 | F166: 237.98 | G166: 234.07 | H166: 227.93 | I166: 224.02 | J166: 244.12 | K166: 248.03 | L166: 254.17 | M166: 241.9 | N166: 231.85 | O166: 57920000 | P166: 6%
A167: 157 | B167: Oil_Gas | C167: RELIANCE | D167: 2023-09-28 | E167: 2428.00 | F167: 2426.13 | G167: 2411.82 | H167: 2395.63 | I167: 2381.32 | J167: 2442.32 | K167: 2456.63 | L167: 2472.82 | M167: 2440.45 | N167: 2409.95 | O167: 42907500 | P167: 0%
A168: 158 | B168: Metals | C168: SAIL | D168: 2023-09-28 | E168: 97.25 | F168: 95.33 | G168: 92.97 | H168: 88.68 | I168: 86.32 | J168: 99.62 | K168: 101.98 | L168: 106.27 | M168: 97.7 | N168: 91.05 | O168: 134224000 | P168: 12%
A169: 159 | B169: Banking | C169: SBICARD | D169: 2023-09-28 | E169: 844.60 | F169: 836.97 | G169: 826.33 | H169: 808.07 | I169: 797.43 | J169: 855.23 | K169: 865.87 | L169: 884.13 | M169: 847.6 | N169: 818.7 | O169: 7359200 | P169: -5%
A170: 160 | B170: Finance | C170: SBILIFE | D170: 2023-09-28 | E170: 1325.45 | F170: 1318.50 | G170: 1304.65 | H170: 1283.85 | I170: 1270.00 | J170: 1339.30 | K170: 1353.15 | L170: 1373.95 | M170: 1332.35 | N170: 1297.7 | O170: 8741250 | P170: -3%
A171: 161 | B171: Banking | C171: SBIN | D171: 2023-09-28 | E171: 571.40 | F171: 569.38 | G171: 565.52 | H171: 559.63 | I171: 555.77 | J171: 575.27 | K171: 579.13 | L171: 585.02 | M171: 573.25 | N171: 563.5 | O171: 96136500 | P171: -5%
A172: 162 | B172: Cement | C172: SHREECEM | D172: 2023-09-28 | E172: 24231.50 | F172: 24143.57 | G172: 23950.83 | H172: 23670.17 | I172: 23477.43 | J172: 24424.23 | K172: 24616.97 | L172: 24897.63 | M172: 24336.3 | N172: 23862.9 | O172: 176225 | P172: -2%
A173: 163 | B173: Capital_Goods | C173: SIEMENS | D173: 2023-09-28 | E173: 3912.30 | F173: 3911.48 | G173: 3871.12 | H173: 3829.93 | I173: 3789.57 | J173: 3952.67 | K173: 3993.03 | L173: 4034.22 | M173: 3951.85 | N173: 3870.3 | O173: 1657425 | P173: 4%
A174: 164 | B174: Textile | C174: SRF | D174: 2023-09-28 | E174: 2394.50 | F174: 2390.33 | G174: 2374.02 | H174: 2353.53 | I174: 2337.22 | J174: 2410.82 | K174: 2427.13 | L174: 2447.62 | M174: 2406.65 | N174: 2369.85 | O174: 3570375 | P174: -2%
A175: 165 | B175: Finance | C175: SHRIRAMFIN | D175: 2023-09-28 | E175: 1926.40 | F175: 1930.25 | G175: 1914.15 | H175: 1901.90 | I175: 1885.80 | J175: 1942.50 | K175: 1958.60 | L175: 1970.85 | M175: 1946.35 | N175: 1918 | O175: 6474000 | P175: -4%
A176: 166 | B176: Pharma | C176: SUNPHARMA | D176: 2023-09-28 | E176: 1112.65 | F176: 1115.48 | G176: 1107.27 | H176: 1101.88 | I176: 1093.67 | J176: 1120.87 | K176: 1129.08 | L176: 1134.47 | M176: 1123.7 | N176: 1110.1 | O176: 22344000 | P176: -2%
A177: 167 | B177: Media | C177: SUNTV | D177: 2023-09-28 | E177: 625.20 | F177: 624.20 | G177: 620.40 | H177: 615.60 | I177: 611.80 | J177: 629.00 | K177: 632.80 | L177: 637.60 | M177: 628 | N177: 619.4 | O177: 8053500 | P177: 2%
A178: 168 | B178: Pharma | C178: SYNGENE | D178: 2023-09-28 | E178: 781.30 | F178: 778.03 | G178: 772.32 | H178: 763.33 | I178: 757.62 | J178: 787.02 | K178: 792.73 | L178: 801.72 | M178: 783.75 | N178: 769.05 | O178: 3958000 | P178: -2%
A179: 169 | B179: Chemical | C179: TATACHEM | D179: 2023-09-28 | E179: 1078.40 | F179: 1075.78 | G179: 1068.77 | H179: 1059.13 | I179: 1052.12 | J179: 1085.42 | K179: 1092.43 | L179: 1102.07 | M179: 1082.8 | N179: 1066.15 | O179: 8049800 | P179: 2%
A180: 170 | B180: Telecom | C180: TATACOMM | D180: 2023-09-28 | E180: 1865.10 | F180: 1855.70 | G180: 1819.40 | H180: 1773.70 | I180: 1737.40 | J180: 1901.40 | K180: 1937.70 | L180: 1983.40 | M180: 1892 | N180: 1810 | O180: 6273500 | P180: 5%
A181: 171 | B181: FMCG | C181: TATACONSUM | D181: 2023-09-28 | E181: 849.80 | F181: 846.22 | G181: 840.93 | H181: 832.07 | I181: 826.78 | J181: 855.08 | K181: 860.37 | L181: 869.23 | M181: 851.5 | N181: 837.35 | O181: 9585900 | P181: -0%
A182: 172 | B182: Automobile | C182: TATAMOTORS | D182: 2023-09-28 | E182: 613.95 | F182: 612.70 | G182: 606.20 | H182: 598.45 | I182: 591.95 | J182: 620.45 | K182: 626.95 | L182: 634.70 | M182: 619.2 | N182: 604.95 | O182: 62939400 | P182: 2%
A183: 173 | B183: Power | C183: TATAPOWER | D183: 2023-09-28 | E183: 257.15 | F183: 254.25 | G183: 250.60 | H183: 244.05 | I183: 240.40 | J183: 260.80 | K183: 264.45 | L183: 271.00 | M183: 257.9 | N183: 247.7 | O183: 99474750 | P183: 7%
A184: 174 | B184: Metals | C184: TATASTEEL | D184: 2023-09-28 | E184: 128.00 | F184: 127.22 | G184: 124.93 | H184: 121.87 | I184: 119.58 | J184: 130.28 | K184: 132.57 | L184: 135.63 | M184: 129.5 | N184: 124.15 | O184: 225406500 | P184: 4%
A185: 175 | B185: Technology | C185: TCS | D185: 2023-09-28 | E185: 3400.10 | F185: 3393.83 | G185: 3383.67 | H185: 3367.23 | I185: 3357.07 | J185: 3410.27 | K185: 3420.43 | L185: 3436.87 | M185: 3404 | N185: 3377.4 | O185: 9751000 | P185: -2%
A186: 176 | B186: Technology | C186: TECHM | D186: 2023-09-28 | E186: 1235.80 | F186: 1228.10 | G186: 1218.70 | H186: 1201.60 | I186: 1192.20 | J186: 1245.20 | K186: 1254.60 | L186: 1271.70 | M186: 1237.5 | N186: 1211 | O186: 12217800 | P186: -2%
A187: 177 | B187: FMCG | C187: TITAN | D187: 2023-09-28 | E187: 3128.10 | F187: 3126.05 | G187: 3114.10 | H187: 3100.10 | I187: 3088.15 | J187: 3140.05 | K187: 3152.00 | L187: 3166.00 | M187: 3138 | N187: 3112.05 | O187: 4795125 | P187: 1%
A188: 178 | B188: Pharma | C188: TORNTPHARM | D188: 2023-09-28 | E188: 1799.45 | F188: 1814.75 | G188: 1768.65 | H188: 1737.85 | I188: 1691.75 | J188: 1845.55 | K188: 1891.65 | L188: 1922.45 | M188: 1860.85 | N188: 1783.95 | O188: 2249500 | P188: 27%
A189: 179 | B189: Others | C189: TRENT | D189: 2023-09-28 | E189: 2068.30 | F189: 2079.83 | G189: 2032.97 | H189: 1997.63 | I189: 1950.77 | J189: 2115.17 | K189: 2162.03 | L189: 2197.37 | M189: 2126.7 | N189: 2044.5 | O189: 3664400 | P189: -3%
A190: 180 | B190: Automobile | C190: TVSMOTOR | D190: 2023-09-28 | E190: 1454.85 | F190: 1445.23 | G190: 1430.47 | H190: 1406.08 | I190: 1391.32 | J190: 1469.62 | K190: 1484.38 | L190: 1508.77 | M190: 1460 | N190: 1420.85 | O190: 7585900 | P190: 1%
A191: 181 | B191: FMCG | C191: UBL | D191: 2023-09-28 | E191: 1552.00 | F191: 1543.27 | G191: 1529.08 | H191: 1506.17 | I191: 1491.98 | J191: 1566.18 | K191: 1580.37 | L191: 1603.28 | M191: 1557.45 | N191: 1520.35 | O191: 2293200 | P191: 3%
A192: 182 | B192: Cement | C192: ULTRACEMCO | D192: 2023-09-28 | E192: 8321.45 | F192: 8335.23 | G192: 8293.77 | H192: 8266.08 | I192: 8224.62 | J192: 8362.92 | K192: 8404.38 | L192: 8432.07 | M192: 8376.7 | N192: 8307.55 | O192: 1301900 | P192: 2%
A193: 183 | B193: Chemical | C193: UPL | D193: 2023-09-28 | E193: 607.40 | F193: 603.72 | G193: 598.68 | H193: 589.97 | I193: 584.93 | J193: 612.43 | K193: 617.47 | L193: 626.18 | M193: 608.75 | N193: 595 | O193: 34721700 | P193: -2%
A194: 184 | B194: Metals | C194: VEDL | D194: 2023-09-28 | E194: 237.70 | F194: 236.33 | G194: 234.17 | H194: 230.63 | I194: 228.47 | J194: 239.87 | K194: 242.03 | L194: 245.57 | M194: 238.5 | N194: 232.8 | O194: 56678000 | P194: -3%
A195: 185 | B195: Capital_Goods | C195: VOLTAS | D195: 2023-09-28 | E195: 875.95 | F195: 877.02 | G195: 871.33 | H195: 866.72 | I195: 861.03 | J195: 881.63 | K195: 887.32 | L195: 891.93 | M195: 882.7 | N195: 872.4 | O195: 6579000 | P195: 4%
A196: 186 | B196: Technology | C196: WIPRO | D196: 2023-09-28 | E196: 419.45 | F196: 416.47 | G196: 412.28 | H196: 405.12 | I196: 400.93 | J196: 423.63 | K196: 427.82 | L196: 434.98 | M196: 420.65 | N196: 409.3 | O196: 35592000 | P196: 3%
A197: 187 | B197: Media | C197: ZEEL | D197: 2023-09-28 | E197: 264.55 | F197: 263.93 | G197: 260.67 | H197: 256.78 | I197: 253.52 | J197: 267.82 | K197: 271.08 | L197: 274.97 | M197: 267.2 | N197: 260.05 | O197: 86919000 | P197: 0%
A198: 188 | B198: Pharma | C198: ZYDUSLIFE | D198: 2023-09-28 | E198: 618.20 | F198: 622.50 | G198: 612.90 | H198: 607.60 | I198: 598.00 | J198: 627.80 | K198: 637.40 | L198: 642.70 | M198: 632.1 | N198: 617.2 | O198: 7326000 | P198: 3%
A199: 189
A200: 190
A201: 191
A202: 192
A203: 193
A204: 194
A221: Pivot Point: This is trigger point for intra day buy/sell based on the price range of the previous day
A222: As per the tool,the trader should take BUY position just above Pivot and keep the stop loss of pivot point and the first target would be Resistance 1(R1)
... 13 more rows

Sheet Cash Intra
M5: Back to Main Page
A6: FOR INTRA DAY TRADING | K6: =Main!B10 -> 2023-09-04
A8: Sr.no | C8: CLOSE RATE | D8: Pivot Point | E8: Supports | H8: Resistances
E9: S1 | F9: S2 | G9: S3 | H9: R1 | I9: R2 | J9: R3 | K9: HIGH | L9: LOW | M9: Total Trade Quanity in Lakhs
A10: 1 | B10: Nifty 50 | C10: 19435.30 | D10: 19383.18 | E10: 19307.82 | F10: 19180.33 | G10: 19104.97 | H10: 19510.67 | I10: 19586.03 | J10: 19713.52 | K10: 19458.55 | L10: 19255.70
A11: 2 | B11: Nifty Bank | C11: 44436.10 | D11: 44278.47 | E11: 43988.38 | F11: 43540.67 | G11: 43250.58 | H11: 44726.18 | I11: 45016.27 | J11: 45463.98 | K11: 44568.55 | L11: 43830.75
A12: 3 | B12: Nifty CPSE | C12: 3614.25 | D12: 3574.45 | E12: 3529.60 | F12: 3444.95 | G12: 3400.10 | H12: 3659.10 | I12: 3703.95 | J12: 3788.60 | K12: 3619.30 | L12: 3489.80
A13: 4 | B13: Nifty Infra | C13: 6016.05 | D13: 5993.78 | E13: 5966.47 | F13: 5916.88 | G13: 5889.57 | H13: 6043.37 | I13: 6070.68 | J13: 6120.27 | K13: 6021.10 | L13: 5944.20
A14: 5 | B14: Nifty IT | C14: 31514.35 | D14: 31404.85 | E14: 31258.75 | F14: 31003.15 | G14: 30857.05 | H14: 31660.45 | I14: 31806.55 | J14: 32062.15 | K14: 31550.95 | L14: 31149.25
A15: 6 | B15: Nifty PSE | C15: 5621.40 | D15: 5563.42 | E15: 5500.13 | F15: 5378.87 | G15: 5315.58 | H15: 5684.68 | I15: 5747.97 | J15: 5869.23 | K15: 5626.70 | L15: 5442.15
A16: 7 | B16: Nifty Midcap 50 | C16: 11260.60 | D16: 11229.87 | E16: 11184.98 | F16: 11109.37 | G16: 11064.48 | H16: 11305.48 | I16: 11350.37 | J16: 11425.98 | K16: 11274.75 | L16: 11154.25
A17: 8 | B17: ABB | C17: 4291.45 | D17: 4320.48 | E17: 4241.97 | F17: 4192.48 | G17: 4113.97 | H17: 4369.97 | I17: 4448.48 | J17: 4497.97 | K17: 4399 | L17: 4271 | M17: 1.64901
A18: 9 | B18: ABBOTINDIA | C18: 22704.65 | D18: 22825.75 | E18: 22413.95 | F18: 22123.25 | G18: 21711.45 | H18: 23116.45 | I18: 23528.25 | J18: 23818.95 | K18: 23237.55 | L18: 22535.05 | M18: 0.18058
A19: 10 | B19: ABCAPITAL | C19: 184.1 | D19: 183.03 | E19: 181.07 | F19: 178.03 | G19: 176.07 | H19: 186.07 | I19: 188.03 | J19: 191.07 | K19: 185 | L19: 180 | M19: 63.10913
A20: 11 | B20: ABFRL | C20: 218.35 | D20: 218.95 | E20: 216.90 | F20: 215.45 | G20: 213.40 | H20: 220.40 | I20: 222.45 | J20: 223.90 | K20: 221 | L20: 217.5 | M20: 17.09014
A21: 12 | B21: ACC | C21: 2011.25 | D21: 2012.97 | E21: 1988.28 | F21: 1965.32 | G21: 1940.63 | H21: 2035.93 | I21: 2060.62 | J21: 2083.58 | K21: 2037.65 | L21: 1990 | M21: 5.11773
A22: 13 | B22: ADANIENT | C22: 2450.05 | D22: 2431.87 | E22: 2398.18 | F22: 2346.32 | G22: 2312.63 | H22: 2483.73 | I22: 2517.42 | J22: 2569.28 | K22: 2465.55 | L22: 2380 | M22: 67.64397
A23: 14 | B23: ADANIGREEN | C23: 949.1 | D23: 937.08 | E23: 917.17 | F23: 885.23 | G23: 865.32 | H23: 969.02 | I23: 988.93 | J23: 1020.87 | K23: 957 | L23: 905.15 | M23: 40.96797
A24: 15 | B24: ADANIPORTS | C24: 799.5 | D24: 795.72 | E24: 783.43 | F24: 767.37 | G24: 755.08 | H24: 811.78 | I24: 824.07 | J24: 840.13 | K24: 808 | L24: 779.65 | M24: 119.00199
A25: 16 | B25: ADANIPOWER | C25: 330.25 | D25: 326.15 | E25: 316.35 | F25: 302.45 | G25: 292.65 | H25: 340.05 | I25: 349.85 | J25: 363.75 | K25: 335.95 | L25: 312.25 | M25: 248.63644
A26: 17 | B26: ALKEM | C26: 3614.75 | D26: 3627.78 | E26: 3593.57 | F26: 3572.38 | G26: 3538.17 | H26: 3648.97 | I26: 3683.18 | J26: 3704.37 | K26: 3662 | L26: 3606.6 | M26: 2.47511
A27: 18 | B27: AMBUJACEM | C27: 433.9 | D27: 432.27 | E27: 427.13 | F27: 420.37 | G27: 415.23 | H27: 439.03 | I27: 444.17 | J27: 450.93 | K27: 437.4 | L27: 425.5 | M27: 38.46763
A28: 19 | B28: APOLLOHOSP | C28: 4840.35 | D28: 4830.50 | E28: 4811.05 | F28: 4781.75 | G28: 4762.30 | H28: 4859.80 | I28: 4879.25 | J28: 4908.55 | K28: 4849.95 | L28: 4801.2 | M28: 2.06097
A29: 20 | B29: APOLLOTYRE | C29: 384.75 | D29: 386.37 | E29: 382.18 | F29: 379.62 | G29: 375.43 | H29: 388.93 | I29: 393.12 | J29: 395.68 | K29: 390.55 | L29: 383.8 | M29: 26.01429
A30: 21 | B30: ASHOKLEY | C30: 184.2 | D30: 183.53 | E30: 181.67 | F30: 179.13 | G30: 177.27 | H30: 186.07 | I30: 187.93 | J30: 190.47 | K30: 185.4 | L30: 181 | M30: 137.76902
A31: 22 | B31: ASIANPAINT | C31: 3259.55 | D31: 3246.95 | E31: 3229.70 | F31: 3199.85 | G31: 3182.60 | H31: 3276.80 | I31: 3294.05 | J31: 3323.90 | K31: 3264.2 | L31: 3217.1 | M31: 6.50131
A32: 23 | B32: ASTRAL | C32: 1911.1 | D32: 1924.25 | E32: 1891.95 | F32: 1872.80 | G32: 1840.50 | H32: 1943.40 | I32: 1975.70 | J32: 1994.85 | K32: 1956.55 | L32: 1905.1 | M32: 7.80141
A33: 24 | B33: ATGL | C33: 633.85 | D33: 631.28 | E33: 623.57 | F33: 613.28 | G33: 605.57 | H33: 641.57 | I33: 649.28 | J33: 659.57 | K33: 639 | L33: 621 | M33: 9.87407
A34: 25 | B34: AUBANK | C34: 725.65 | D34: 726.42 | E34: 718.63 | F34: 711.62 | G34: 703.83 | H34: 733.43 | I34: 741.22 | J34: 748.23 | K34: 734.2 | L34: 719.4 | M34: 15.24424
A35: 26 | B35: AUROPHARMA | C35: 825.55 | D35: 827.95 | E35: 816.95 | F35: 808.35 | G35: 797.35 | H35: 836.55 | I35: 847.55 | J35: 856.15 | K35: 838.95 | L35: 819.35 | M35: 10.64301
A36: 27 | B36: AWL | C36: 352.25 | D36: 352.42 | E36: 347.83 | F36: 343.42 | G36: 338.83 | H36: 356.83 | I36: 361.42 | J36: 365.83 | K36: 357 | L36: 348 | M36: 34.18923
A37: 28 | B37: AXISBANK | C37: 991.15 | D37: 984.38 | E37: 975.77 | F37: 960.38 | G37: 951.77 | H37: 999.77 | I37: 1008.38 | J37: 1023.77 | K37: 993 | L37: 969 | M37: 109.46742
A38: 29 | B38: BAJAJ-AUTO | C38: 4668.45 | D38: 4662.15 | E38: 4625.30 | F38: 4582.15 | G38: 4545.30 | H38: 4705.30 | I38: 4742.15 | J38: 4785.30 | K38: 4699 | L38: 4619 | M38: 4.56071
A39: 30 | B39: BAJAJFINSV | C39: 1514.5 | D39: 1506.85 | E39: 1495.00 | F39: 1475.50 | G39: 1463.65 | H39: 1526.35 | I39: 1538.20 | J39: 1557.70 | K39: 1518.7 | L39: 1487.35 | M39: 9.04596
A40: 31 | B40: BAJAJHLDNG | C40: 7340.8 | D40: 7371.87 | E40: 7275.73 | F40: 7210.67 | G40: 7114.53 | H40: 7436.93 | I40: 7533.07 | J40: 7598.13 | K40: 7468 | L40: 7306.8 | M40: 0.16812
A41: 32 | B41: BAJFINANCE | C41: 7320.6 | D41: 7268.33 | E41: 7207.27 | F41: 7093.93 | G41: 7032.87 | H41: 7381.67 | I41: 7442.73 | J41: 7556.07 | K41: 7329.4 | L41: 7155 | M41: 6.76076
A42: 33 | B42: BALKRISIND | C42: 2361.8 | D42: 2350.38 | E42: 2334.62 | F42: 2307.43 | G42: 2291.67 | H42: 2377.57 | I42: 2393.33 | J42: 2420.52 | K42: 2366.15 | L42: 2323.2 | M42: 1.00941
A43: 34 | B43: BANDHANBNK | C43: 235.1 | D43: 233.57 | E43: 230.88 | F43: 226.67 | G43: 223.98 | H43: 237.78 | I43: 240.47 | J43: 244.68 | K43: 236.25 | L43: 229.35 | M43: 81.57237
A44: 35 | B44: BANKBARODA | C44: 190.6 | D44: 189.57 | E44: 187.33 | F44: 184.07 | G44: 181.83 | H44: 192.83 | I44: 195.07 | J44: 198.33 | K44: 191.8 | L44: 186.3 | M44: 158.38571
A45: 36 | B45: BANKINDIA | C45: 88 | D45: 87.25 | E45: 86.00 | F45: 84.00 | G45: 82.75 | H45: 89.25 | I45: 90.50 | J45: 92.50 | K45: 88.5 | L45: 85.25 | M45: 104.11546
A46: 37 | B46: BATAINDIA | C46: 1684.2 | D46: 1685.25 | E46: 1675.50 | F46: 1666.80 | G46: 1657.05 | H46: 1693.95 | I46: 1703.70 | J46: 1712.40 | K46: 1695 | L46: 1676.55 | M46: 1.89008
A47: 38 | B47: BEL | C47: 137.85 | D47: 136.72 | E47: 135.03 | F47: 132.22 | G47: 130.53 | H47: 139.53 | I47: 141.22 | J47: 144.03 | K47: 138.4 | L47: 133.9 | M47: 234.15545
A48: 39 | B48: BERGEPAINT | C48: 719.85 | D48: 717.47 | E48: 713.93 | F48: 708.02 | G48: 704.48 | H48: 723.38 | I48: 726.92 | J48: 732.83 | K48: 721 | L48: 711.55 | M48: 6.1534
A49: 40 | B49: BHARATFORG | C49: 1078.8 | D49: 1071.62 | E49: 1063.13 | F49: 1047.47 | G49: 1038.98 | H49: 1087.28 | I49: 1095.77 | J49: 1111.43 | K49: 1080.1 | L49: 1055.95 | M49: 8.90014
A50: 41 | B50: BHARTIARTL | C50: 865.95 | D50: 862.08 | E50: 856.62 | F50: 847.28 | G50: 841.82 | H50: 871.42 | I50: 876.88 | J50: 886.22 | K50: 867.55 | L50: 852.75 | M50: 44.27899
A51: 42 | B51: BHEL | C51: 136.15 | D51: 131.55 | E51: 126.00 | F51: 115.85 | G51: 110.30 | H51: 141.70 | I51: 147.25 | J51: 157.40 | K51: 137.1 | L51: 121.4 | M51: 1922.80009
A52: 43 | B52: BIOCON | C52: 260.8 | D52: 260.98 | E52: 258.62 | F52: 256.43 | G52: 254.07 | H52: 263.17 | I52: 265.53 | J52: 267.72 | K52: 263.35 | L52: 258.8 | M52: 20.1558
A53: 44 | B53: BOSCHLTD | C53: 18986.8 | D53: 18847.63 | E53: 18646.32 | F53: 18305.83 | G53: 18104.52 | H53: 19188.12 | I53: 19389.43 | J53: 19729.92 | K53: 19048.95 | L53: 18507.15 | M53: 0.24442
A54: 45 | B54: BPCL | C54: 344.2 | D54: 343.22 | E54: 341.53 | F54: 338.87 | G54: 337.18 | H54: 345.88 | I54: 347.57 | J54: 350.23 | K54: 344.9 | L54: 340.55 | M54: 49.90376
A55: 46 | B55: BRITANNIA | C55: 4484.35 | D55: 4467.43 | E55: 4442.92 | F55: 4401.48 | G55: 4376.97 | H55: 4508.87 | I55: 4533.38 | J55: 4574.82 | K55: 4491.95 | L55: 4426 | M55: 3.83124
A56: 47 | B56: CANBK | C56: 328.4 | D56: 326.15 | E56: 321.95 | F56: 315.50 | G56: 311.30 | H56: 332.60 | I56: 336.80 | J56: 343.25 | K56: 330.35 | L56: 319.7 | M56: 72.24028
A57: 48 | B57: CGPOWER | C57: 423.95 | D57: 422.18 | E57: 418.37 | F57: 412.78 | G57: 408.97 | H57: 427.77 | I57: 431.58 | J57: 437.17 | K57: 426 | L57: 416.6 | M57: 21.90945
A58: 49 | B58: CHOLAFIN | C58: 1128.85 | D58: 1126.45 | E58: 1118.90 | F58: 1108.95 | G58: 1101.40 | H58: 1136.40 | I58: 1143.95 | J58: 1153.90 | K58: 1134 | L58: 1116.5 | M58: 8.81841
A59: 50 | B59: CIPLA | C59: 1245.4 | D59: 1251.32 | E59: 1233.73 | F59: 1222.07 | G59: 1204.48 | H59: 1262.98 | I59: 1280.57 | J59: 1292.23 | K59: 1268.9 | L59: 1239.65 | M59: 11.67597
A60: 51 | B60: COALINDIA | C60: 236.9 | D60: 234.93 | E60: 232.62 | F60: 228.33 | G60: 226.02 | H60: 239.22 | I60: 241.53 | J60: 245.82 | K60: 237.25 | L60: 230.65 | M60: 148.69577
A61: 52 | B61: COFORGE | C61: 5451.9 | D61: 5461.88 | E61: 5417.37 | F61: 5382.83 | G61: 5338.32 | H61: 5496.42 | I61: 5540.93 | J61: 5575.47 | K61: 5506.4 | L61: 5427.35 | M61: 3.64138
A62: 53 | B62: COLPAL | C62: 1939.4 | D62: 1934.90 | E62: 1918.50 | F62: 1897.60 | G62: 1881.20 | H62: 1955.80 | I62: 1972.20 | J62: 1993.10 | K62: 1951.3 | L62: 1914 | M62: 6.61806
A63: 54 | B63: CONCOR | C63: 687 | D63: 683.48 | E63: 675.92 | F63: 664.83 | G63: 657.27 | H63: 694.57 | I63: 702.13 | J63: 713.22 | K63: 691.05 | L63: 672.4 | M63: 9.71508
A64: 55 | B64: COROMANDEL | C64: 1111 | D64: 1105.32 | E64: 1092.68 | F64: 1074.37 | G64: 1061.73 | H64: 1123.63 | I64: 1136.27 | J64: 1154.58 | K64: 1117.95 | L64: 1087 | M64: 3.88422
A65: 56 | B65: CROMPTON | C65: 303.05 | D65: 302.38 | E65: 299.87 | F65: 296.68 | G65: 294.17 | H65: 305.57 | I65: 308.08 | J65: 311.27 | K65: 304.9 | L65: 299.2 | M65: 13.73585
A66: 57 | B66: CUMMINSIND | C66: 1706 | D66: 1696.30 | E66: 1681.60 | F66: 1657.20 | G66: 1642.50 | H66: 1720.70 | I66: 1735.40 | J66: 1759.80 | K66: 1711 | L66: 1671.9 | M66: 8.81138
A67: 58 | B67: DABUR | C67: 553.35 | D67: 553.23 | E67: 550.52 | F67: 547.68 | G67: 544.97 | H67: 556.07 | I67: 558.78 | J67: 561.62 | K67: 555.95 | L67: 550.4 | M67: 9.24117
A68: 59 | B68: DALBHARAT | C68: 2123.55 | D68: 2109.47 | E68: 2083.93 | F68: 2044.32 | G68: 2018.78 | H68: 2149.08 | I68: 2174.62 | J68: 2214.23 | K68: 2135 | L68: 2069.85 | M68: 2.99204
A69: 60 | B69: DEEPAKNTR | C69: 2226.05 | D69: 2221.02 | E69: 2208.98 | F69: 2191.92 | G69: 2179.88 | H69: 2238.08 | I69: 2250.12 | J69: 2267.18 | K69: 2233.05 | L69: 2203.95 | M69: 3.25696
A70: 61 | B70: DELHIVERY | C70: 438.15 | D70: 437.85 | E70: 433.40 | F70: 428.65 | G70: 424.20 | H70: 442.60 | I70: 447.05 | J70: 451.80 | K70: 442.3 | L70: 433.1 | M70: 7.13691
A71: 62 | B71: DEVYANI | C71: 197.05 | D71: 197.25 | E71: 195.50 | F71: 193.95 | G71: 192.20 | H71: 198.80 | I71: 200.55 | J71: 202.10 | K71: 199 | L71: 195.7 | M71: 13.93506
A72: 63 | B72: DIVISLAB | C72: 3589.3 | D72: 3573.02 | E72: 3546.03 | F72: 3502.77 | G72: 3475.78 | H72: 3616.28 | I72: 3643.27 | J72: 3686.53 | K72: 3600 | L72: 3529.75 | M72: 5.8629
A73: 64 | B73: DIXON | C73: 5057.25 | D73: 5070.28 | E73: 4977.57 | F73: 4897.88 | G73: 4805.17 | H73: 5149.97 | I73: 5242.68 | J73: 5322.37 | K73: 5163 | L73: 4990.6 | M73: 5.77891
A74: 65 | B74: DLF | C74: 503.25 | D74: 504.35 | E74: 499.20 | F74: 495.15 | G74: 490.00 | H74: 508.40 | I74: 513.55 | J74: 517.60 | K74: 509.5 | L74: 500.3 | M74: 30.4408
A75: 66 | B75: DMART | C75: 3761.05 | D75: 3747.35 | E75: 3729.70 | F75: 3698.35 | G75: 3680.70 | H75: 3778.70 | I75: 3796.35 | J75: 3827.70 | K75: 3765 | L75: 3716 | M75: 3.61003
A76: 67 | B76: DRREDDY | C76: 5578.55 | D76: 5587.63 | E76: 5541.02 | F76: 5503.48 | G76: 5456.87 | H76: 5625.17 | I76: 5671.78 | J76: 5709.32 | K76: 5634.25 | L76: 5550.1 | M76: 2.21056
A77: 68 | B77: EICHERMOT | C77: 3400.4 | D77: 3376.32 | E77: 3346.18 | F77: 3291.97 | G77: 3261.83 | H77: 3430.53 | I77: 3460.67 | J77: 3514.88 | K77: 3406.45 | L77: 3322.1 | M77: 6.9151
A78: 69 | B78: ESCORTS | C78: 3133.9 | D78: 3133.93 | E78: 3072.87 | F78: 3011.83 | G78: 2950.77 | H78: 3194.97 | I78: 3256.03 | J78: 3317.07 | K78: 3195 | L78: 3072.9 | M78: 6.27016
A79: 70 | B79: FEDERALBNK | C79: 143.8 | D79: 143.43 | E79: 141.67 | F79: 139.53 | G79: 137.77 | H79: 145.57 | I79: 147.33 | J79: 149.47 | K79: 145.2 | L79: 141.3 | M79: 136.87325
A80: 71 | B80: FLUOROCHEM | C80: 3073.55 | D80: 3080.40 | E80: 3039.75 | F80: 3005.95 | G80: 2965.30 | H80: 3114.20 | I80: 3154.85 | J80: 3188.65 | K80: 3121.05 | L80: 3046.6 | M80: 1.35129
A81: 72 | B81: FORTIS | C81: 324.4 | D81: 327.18 | E81: 318.87 | F81: 313.33 | G81: 305.02 | H81: 332.72 | I81: 341.03 | J81: 346.57 | K81: 335.5 | L81: 321.65 | M81: 8.43338
A82: 73 | B82: GAIL | C82: 121.35 | D82: 119.73 | E82: 117.17 | F82: 112.98 | G82: 110.42 | H82: 123.92 | I82: 126.48 | J82: 130.67 | K82: 122.3 | L82: 115.55 | M82: 319.91938
A83: 74 | B83: GLAND | C83: 1768.1 | D83: 1765.80 | E83: 1720.75 | F83: 1673.40 | G83: 1628.35 | H83: 1813.15 | I83: 1858.20 | J83: 1905.55 | K83: 1810.85 | L83: 1718.45 | M83: 12.68319
A84: 75 | B84: GODREJCP | C84: 1005.35 | D84: 1006.12 | E84: 1000.28 | F84: 995.22 | G84: 989.38 | H84: 1011.18 | I84: 1017.02 | J84: 1022.08 | K84: 1011.95 | L84: 1001.05 | M84: 3.10557
A85: 76 | B85: GODREJPROP | C85: 1643.65 | D85: 1645.75 | E85: 1634.05 | F85: 1624.45 | G85: 1612.75 | H85: 1655.35 | I85: 1667.05 | J85: 1676.65 | K85: 1657.45 | L85: 1636.15 | M85: 3.28723
A86: 77 | B86: GRASIM | C86: 1811.5 | D86: 1808.13 | E86: 1791.27 | F86: 1771.03 | G86: 1754.17 | H86: 1828.37 | I86: 1845.23 | J86: 1865.47 | K86: 1825 | L86: 1787.9 | M86: 4.20245
A87: 78 | B87: GUJGASLTD | C87: 458 | D87: 455.97 | E87: 452.58 | F87: 447.17 | G87: 443.78 | H87: 461.38 | I87: 464.77 | J87: 470.18 | K87: 459.35 | L87: 450.55 | M87: 32.22741
A88: 79 | B88: HAL | C88: 3941.75 | D88: 3943.18 | E88: 3907.57 | F88: 3873.38 | G88: 3837.77 | H88: 3977.37 | I88: 4012.98 | J88: 4047.17 | K88: 3978.8 | L88: 3909 | M88: 8.8927
A89: 80 | B89: HAVELLS | C89: 1377.75 | D89: 1378.80 | E89: 1367.95 | F89: 1358.15 | G89: 1347.30 | H89: 1388.60 | I89: 1399.45 | J89: 1409.25 | K89: 1389.65 | L89: 1369 | M89: 8.48245
A90: 81 | B90: HCLTECH | C90: 1185.8 | D90: 1181.63 | E90: 1175.27 | F90: 1164.73 | G90: 1158.37 | H90: 1192.17 | I90: 1198.53 | J90: 1209.07 | K90: 1188 | L90: 1171.1 | M90: 16.6964
A91: 82 | B91: HDFCAMC | C91: 2431.25 | D91: 2440.98 | E91: 2412.27 | F91: 2393.28 | G91: 2364.57 | H91: 2459.97 | I91: 2488.68 | J91: 2507.67 | K91: 2469.7 | L91: 2422 | M91: 12.41184
A92: 83 | B92: HDFCBANK | C92: 1574.7 | D92: 1571.02 | E92: 1563.03 | F92: 1551.37 | G92: 1543.38 | H92: 1582.68 | I92: 1590.67 | J92: 1602.33 | K92: 1579 | L92: 1559.35 | M92: 216.13388
A93: 84 | B93: HDFCLIFE | C93: 641.35 | D93: 642.63 | E93: 637.27 | F93: 633.18 | G93: 627.82 | H93: 646.72 | I93: 652.08 | J93: 656.17 | K93: 648 | L93: 638.55 | M93: 12.71599
A94: 85 | B94: HEROMOTOCO | C94: 2927.4 | D94: 2927.52 | E94: 2907.88 | F94: 2888.37 | G94: 2868.73 | H94: 2947.03 | I94: 2966.67 | J94: 2986.18 | K94: 2947.15 | L94: 2908 | M94: 3.31811
A95: 86 | B95: HINDALCO | C95: 473.25 | D95: 471.28 | E95: 464.07 | F95: 454.88 | G95: 447.67 | H95: 480.47 | I95: 487.68 | J95: 496.87 | K95: 478.5 | L95: 462.1 | M95: 111.51562
A96: 87 | B96: HINDPETRO | C96: 250.25 | D96: 249.12 | E96: 247.33 | F96: 244.42 | G96: 242.63 | H96: 252.03 | I96: 253.82 | J96: 256.73 | K96: 250.9 | L96: 246.2 | M96: 57.25355
A97: 88 | B97: HINDUNILVR | C97: 2504.8 | D97: 2506.43 | E97: 2498.37 | F97: 2491.93 | G97: 2483.87 | H97: 2512.87 | I97: 2520.93 | J97: 2527.37 | K97: 2514.5 | L97: 2500 | M97: 8.13413
A98: 89 | B98: HINDZINC | C98: 319.7 | D98: 319.95 | E98: 317.90 | F98: 316.10 | G98: 314.05 | H98: 321.75 | I98: 323.80 | J98: 325.60 | K98: 322 | L98: 318.15 | M98: 2.81397
A99: 90 | B99: HONAUT | C99: 39397.6 | D99: 39363.65 | E99: 38865.65 | F99: 38333.70 | G99: 37835.70 | H99: 39895.60 | I99: 40393.60 | J99: 40925.55 | K99: 39861.65 | L99: 38831.7 | M99: 0.04093
A100: 91 | B100: ICICIBANK | C100: 968.7 | D100: 964.85 | E100: 956.65 | F100: 944.60 | G100: 936.40 | H100: 976.90 | I100: 985.10 | J100: 997.15 | K100: 973.05 | L100: 952.8 | M100: 162.68147
A101: 92 | B101: ICICIGI | C101: 1341.35 | D101: 1336.95 | E101: 1319.40 | F101: 1297.45 | G101: 1279.90 | H101: 1358.90 | I101: 1376.45 | J101: 1398.40 | K101: 1354.5 | L101: 1315 | M101: 6.3987
A102: 93 | B102: ICICIPRULI | C102: 561.8 | D102: 562.87 | E102: 556.58 | F102: 551.37 | G102: 545.08 | H102: 568.08 | I102: 574.37 | J102: 579.58 | K102: 569.15 | L102: 557.65 | M102: 11.07985
A103: 94 | B103: IDEA | C103: 10 | D103: 9.83 | E103: 9.27 | F103: 8.53 | G103: 7.97 | H103: 10.57 | I103: 11.13 | J103: 11.87 | K103: 10.4 | L103: 9.1 | M103: 7233.52196
A104: 95 | B104: IDFCFIRSTB | C104: 93.4 | D104: 92.17 | E104: 90.33 | F104: 87.27 | G104: 85.43 | H104: 95.23 | I104: 97.07 | J104: 100.13 | K104: 94 | L104: 89.1 | M104: 888.35098
A105: 96 | B105: IGL | C105: 467.05 | D105: 467.38 | E105: 462.82 | F105: 458.58 | G105: 454.02 | H105: 471.62 | I105: 476.18 | J105: 480.42 | K105: 471.95 | L105: 463.15 | M105: 9.65592
A106: 97 | B106: INDHOTEL | C106: 424.25 | D106: 422.48 | E106: 417.47 | F106: 410.68 | G106: 405.67 | H106: 429.27 | I106: 434.28 | J106: 441.07 | K106: 427.5 | L106: 415.7 | M106: 35.52699
A107: 98 | B107: INDIANB | C107: 377.1 | D107: 378.18 | E107: 375.42 | F107: 373.73 | G107: 370.97 | H107: 379.87 | I107: 382.63 | J107: 384.32 | K107: 380.95 | L107: 376.5 | M107: 8.4529
A108: 99 | B108: INDIGO | C108: 2438.9 | D108: 2429.05 | E108: 2412.85 | F108: 2386.80 | G108: 2370.60 | H108: 2455.10 | I108: 2471.30 | J108: 2497.35 | K108: 2445.25 | L108: 2403 | M108: 5.62991
A109: 100 | B109: INDUSINDBK | C109: 1416.55 | D109: 1405.45 | E109: 1387.30 | F109: 1358.05 | G109: 1339.90 | H109: 1434.70 | I109: 1452.85 | J109: 1482.10 | K109: 1423.6 | L109: 1376.2 | M109: 27.92033
A110: 101 | B110: INDUSTOWER | C110: 181.7 | D110: 180.08 | E110: 176.32 | F110: 170.93 | G110: 167.17 | H110: 185.47 | I110: 189.23 | J110: 194.62 | K110: 183.85 | L110: 174.7 | M110: 132.5694
A111: 102 | B111: INFY | C111: 1443.85 | D111: 1439.35 | E111: 1432.70 | F111: 1421.55 | G111: 1414.90 | H111: 1450.50 | I111: 1457.15 | J111: 1468.30 | K111: 1446 | L111: 1428.2 | M111: 35.82133
A112: 103 | B112: IOC | C112: 89.05 | D112: 89.27 | E112: 88.53 | F112: 88.02 | G112: 87.28 | H112: 89.78 | I112: 90.52 | J112: 91.03 | K112: 90 | L112: 88.75 | M112: 147.35373
A113: 104 | B113: IPCALAB | C113: 866.8 | D113: 869.62 | E113: 860.23 | F113: 853.67 | G113: 844.28 | H113: 876.18 | I113: 885.57 | J113: 892.13 | K113: 879 | L113: 863.05 | M113: 2.8841
A114: 105 | B114: IRCTC | C114: 688.35 | D114: 683.52 | E114: 677.38 | F114: 666.42 | G114: 660.28 | H114: 694.48 | I114: 700.62 | J114: 711.58 | K114: 689.65 | L114: 672.55 | M114: 41.46601
A115: 106 | B115: IRFC | C115: 55.75 | D115: 54.12 | E115: 51.73 | F115: 47.72 | G115: 45.33 | H115: 58.13 | I115: 60.52 | J115: 64.53 | K115: 56.5 | L115: 50.1 | M115: 2360.65708
A116: 107 | B116: ITC | C116: 441.05 | D116: 441.45 | E116: 437.90 | F116: 434.75 | G116: 431.20 | H116: 444.60 | I116: 448.15 | J116: 451.30 | K116: 445 | L116: 438.3 | M116: 114.38624
A117: 108 | B117: JINDALSTEL | C117: 701.1 | D117: 700.43 | E117: 687.17 | F117: 673.23 | G117: 659.97 | H117: 714.37 | I117: 727.63 | J117: 741.57 | K117: 713.7 | L117: 686.5 | M117: 38.21673
A118: 109 | B118: JSWENERGY | C118: 354.25 | D118: 354.13 | E118: 349.62 | F118: 344.98 | G118: 340.47 | H118: 358.77 | I118: 363.28 | J118: 367.92 | K118: 358.65 | L118: 349.5 | M118: 21.84054
A119: 110 | B119: JSWSTEEL | C119: 806.4 | D119: 797.37 | E119: 787.03 | F119: 767.67 | G119: 757.33 | H119: 816.73 | I119: 827.07 | J119: 846.43 | K119: 807.7 | L119: 778 | M119: 35.13798
A120: 111 | B120: JUBLFOOD | C120: 506.05 | D120: 508.13 | E120: 502.92 | F120: 499.78 | G120: 494.57 | H120: 511.27 | I120: 516.48 | J120: 519.62 | K120: 513.35 | L120: 505 | M120: 14.93295
A121: 112 | B121: KOTAKBANK | C121: 1771.1 | D121: 1768.35 | E121: 1757.10 | F121: 1743.10 | G121: 1731.85 | H121: 1782.35 | I121: 1793.60 | J121: 1807.60 | K121: 1779.6 | L121: 1754.35 | M121: 26.9521
A122: 113 | B122: L&TFH | C122: 126.45 | D122: 125.73 | E122: 124.47 | F122: 122.48 | G122: 121.22 | H122: 127.72 | I122: 128.98 | J122: 130.97 | K122: 127 | L122: 123.75 | M122: 47.25381
A123: 114 | B123: LALPATHLAB | C123: 2201.25 | D123: 2189.50 | E123: 2169.00 | F123: 2136.75 | G123: 2116.25 | H123: 2221.75 | I123: 2242.25 | J123: 2274.50 | K123: 2210 | L123: 2157.25 | M123: 1.11459
A124: 115 | B124: LAURUSLABS | C124: 396.45 | D124: 397.88 | E124: 392.02 | F124: 387.58 | G124: 381.72 | H124: 402.32 | I124: 408.18 | J124: 412.62 | K124: 403.75 | L124: 393.45 | M124: 11.02597
A125: 116 | B125: LICHSGFIN | C125: 433.2 | D125: 430.85 | E125: 425.85 | F125: 418.50 | G125: 413.50 | H125: 438.20 | I125: 443.20 | J125: 450.55 | K125: 435.85 | L125: 423.5 | M125: 65.72052
A126: 117 | B126: LICI | C126: 645.75 | D126: 646.73 | E126: 644.07 | F126: 642.38 | G126: 639.72 | H126: 648.42 | I126: 651.08 | J126: 652.77 | K126: 649.4 | L126: 645.05 | M126: 7.93487
A127: 118 | B127: LT | C127: 2702.1 | D127: 2702.12 | E127: 2688.28 | F127: 2674.47 | G127: 2660.63 | H127: 2715.93 | I127: 2729.77 | J127: 2743.58 | K127: 2715.95 | L127: 2688.3 | M127: 12.6343
A128: 119 | B128: LTIM | C128: 5303.35 | D128: 5271.47 | E128: 5228.93 | F128: 5154.52 | G128: 5111.98 | H128: 5345.88 | I128: 5388.42 | J128: 5462.83 | K128: 5314 | L128: 5197.05 | M128: 4.35444
A129: 120 | B129: LTTS | C129: 4450.7 | D129: 4440.70 | E129: 4421.40 | F129: 4392.10 | G129: 4372.80 | H129: 4470.00 | I129: 4489.30 | J129: 4518.60 | K129: 4460 | L129: 4411.4 | M129: 0.9742
A130: 121 | B130: LUPIN | C130: 1093.85 | D130: 1093.53 | E130: 1087.67 | F130: 1081.48 | G130: 1075.62 | H130: 1099.72 | I130: 1105.58 | J130: 1111.77 | K130: 1099.4 | L130: 1087.35 | M130: 3.84388
A131: 122 | B131: M&M | C131: 1591.95 | D131: 1590.48 | E131: 1576.47 | F131: 1560.98 | G131: 1546.97 | H131: 1605.97 | I131: 1619.98 | J131: 1635.47 | K131: 1604.5 | L131: 1575 | M131: 21.47299
A132: 123 | B132: M&MFIN | C132: 299.15 | D132: 297.73 | E132: 295.27 | F132: 291.38 | G132: 288.92 | H132: 301.62 | I132: 304.08 | J132: 307.97 | K132: 300.2 | L132: 293.85 | M132: 22.98162
A133: 124 | B133: MANKIND | C133: 1716.55 | D133: 1739.72 | E133: 1662.98 | F133: 1609.42 | G133: 1532.68 | H133: 1793.28 | I133: 1870.02 | J133: 1923.58 | K133: 1816.45 | L133: 1686.15 | M133: 4.72576
A134: 125 | B134: MARICO | C134: 569.35 | D134: 569.60 | E134: 563.25 | F134: 557.15 | G134: 550.80 | H134: 575.70 | I134: 582.05 | J134: 588.15 | K134: 575.95 | L134: 563.5 | M134: 31.96294
A135: 126 | B135: MARUTI | C135: 10331.25 | D135: 10226.85 | E135: 10055.75 | F135: 9780.25 | G135: 9609.15 | H135: 10502.35 | I135: 10673.45 | J135: 10948.95 | K135: 10397.95 | L135: 9951.35 | M135: 11.93178
A136: 127 | B136: MAXHEALTH | C136: 574.95 | D136: 579.32 | E136: 568.63 | F136: 562.32 | G136: 551.63 | H136: 585.63 | I136: 596.32 | J136: 602.63 | K136: 590 | L136: 573 | M136: 12.44029
A137: 128 | B137: MCDOWELL-N | C137: 1012.45 | D137: 1012.68 | E137: 1004.77 | F137: 997.08 | G137: 989.17 | H137: 1020.37 | I137: 1028.28 | J137: 1035.97 | K137: 1020.6 | L137: 1005 | M137: 4.66577
A138: 129 | B138: MFSL | C138: 937.25 | D138: 935.82 | E138: 926.63 | F138: 916.02 | G138: 906.83 | H138: 946.43 | I138: 955.62 | J138: 966.23 | K138: 945 | L138: 925.2 | M138: 6.51761
A139: 130 | B139: MOTHERSON | C139: 97.8 | D139: 97.02 | E139: 95.88 | F139: 93.97 | G139: 92.83 | H139: 98.93 | I139: 100.07 | J139: 101.98 | K139: 98.15 | L139: 95.1 | M139: 83.36707
A140: 131 | B140: MPHASIS | C140: 2433.2 | D140: 2432.05 | E140: 2416.65 | F140: 2400.10 | G140: 2384.70 | H140: 2448.60 | I140: 2464.00 | J140: 2480.55 | K140: 2447.45 | L140: 2415.5 | M140: 3.19368
A141: 132 | B141: MRF | C141: 107984.15 | D141: 108347.73 | E141: 107195.47 | F141: 106406.78 | G141: 105254.52 | H141: 109136.42 | I141: 110288.68 | J141: 111077.37 | K141: 109500 | L141: 107559.05 | M141: 0.06574
A142: 133 | B142: MSUMI | C142: 65.95 | D142: 65.08 | E142: 63.07 | F142: 60.18 | G142: 58.17 | H142: 67.97 | I142: 69.98 | J142: 72.87 | K142: 67.1 | L142: 62.2 | M142: 186.67742
A143: 134 | B143: MUTHOOTFIN | C143: 1261.25 | D143: 1262.25 | E143: 1253.40 | F143: 1245.55 | G143: 1236.70 | H143: 1270.10 | I143: 1278.95 | J143: 1286.80 | K143: 1271.1 | L143: 1254.4 | M143: 4.84593
A144: 135 | B144: NAUKRI | C144: 4372.35 | D144: 4359.10 | E144: 4322.20 | F144: 4272.05 | G144: 4235.15 | H144: 4409.25 | I144: 4446.15 | J144: 4496.30 | K144: 4396 | L144: 4308.95 | M144: 1.15255
A145: 136 | B145: NAVINFLUOR | C145: 4599.15 | D145: 4590.07 | E145: 4555.08 | F145: 4511.02 | G145: 4476.03 | H145: 4634.13 | I145: 4669.12 | J145: 4713.18 | K145: 4625.05 | L145: 4546 | M145: 0.9514
A146: 137 | B146: NESTLEIND | C146: 21915.55 | D146: 21961.75 | E146: 21813.80 | F146: 21712.05 | G146: 21564.10 | H146: 22063.50 | I146: 22211.45 | J146: 22313.20 | K146: 22109.7 | L146: 21860 | M146: 0.35849
A147: 138 | B147: NHPC | C147: 50.25 | D147: 50.40 | E147: 49.75 | F147: 49.25 | G147: 48.60 | H147: 50.90 | I147: 51.55 | J147: 52.05 | K147: 51.05 | L147: 49.9 | M147: 156.0004
A148: 139 | B148: NMDC | C148: 130.5 | D148: 128.00 | E148: 125.10 | F148: 119.70 | G148: 116.80 | H148: 133.40 | I148: 136.30 | J148: 141.70 | K148: 130.9 | L148: 122.6 | M148: 393.8992
A149: 140 | B149: NTPC | C149: 230.7 | D149: 226.17 | E149: 220.68 | F149: 210.67 | G149: 205.18 | H149: 236.18 | I149: 241.67 | J149: 251.68 | K149: 231.65 | L149: 216.15 | M149: 298.59815
A150: 141 | B150: NYKAA | C150: 135.45 | D150: 135.02 | E150: 134.18 | F150: 132.92 | G150: 132.08 | H150: 136.28 | I150: 137.12 | J150: 138.38 | K150: 135.85 | L150: 133.75 | M150: 63.75295
A151: 142 | B151: OBEROIRLTY | C151: 1127.9 | D151: 1127.48 | E151: 1116.42 | F151: 1104.93 | G151: 1093.87 | H151: 1138.97 | I151: 1150.03 | J151: 1161.52 | K151: 1138.55 | L151: 1116 | M151: 7.86235
A152: 143 | B152: OFSS | C152: 4136.25 | D152: 4131.35 | E152: 4095.90 | F152: 4055.55 | G152: 4020.10 | H152: 4171.70 | I152: 4207.15 | J152: 4247.50 | K152: 4166.8 | L152: 4091 | M152: 0.68916
A153: 144 | B153: OIL | C153: 273.05 | D153: 276.60 | E153: 268.65 | F153: 264.25 | G153: 256.30 | H153: 281.00 | I153: 288.95 | J153: 293.35 | K153: 284.55 | L153: 272.2 | M153: 19.80858
A154: 145 | B154: ONGC | C154: 181.75 | D154: 180.30 | E154: 175.85 | F154: 169.95 | G154: 165.50 | H154: 186.20 | I154: 190.65 | J154: 196.55 | K154: 184.75 | L154: 174.4 | M154: 224.6096
A155: 146 | B155: PAGEIND | C155: 39822 | D155: 39960.97 | E155: 39613.03 | F155: 39404.07 | G155: 39056.13 | H155: 40169.93 | I155: 40517.87 | J155: 40726.83 | K155: 40308.9 | L155: 39752 | M155: 0.12244
A156: 147 | B156: PATANJALI | C156: 1247.2 | D156: 1235.57 | E156: 1216.63 | F156: 1186.07 | G156: 1167.13 | H156: 1266.13 | I156: 1285.07 | J156: 1315.63 | K156: 1254.5 | L156: 1205 | M156: 3.36595
A157: 148 | B157: PAYTM | C157: 857.4 | D157: 860.92 | E157: 847.08 | F157: 836.77 | G157: 822.93 | H157: 871.23 | I157: 885.07 | J157: 895.38 | K157: 874.75 | L157: 850.6 | M157: 28.5748
A158: 149 | B158: PEL | C158: 1078.25 | D158: 1072.32 | E158: 1057.98 | F158: 1037.72 | G158: 1023.38 | H158: 1092.58 | I158: 1106.92 | J158: 1127.18 | K158: 1086.65 | L158: 1052.05 | M158: 15.61551
A159: 150 | B159: PERSISTENT | C159: 5543.3 | D159: 5472.07 | E159: 5371.23 | F159: 5199.17 | G159: 5098.33 | H159: 5644.13 | I159: 5744.97 | J159: 5917.03 | K159: 5572.9 | L159: 5300 | M159: 6.48068
A160: 151 | B160: PETRONET | C160: 219.55 | D160: 218.05 | E160: 216.20 | F160: 212.85 | G160: 211.00 | H160: 221.40 | I160: 223.25 | J160: 226.60 | K160: 219.9 | L160: 214.7 | M160: 42.66629
A161: 152 | B161: PFC | C161: 257.4 | D161: 256.57 | E161: 251.38 | F161: 245.37 | G161: 240.18 | H161: 262.58 | I161: 267.77 | J161: 273.78 | K161: 261.75 | L161: 250.55 | M161: 255.08836
A162: 153 | B162: PGHH | C162: 16119.25 | D162: 16054.35 | E162: 15888.70 | F162: 15658.15 | G162: 15492.50 | H162: 16284.90 | I162: 16450.55 | J162: 16681.10 | K162: 16220 | L162: 15823.8 | M162: 0.03879
A163: 154 | B163: PIDILITIND | C163: 2498.25 | D163: 2505.97 | E163: 2478.38 | F163: 2458.52 | G163: 2430.93 | H163: 2525.83 | I163: 2553.42 | J163: 2573.28 | K163: 2533.55 | L163: 2486.1 | M163: 4.68711
A164: 155 | B164: PIIND | C164: 3621.1 | D164: 3624.73 | E164: 3599.47 | F164: 3577.83 | G164: 3552.57 | H164: 3646.37 | I164: 3671.63 | J164: 3693.27 | K164: 3650 | L164: 3603.1 | M164: 2.40027
A165: 156 | B165: PNB | C165: 65.4 | D165: 64.70 | E165: 63.20 | F165: 61.00 | G165: 59.50 | H165: 66.90 | I165: 68.40 | J165: 70.60 | K165: 66.2 | L165: 62.5 | M165: 1202.97728
A166: 157 | B166: POLICYBZR | C166: 769.9 | D166: 773.62 | E166: 764.28 | F166: 758.67 | G166: 749.33 | H166: 779.23 | I166: 788.57 | J166: 794.18 | K166: 782.95 | L166: 768 | M166: 3.04865
A167: 158 | B167: POLYCAB | C167: 5208.25 | D167: 5174.38 | E167: 5128.77 | F167: 5049.28 | G167: 5003.67 | H167: 5253.87 | I167: 5299.48 | J167: 5378.97 | K167: 5220 | L167: 5094.9 | M167: 4.48449
A168: 159 | B168: POONAWALLA | C168: 409.8 | D168: 411.27 | E168: 405.53 | F168: 401.27 | G168: 395.53 | H168: 415.53 | I168: 421.27 | J168: 425.53 | K168: 417 | L168: 407 | M168: 15.15086
A169: 160 | B169: POWERGRID | C169: 252.2 | D169: 250.00 | E169: 247.40 | F169: 242.60 | G169: 240.00 | H169: 254.80 | I169: 257.40 | J169: 262.20 | K169: 252.6 | L169: 245.2 | M169: 98.40543
A170: 161 | B170: PRESTIGE | C170: 668.45 | D170: 663.60 | E170: 635.25 | F170: 602.05 | G170: 573.70 | H170: 696.80 | I170: 725.15 | J170: 758.35 | K170: 691.95 | L170: 630.4 | M170: 12.31864
A171: 162 | B171: RAMCOCEM | C171: 888.3 | D171: 881.18 | E171: 870.17 | F171: 852.03 | G171: 841.02 | H171: 899.32 | I171: 910.33 | J171: 928.47 | K171: 892.2 | L171: 863.05 | M171: 3.86966
A172: 163 | B172: RECLTD | C172: 238.8 | D172: 236.72 | E172: 232.63 | F172: 226.47 | G172: 222.38 | H172: 242.88 | I172: 246.97 | J172: 253.13 | K172: 240.8 | L172: 230.55 | M172: 142.21473
A173: 164 | B173: RELIANCE | C173: 2412.65 | D173: 2413.32 | E173: 2400.98 | F173: 2389.32 | G173: 2376.98 | H173: 2424.98 | I173: 2437.32 | J173: 2448.98 | K173: 2425.65 | L173: 2401.65 | M173: 90.56421
A174: 165 | B174: SAIL | C174: 96.95 | D174: 95.10 | E174: 92.70 | F174: 88.45 | G174: 86.05 | H174: 99.35 | I174: 101.75 | J174: 106.00 | K174: 97.5 | L174: 90.85 | M174: 523.88079
A175: 166 | B175: SBICARD | C175: 840.3 | D175: 832.60 | E175: 823.20 | F175: 806.10 | G175: 796.70 | H175: 849.70 | I175: 859.10 | J175: 876.20 | K175: 842 | L175: 815.5 | M175: 22.74771
A176: 167 | B176: SBILIFE | C176: 1320.55 | D176: 1313.62 | E176: 1300.13 | F176: 1279.72 | G176: 1266.23 | H176: 1334.03 | I176: 1347.52 | J176: 1367.93 | K176: 1327.1 | L176: 1293.2 | M176: 7.61
A177: 168 | B177: SBIN | C177: 569.55 | D177: 567.62 | E177: 564.03 | F177: 558.52 | G177: 554.93 | H177: 573.13 | I177: 576.72 | J177: 582.23 | K177: 571.2 | L177: 562.1 | M177: 181.21168
A178: 169 | B178: SHREECEM | C178: 24139.35 | D178: 24046.28 | E178: 23913.07 | F178: 23686.78 | G178: 23553.57 | H178: 24272.57 | I178: 24405.78 | J178: 24632.07 | K178: 24179.5 | L178: 23820 | M178: 0.27413
A179: 170 | B179: SHRIRAMFIN | C179: 1912.05 | D179: 1918.28 | E179: 1900.62 | F179: 1889.18 | G179: 1871.52 | H179: 1929.72 | I179: 1947.38 | J179: 1958.82 | K179: 1935.95 | L179: 1906.85 | M179: 7.51207
A180: 171 | B180: SIEMENS | C180: 3887.05 | D180: 3884.65 | E180: 3844.45 | F180: 3801.85 | G180: 3761.65 | H180: 3927.25 | I180: 3967.45 | J180: 4010.05 | K180: 3924.85 | L180: 3842.05 | M180: 2.67339
A181: 172 | B181: SONACOMS | C181: 592.25 | D181: 592.98 | E181: 587.02 | F181: 581.78 | G181: 575.82 | H181: 598.22 | I181: 604.18 | J181: 609.42 | K181: 598.95 | L181: 587.75 | M181: 8.31685
A182: 173 | B182: SRF | C182: 2384.05 | D182: 2377.68 | E182: 2358.37 | F182: 2332.68 | G182: 2313.37 | H182: 2403.37 | I182: 2422.68 | J182: 2448.37 | K182: 2397 | L182: 2352 | M182: 5.10493
A183: 174 | B183: SUNPHARMA | C183: 1109 | D183: 1110.75 | E183: 1104.00 | F183: 1099.00 | G183: 1092.25 | H183: 1115.75 | I183: 1122.50 | J183: 1127.50 | K183: 1117.5 | L183: 1105.75 | M183: 27.15249
A184: 175 | B184: SUNTV | C184: 620.8 | D184: 619.88 | E184: 616.02 | F184: 611.23 | G184: 607.37 | H184: 624.67 | I184: 628.53 | J184: 633.32 | K184: 623.75 | L184: 615.1 | M184: 9.65862
A185: 176 | B185: SYNGENE | C185: 778.55 | D185: 774.40 | E185: 767.55 | F185: 756.55 | G185: 749.70 | H185: 785.40 | I185: 792.25 | J185: 803.25 | K185: 781.25 | L185: 763.4 | M185: 6.40065
A186: 177 | B186: TATACHEM | C186: 1071.15 | D186: 1069.65 | E186: 1063.30 | F186: 1055.45 | G186: 1049.10 | H186: 1077.50 | I186: 1083.85 | J186: 1091.70 | K186: 1076 | L186: 1061.8 | M186: 5.9133
A187: 178 | B187: TATACOMM | C187: 1852.4 | D187: 1842.55 | E187: 1804.10 | F187: 1755.80 | G187: 1717.35 | H187: 1890.85 | I187: 1929.30 | J187: 1977.60 | K187: 1881 | L187: 1794.25 | M187: 16.82163
A188: 179 | B188: TATACONSUM | C188: 844.15 | D188: 841.52 | E188: 835.63 | F188: 827.12 | G188: 821.23 | H188: 850.03 | I188: 855.92 | J188: 864.43 | K188: 847.4 | L188: 833 | M188: 6.61741
A189: 180 | B189: TATAELXSI | C189: 7284.1 | D189: 7268.02 | E189: 7217.13 | F189: 7150.17 | G189: 7099.28 | H189: 7334.98 | I189: 7385.87 | J189: 7452.83 | K189: 7318.9 | L189: 7201.05 | M189: 0.98424
A190: 181 | B190: TATAMOTORS | C190: 611.2 | D190: 609.33 | E190: 603.77 | F190: 596.33 | G190: 590.77 | H190: 616.77 | I190: 622.33 | J190: 629.77 | K190: 614.9 | L190: 601.9 | M190: 102.97492
A191: 182 | B191: TATAPOWER | C191: 255.35 | D191: 252.47 | E191: 248.98 | F191: 242.62 | G191: 239.13 | H191: 258.83 | I191: 262.32 | J191: 268.68 | K191: 255.95 | L191: 246.1 | M191: 280.5291
A192: 183 | B192: TATASTEEL | C192: 127.05 | D192: 126.38 | E192: 124.07 | F192: 121.08 | G192: 118.77 | H192: 129.37 | I192: 131.68 | J192: 134.67 | K192: 128.7 | L192: 123.4 | M192: 764.60408
A193: 184 | B193: TCS | C193: 3379.2 | D193: 3375.00 | E193: 3361.00 | F193: 3342.80 | G193: 3328.80 | H193: 3393.20 | I193: 3407.20 | J193: 3425.40 | K193: 3389 | L193: 3356.8 | M193: 12.7795
A194: 185 | B194: TECHM | C194: 1228.05 | D194: 1220.67 | E194: 1211.43 | F194: 1194.82 | G194: 1185.58 | H194: 1237.28 | I194: 1246.52 | J194: 1263.13 | K194: 1229.9 | L194: 1204.05 | M194: 16.86038
A195: 186 | B195: TIINDIA | C195: 2988.15 | D195: 2958.17 | E195: 2904.08 | F195: 2820.02 | G195: 2765.93 | H195: 3042.23 | I195: 3096.32 | J195: 3180.38 | K195: 3012.25 | L195: 2874.1 | M195: 4.578
A196: 187 | B196: TITAN | C196: 3116.8 | D196: 3113.90 | E196: 3102.90 | F196: 3089.00 | G196: 3078.00 | H196: 3127.80 | I196: 3138.80 | J196: 3152.70 | K196: 3124.9 | L196: 3100 | M196: 4.23739
A197: 188 | B197: TORNTPHARM | C197: 1785.8 | D197: 1803.15 | E197: 1754.70 | F197: 1723.60 | G197: 1675.15 | H197: 1834.25 | I197: 1882.70 | J197: 1913.80 | K197: 1851.6 | L197: 1772.05 | M197: 24.29819
A198: 189 | B198: TORNTPOWER | C198: 665.2 | D198: 664.98 | E198: 656.97 | F198: 648.73 | G198: 640.72 | H198: 673.22 | I198: 681.23 | J198: 689.47 | K198: 673 | L198: 656.75 | M198: 4.11163
A199: 190 | B199: TRENT | C199: 2063.1 | D199: 2072.02 | E199: 2031.08 | F199: 1999.07 | G199: 1958.13 | H199: 2104.03 | I199: 2144.97 | J199: 2176.98 | K199: 2112.95 | L199: 2040 | M199: 7.85674
A200: 191 | B200: TRIDENT | C200: 39.6 | D200: 38.72 | E200: 37.48 | F200: 35.37 | G200: 34.13 | H200: 40.83 | I200: 42.07 | J200: 44.18 | K200: 39.95 | L200: 36.6 | M200: 929.52744
A201: 192 | B201: TTML | C201: 91.6 | D201: 90.93 | E201: 88.62 | F201: 85.63 | G201: 83.32 | H201: 93.92 | I201: 96.23 | J201: 99.22 | K201: 93.25 | L201: 87.95 | M201: 152.11901
A202: 193 | B202: TVSMOTOR | C202: 1454.1 | D202: 1442.85 | E202: 1425.30 | F202: 1396.50 | G202: 1378.95 | H202: 1471.65 | I202: 1489.20 | J202: 1518.00 | K202: 1460.4 | L202: 1414.05 | M202: 18.01951
A203: 194 | B203: UBL | C203: 1546.45 | D203: 1537.33 | E203: 1519.67 | F203: 1492.88 | G203: 1475.22 | H203: 1564.12 | I203: 1581.78 | J203: 1608.57 | K203: 1555 | L203: 1510.55 | M203: 1.68419
A204: 195 | B204: ULTRACEMCO | C204: 8262.4 | D204: 8285.47 | E204: 8225.93 | F204: 8189.47 | G204: 8129.93 | H204: 8321.93 | I204: 8381.47 | J204: 8417.93 | K204: 8345 | L204: 8249 | M204: 2.15635
A205: 196 | B205: UNIONBANK | C205: 86.1 | D205: 85.85 | E205: 85.10 | F205: 84.10 | G205: 83.35 | H205: 86.85 | I205: 87.60 | J205: 88.60 | K205: 86.6 | L205: 84.85 | M205: 239.52482
... 28 more rows

Sheet MidCap Intra
L5: Back To Main Page
A6: FOR INTRA DAY TRADING | K6: =Main!B10 -> 2023-09-04
A9: Sr.no | B9: Scrip | C9: CLOSE RATE | D9: Pivot Point | E9: Supports | H9: Resistances
E10: S1 | F10: S2 | G10: S3 | H10: R1 | I10: R2 | J10: R3 | K10: HIGH | L10: LOW | M10: Total Trade Quanity in Lakhs
A11: 1 | B11: 360ONE | C11: 477.6 | D11: 482.43 | E11: 470.17 | F11: 462.73 | G11: 450.47 | H11: 489.87 | I11: 502.13 | J11: 509.57 | K11: 494.7 | L11: 475 | M11: 9.69859
A12: 2 | B12: 3MINDIA | C12: 31151.35 | D12: 31184.12 | E12: 30968.23 | F12: 30785.12 | G12: 30569.23 | H12: 31367.23 | I12: 31583.12 | J12: 31766.23 | K12: 31400 | L12: 31001 | M12: 0.02486
A13: 3 | B13: AARTIDRUGS | C13: 569.6 | D13: 571.20 | E13: 564.45 | F13: 559.30 | G13: 552.55 | H13: 576.35 | I13: 583.10 | J13: 588.25 | K13: 577.95 | L13: 566.05 | M13: 1.70897
A14: 4 | B14: AARTIIND | C14: 491.05 | D14: 493.13 | E14: 487.92 | F14: 484.78 | G14: 479.57 | H14: 496.27 | I14: 501.48 | J14: 504.62 | K14: 498.35 | L14: 490 | M14: 17.88907
A15: 5 | B15: AAVAS | C15: 1627.25 | D15: 1638.38 | E15: 1609.02 | F15: 1590.78 | G15: 1561.42 | H15: 1656.62 | I15: 1685.98 | J15: 1704.22 | K15: 1667.75 | L15: 1620.15 | M15: 2.09849
A16: 6 | B16: ABB | C16: 4291.45 | D16: 4320.48 | E16: 4241.97 | F16: 4192.48 | G16: 4113.97 | H16: 4369.97 | I16: 4448.48 | J16: 4497.97 | K16: 4399 | L16: 4271 | M16: 1.64901
A17: 7 | B17: ABBOTINDIA | C17: 22704.65 | D17: 22825.75 | E17: 22413.95 | F17: 22123.25 | G17: 21711.45 | H17: 23116.45 | I17: 23528.25 | J17: 23818.95 | K17: 23237.55 | L17: 22535.05 | M17: 0.18058
A18: 8 | B18: ACC | C18: 2011.25 | D18: 2012.97 | E18: 1988.28 | F18: 1965.32 | G18: 1940.63 | H18: 2035.93 | I18: 2060.62 | J18: 2083.58 | K18: 2037.65 | L18: 1990 | M18: 5.11773
A19: 9 | B19: ADANIENT | C19: 2450.05 | D19: 2431.87 | E19: 2398.18 | F19: 2346.32 | G19: 2312.63 | H19: 2483.73 | I19: 2517.42 | J19: 2569.28 | K19: 2465.55 | L19: 2380 | M19: 67.64397
A20: 10 | B20: ADANIGREEN | C20: 949.1 | D20: 937.08 | E20: 917.17 | F20: 885.23 | G20: 865.32 | H20: 969.02 | I20: 988.93 | J20: 1020.87 | K20: 957 | L20: 905.15 | M20: 40.96797
A21: 11 | B21: ADANIPORTS | C21: 799.5 | D21: 795.72 | E21: 783.43 | F21: 767.37 | G21: 755.08 | H21: 811.78 | I21: 824.07 | J21: 840.13 | K21: 808 | L21: 779.65 | M21: 119.00199
A22: 12 | B22: ADANIPOWER | C22: 330.25 | D22: 326.15 | E22: 316.35 | F22: 302.45 | G22: 292.65 | H22: 340.05 | I22: 349.85 | J22: 363.75 | K22: 335.95 | L22: 312.25 | M22: 248.63644
A23: 13 | B23: ATGL | C23: 633.85 | D23: 631.28 | E23: 623.57 | F23: 613.28 | G23: 605.57 | H23: 641.57 | I23: 649.28 | J23: 659.57 | K23: 639 | L23: 621 | M23: 9.87407
A24: 14 | B24: AWL | C24: 352.25 | D24: 352.42 | E24: 347.83 | F24: 343.42 | G24: 338.83 | H24: 356.83 | I24: 361.42 | J24: 365.83 | K24: 357 | L24: 348 | M24: 34.18923
A25: 15 | B25: ABCAPITAL | C25: 184.1 | D25: 183.03 | E25: 181.07 | F25: 178.03 | G25: 176.07 | H25: 186.07 | I25: 188.03 | J25: 191.07 | K25: 185 | L25: 180 | M25: 63.10913
A26: 16 | B26: ABFRL | C26: 218.35 | D26: 218.95 | E26: 216.90 | F26: 215.45 | G26: 213.40 | H26: 220.40 | I26: 222.45 | J26: 223.90 | K26: 221 | L26: 217.5 | M26: 17.09014
A27: 17 | B27: AEGISCHEM | C27: 368.45 | D27: 369.92 | E27: 365.83 | F27: 363.22 | G27: 359.13 | H27: 372.53 | I27: 376.62 | J27: 379.23 | K27: 374 | L27: 367.3 | M27: 2.70542
A28: 18 | B28: AETHER | C28: 990.75 | D28: 995.22 | E28: 973.43 | F28: 956.12 | G28: 934.33 | H28: 1012.53 | I28: 1034.32 | J28: 1051.63 | K28: 1017 | L28: 977.9 | M28: 2.65235
A29: 19 | B29: AFFLE | C29: 1077.85 | D29: 1083.12 | E29: 1069.68 | F29: 1061.52 | G29: 1048.08 | H29: 1091.28 | I29: 1104.72 | J29: 1112.88 | K29: 1096.55 | L29: 1074.95 | M29: 2.03086
A30: 20 | B30: AIAENG | C30: 3703.8 | D30: 3709.27 | E30: 3674.53 | F30: 3645.27 | G30: 3610.53 | H30: 3738.53 | I30: 3773.27 | J30: 3802.53 | K30: 3744 | L30: 3680 | M30: 0.56865
A31: 21 | B31: AJANTPHARM | C31: 1718.35 | D31: 1721.73 | E31: 1704.62 | F31: 1690.88 | G31: 1673.77 | H31: 1735.47 | I31: 1752.58 | J31: 1766.32 | K31: 1738.85 | L31: 1708 | M31: 0.74254
A32: 22 | B32: APLLTD | C32: 770.5 | D32: 769.72 | E32: 761.08 | F32: 751.67 | G32: 743.03 | H32: 779.13 | I32: 787.77 | J32: 797.18 | K32: 778.35 | L32: 760.3 | M32: 0.46719
A33: 23 | B33: ALKEM | C33: 3614.75 | D33: 3627.78 | E33: 3593.57 | F33: 3572.38 | G33: 3538.17 | H33: 3648.97 | I33: 3683.18 | J33: 3704.37 | K33: 3662 | L33: 3606.6 | M33: 2.47511
A34: 24 | B34: ALKYLAMINE | C34: 2489.9 | D34: 2497.30 | E34: 2469.60 | F34: 2449.30 | G34: 2421.60 | H34: 2517.60 | I34: 2545.30 | J34: 2565.60 | K34: 2525 | L34: 2477 | M34: 0.30554
A35: 25 | B35: AMARAJABAT | C35: 625.55 | D35: 627.45 | E35: 623.10 | F35: 620.65 | G35: 616.30 | H35: 629.90 | I35: 634.25 | J35: 636.70 | K35: 631.8 | L35: 625 | M35: 4.79559
A36: 26 | B36: AMBER | C36: 2972.2 | D36: 3002.13 | E36: 2912.32 | F36: 2852.43 | G36: 2762.62 | H36: 3062.02 | I36: 3151.83 | J36: 3211.72 | K36: 3091.95 | L36: 2942.25 | M36: 5.05191
A37: 27 | B37: AMBUJACEM | C37: 433.9 | D37: 432.27 | E37: 427.13 | F37: 420.37 | G37: 415.23 | H37: 439.03 | I37: 444.17 | J37: 450.93 | K37: 437.4 | L37: 425.5 | M37: 38.46763
A38: 28 | B38: ANGELONE | C38: 1915.25 | D38: 1912.93 | E38: 1888.62 | F38: 1861.98 | G38: 1837.67 | H38: 1939.57 | I38: 1963.88 | J38: 1990.52 | K38: 1937.25 | L38: 1886.3 | M38: 10.75423
A39: 29 | B39: ANURAS | C39: 1005.15 | D39: 1003.82 | E39: 997.88 | F39: 990.62 | G39: 984.68 | H39: 1011.08 | I39: 1017.02 | J39: 1024.28 | K39: 1009.75 | L39: 996.55 | M39: 0.726
A40: 30 | B40: APARINDS | C40: 4957.4 | D40: 4964.10 | E40: 4893.30 | F40: 4829.20 | G40: 4758.40 | H40: 5028.20 | I40: 5099.00 | J40: 5163.10 | K40: 5034.9 | L40: 4900 | M40: 1.06316
A41: 31 | B41: APLAPOLLO | C41: 1729.5 | D41: 1711.25 | E41: 1681.50 | F41: 1633.50 | G41: 1603.75 | H41: 1759.25 | I41: 1789.00 | J41: 1837.00 | K41: 1741 | L41: 1663.25 | M41: 10.30008
A42: 32 | B42: APOLLOHOSP | C42: 4840.35 | D42: 4830.50 | E42: 4811.05 | F42: 4781.75 | G42: 4762.30 | H42: 4859.80 | I42: 4879.25 | J42: 4908.55 | K42: 4849.95 | L42: 4801.2 | M42: 2.06097
A43: 33 | B43: APOLLOTYRE | C43: 384.75 | D43: 386.37 | E43: 382.18 | F43: 379.62 | G43: 375.43 | H43: 388.93 | I43: 393.12 | J43: 395.68 | K43: 390.55 | L43: 383.8 | M43: 26.01429
A44: 34 | B44: APTUS | C44: 268.4 | D44: 268.90 | E44: 266.30 | F44: 264.20 | G44: 261.60 | H44: 271.00 | I44: 273.60 | J44: 275.70 | K44: 271.5 | L44: 266.8 | M44: 2.20261
A45: 35 | B45: ACI | C45: 664.3 | D45: 670.43 | E45: 655.87 | F45: 647.43 | G45: 632.87 | H45: 678.87 | I45: 693.43 | J45: 701.87 | K45: 685 | L45: 662 | M45: 2.13625
A46: 36 | B46: ASAHIINDIA | C46: 587.55 | D46: 588.52 | E46: 581.03 | F46: 574.52 | G46: 567.03 | H46: 595.03 | I46: 602.52 | J46: 609.03 | K46: 596 | L46: 582 | M46: 0.74587
A47: 37 | B47: ASHOKLEY | C47: 184.2 | D47: 183.53 | E47: 181.67 | F47: 179.13 | G47: 177.27 | H47: 186.07 | I47: 187.93 | J47: 190.47 | K47: 185.4 | L47: 181 | M47: 137.76902
A48: 38 | B48: ASIANPAINT | C48: 3259.55 | D48: 3246.95 | E48: 3229.70 | F48: 3199.85 | G48: 3182.60 | H48: 3276.80 | I48: 3294.05 | J48: 3323.90 | K48: 3264.2 | L48: 3217.1 | M48: 6.50131
A49: 39 | B49: ASTERDM | C49: 329.95 | D49: 329.97 | E49: 326.03 | F49: 322.12 | G49: 318.18 | H49: 333.88 | I49: 337.82 | J49: 341.73 | K49: 333.9 | L49: 326.05 | M49: 2.61323
A50: 40 | B50: ASTRAL | C50: 1911.1 | D50: 1924.25 | E50: 1891.95 | F50: 1872.80 | G50: 1840.50 | H50: 1943.40 | I50: 1975.70 | J50: 1994.85 | K50: 1956.55 | L50: 1905.1 | M50: 7.80141
A51: 41 | B51: ATUL | C51: 7354.35 | D51: 7354.47 | E51: 7323.98 | F51: 7293.62 | G51: 7263.13 | H51: 7384.83 | I51: 7415.32 | J51: 7445.68 | K51: 7384.95 | L51: 7324.1 | M51: 0.33168
A52: 42 | B52: AUBANK | C52: 725.65 | D52: 726.42 | E52: 718.63 | F52: 711.62 | G52: 703.83 | H52: 733.43 | I52: 741.22 | J52: 748.23 | K52: 734.2 | L52: 719.4 | M52: 15.24424
A53: 43 | B53: AUROPHARMA | C53: 825.55 | D53: 827.95 | E53: 816.95 | F53: 808.35 | G53: 797.35 | H53: 836.55 | I53: 847.55 | J53: 856.15 | K53: 838.95 | L53: 819.35 | M53: 10.64301
A54: 44 | B54: AVANTIFEED | C54: 438.15 | D54: 438.65 | E54: 433.50 | F54: 428.85 | G54: 423.70 | H54: 443.30 | I54: 448.45 | J54: 453.10 | K54: 443.8 | L54: 434 | M54: 5.48522
A55: 45 | B55: DMART | C55: 3761.05 | D55: 3747.35 | E55: 3729.70 | F55: 3698.35 | G55: 3680.70 | H55: 3778.70 | I55: 3796.35 | J55: 3827.70 | K55: 3765 | L55: 3716 | M55: 3.61003
A56: 46 | B56: AXISBANK | C56: 991.15 | D56: 984.38 | E56: 975.77 | F56: 960.38 | G56: 951.77 | H56: 999.77 | I56: 1008.38 | J56: 1023.77 | K56: 993 | L56: 969 | M56: 109.46742
A57: 47 | B57: BAJAJ-AUTO | C57: 4668.45 | D57: 4662.15 | E57: 4625.30 | F57: 4582.15 | G57: 4545.30 | H57: 4705.30 | I57: 4742.15 | J57: 4785.30 | K57: 4699 | L57: 4619 | M57: 4.56071
A58: 48 | B58: BAJFINANCE | C58: 7320.6 | D58: 7268.33 | E58: 7207.27 | F58: 7093.93 | G58: 7032.87 | H58: 7381.67 | I58: 7442.73 | J58: 7556.07 | K58: 7329.4 | L58: 7155 | M58: 6.76076
A59: 49 | B59: BAJAJFINSV | C59: 1514.5 | D59: 1506.85 | E59: 1495.00 | F59: 1475.50 | G59: 1463.65 | H59: 1526.35 | I59: 1538.20 | J59: 1557.70 | K59: 1518.7 | L59: 1487.35 | M59: 9.04596
A60: 50 | B60: BAJAJHLDNG | C60: 7340.8 | D60: 7371.87 | E60: 7275.73 | F60: 7210.67 | G60: 7114.53 | H60: 7436.93 | I60: 7533.07 | J60: 7598.13 | K60: 7468 | L60: 7306.8 | M60: 0.16812
A61: 51 | B61: BALAMINES | C61: 2226.8 | D61: 2224.93 | E61: 2202.87 | F61: 2178.93 | G61: 2156.87 | H61: 2248.87 | I61: 2270.93 | J61: 2294.87 | K61: 2247 | L61: 2201 | M61: 1.25266
A62: 52 | B62: BALKRISIND | C62: 2361.8 | D62: 2350.38 | E62: 2334.62 | F62: 2307.43 | G62: 2291.67 | H62: 2377.57 | I62: 2393.33 | J62: 2420.52 | K62: 2366.15 | L62: 2323.2 | M62: 1.00941
A63: 53 | B63: BALRAMCHIN | C63: 395.5 | D63: 395.23 | E63: 390.57 | F63: 385.63 | G63: 380.97 | H63: 400.17 | I63: 404.83 | J63: 409.77 | K63: 399.9 | L63: 390.3 | M63: 15.96821
A64: 54 | B64: BANDHANBNK | C64: 235.1 | D64: 233.57 | E64: 230.88 | F64: 226.67 | G64: 223.98 | H64: 237.78 | I64: 240.47 | J64: 244.68 | K64: 236.25 | L64: 229.35 | M64: 81.57237
A65: 55 | B65: BANKBARODA | C65: 190.6 | D65: 189.57 | E65: 187.33 | F65: 184.07 | G65: 181.83 | H65: 192.83 | I65: 195.07 | J65: 198.33 | K65: 191.8 | L65: 186.3 | M65: 158.38571
A66: 56 | B66: BANKINDIA | C66: 88 | D66: 87.25 | E66: 86.00 | F66: 84.00 | G66: 82.75 | H66: 89.25 | I66: 90.50 | J66: 92.50 | K66: 88.5 | L66: 85.25 | M66: 104.11546
A67: 57 | B67: MAHABANK | C67: 38.35 | D67: 38.32 | E67: 37.78 | F67: 37.22 | G67: 36.68 | H67: 38.88 | I67: 39.42 | J67: 39.98 | K67: 38.85 | L67: 37.75 | M67: 305.06396
A68: 58 | B68: BASF | C68: 2628.55 | D68: 2636.32 | E68: 2611.33 | F68: 2594.12 | G68: 2569.13 | H68: 2653.53 | I68: 2678.52 | J68: 2695.73 | K68: 2661.3 | L68: 2619.1 | M68: 0.09238
A69: 59 | B69: BATAINDIA | C69: 1684.2 | D69: 1685.25 | E69: 1675.50 | F69: 1666.80 | G69: 1657.05 | H69: 1693.95 | I69: 1703.70 | J69: 1712.40 | K69: 1695 | L69: 1676.55 | M69: 1.89008
A70: 60 | B70: BAYERCROP | C70: 4790.45 | D70: 4806.48 | E70: 4762.97 | F70: 4735.48 | G70: 4691.97 | H70: 4833.97 | I70: 4877.48 | J70: 4904.97 | K70: 4850 | L70: 4779 | M70: 0.18182
A71: 61 | B71: BEML | C71: 2495.2 | D71: 2495.02 | E71: 2440.53 | F71: 2385.87 | G71: 2331.38 | H71: 2549.68 | I71: 2604.17 | J71: 2658.83 | K71: 2549.5 | L71: 2440.35 | M71: 8.17888
A72: 62 | B72: BERGEPAINT | C72: 719.85 | D72: 717.47 | E72: 713.93 | F72: 708.02 | G72: 704.48 | H72: 723.38 | I72: 726.92 | J72: 732.83 | K72: 721 | L72: 711.55 | M72: 6.1534
A73: 63 | B73: BDL | C73: 1143.5 | D73: 1141.85 | E73: 1129.65 | F73: 1115.80 | G73: 1103.60 | H73: 1155.70 | I73: 1167.90 | J73: 1181.75 | K73: 1154.05 | L73: 1128 | M73: 10.42444
A74: 64 | B74: BEL | C74: 137.85 | D74: 136.72 | E74: 135.03 | F74: 132.22 | G74: 130.53 | H74: 139.53 | I74: 141.22 | J74: 144.03 | K74: 138.4 | L74: 133.9 | M74: 234.15545
A75: 65 | B75: BHARATFORG | C75: 1078.8 | D75: 1071.62 | E75: 1063.13 | F75: 1047.47 | G75: 1038.98 | H75: 1087.28 | I75: 1095.77 | J75: 1111.43 | K75: 1080.1 | L75: 1055.95 | M75: 8.90014
A76: 66 | B76: BHEL | C76: 136.15 | D76: 131.55 | E76: 126.00 | F76: 115.85 | G76: 110.30 | H76: 141.70 | I76: 147.25 | J76: 157.40 | K76: 137.1 | L76: 121.4 | M76: 1922.80009
A77: 67 | B77: BPCL | C77: 344.2 | D77: 343.22 | E77: 341.53 | F77: 338.87 | G77: 337.18 | H77: 345.88 | I77: 347.57 | J77: 350.23 | K77: 344.9 | L77: 340.55 | M77: 49.90376
A78: 68 | B78: BHARTIARTL | C78: 865.95 | D78: 862.08 | E78: 856.62 | F78: 847.28 | G78: 841.82 | H78: 871.42 | I78: 876.88 | J78: 886.22 | K78: 867.55 | L78: 852.75 | M78: 44.27899
A79: 69 | B79: BIKAJI | C79: 487.05 | D79: 490.68 | E79: 480.97 | F79: 474.88 | G79: 465.17 | H79: 496.77 | I79: 506.48 | J79: 512.57 | K79: 500.4 | L79: 484.6 | M79: 6.43697
A80: 70 | B80: BIOCON | C80: 260.8 | D80: 260.98 | E80: 258.62 | F80: 256.43 | G80: 254.07 | H80: 263.17 | I80: 265.53 | J80: 267.72 | K80: 263.35 | L80: 258.8 | M80: 20.1558
A81: 71 | B81: BIRLACORPN | C81: 1171.1 | D81: 1161.37 | E81: 1146.23 | F81: 1121.37 | G81: 1106.23 | H81: 1186.23 | I81: 1201.37 | J81: 1226.23 | K81: 1176.5 | L81: 1136.5 | M81: 0.9967
A82: 72 | B82: BSOFT | C82: 528.35 | D82: 522.42 | E82: 513.93 | F82: 499.52 | G82: 491.03 | H82: 536.83 | I82: 545.32 | J82: 559.73 | K82: 530.9 | L82: 508 | M82: 32.48231
A83: 73 | B83: BLS | C83: 285.75 | D83: 287.40 | E83: 282.85 | F83: 279.95 | G83: 275.40 | H83: 290.30 | I83: 294.85 | J83: 297.75 | K83: 291.95 | L83: 284.5 | M83: 11.87799
A84: 74 | B84: BLUEDART | C84: 6282.25 | D84: 6304.08 | E84: 6218.17 | F84: 6154.08 | G84: 6068.17 | H84: 6368.17 | I84: 6454.08 | J84: 6518.17 | K84: 6390 | L84: 6240 | M84: 0.31717
A85: 75 | B85: BLUESTARCO | C85: 745.25 | D85: 740.40 | E85: 732.90 | F85: 720.55 | G85: 713.05 | H85: 752.75 | I85: 760.25 | J85: 772.60 | K85: 747.9 | L85: 728.05 | M85: 0.68636
A86: 76 | B86: BBTC | C86: 979.5 | D86: 987.22 | E86: 969.43 | F86: 959.37 | G86: 941.58 | H86: 997.28 | I86: 1015.07 | J86: 1025.13 | K86: 1005 | L86: 977.15 | M86: 0.4945
A87: 77 | B87: BORORENEW | C87: 444.25 | D87: 443.40 | E87: 437.90 | F87: 431.55 | G87: 426.05 | H87: 449.75 | I87: 455.25 | J87: 461.60 | K87: 448.9 | L87: 437.05 | M87: 3.61402
A88: 78 | B88: BOSCHLTD | C88: 18986.8 | D88: 18847.63 | E88: 18646.32 | F88: 18305.83 | G88: 18104.52 | H88: 19188.12 | I88: 19389.43 | J88: 19729.92 | K88: 19048.95 | L88: 18507.15 | M88: 0.24442
A89: 79 | B89: BRIGADE | C89: 595 | D89: 595.03 | E89: 590.07 | F89: 585.13 | G89: 580.17 | H89: 599.97 | I89: 604.93 | J89: 609.87 | K89: 600 | L89: 590.1 | M89: 0.84373
A90: 80 | B90: BCG | C90: 16.15 | D90: 16.15 | E90: 16.15 | F90: 16.15 | G90: 16.15 | H90: 16.15 | I90: 16.15 | J90: 16.15 | K90: 16.15 | L90: 16.15 | M90: 24.77749
A91: 81 | B91: BRITANNIA | C91: 4484.35 | D91: 4467.43 | E91: 4442.92 | F91: 4401.48 | G91: 4376.97 | H91: 4508.87 | I91: 4533.38 | J91: 4574.82 | K91: 4491.95 | L91: 4426 | M91: 3.83124
A92: 82 | B92: BSE | C92: 1126.15 | D92: 1096.32 | E92: 1053.83 | F92: 981.52 | G92: 939.03 | H92: 1168.63 | I92: 1211.12 | J92: 1283.43 | K92: 1138.8 | L92: 1024 | M92: 100.33291
A93: 83 | B93: MAPMYINDIA | C93: 1730.7 | D93: 1736.45 | E93: 1708.20 | F93: 1685.70 | G93: 1657.45 | H93: 1758.95 | I93: 1787.20 | J93: 1809.70 | K93: 1764.7 | L93: 1713.95 | M93: 0.95774
A94: 84 | B94: CAMPUS | C94: 303.75 | D94: 302.83 | E94: 301.47 | F94: 299.18 | G94: 297.82 | H94: 305.12 | I94: 306.48 | J94: 308.77 | K94: 304.2 | L94: 300.55 | M94: 5.39464
A95: 85 | B95: CANFINHOME | C95: 760 | D95: 756.87 | E95: 748.73 | F95: 737.47 | G95: 729.33 | H95: 768.13 | I95: 776.27 | J95: 787.53 | K95: 765 | L95: 745.6 | M95: 5.9615
A96: 86 | B96: CANBK | C96: 328.4 | D96: 326.15 | E96: 321.95 | F96: 315.50 | G96: 311.30 | H96: 332.60 | I96: 336.80 | J96: 343.25 | K96: 330.35 | L96: 319.7 | M96: 72.24028
A97: 87 | B97: CGCL | C97: 806.25 | D97: 797.47 | E97: 783.93 | F97: 761.62 | G97: 748.08 | H97: 819.78 | I97: 833.32 | J97: 855.63 | K97: 811 | L97: 775.15 | M97: 1.43443
A98: 88 | B98: CARBORUNIV | C98: 1136.35 | D98: 1130.10 | E98: 1118.30 | F98: 1100.25 | G98: 1088.45 | H98: 1148.15 | I98: 1159.95 | J98: 1178.00 | K98: 1141.9 | L98: 1112.05 | M98: 1.76873
A99: 89 | B99: CASTROLIND | C99: 142.95 | D99: 143.72 | E99: 141.63 | F99: 140.32 | G99: 138.23 | H99: 145.03 | I99: 147.12 | J99: 148.43 | K99: 145.8 | L99: 142.4 | M99: 11.14299
A100: 90 | B100: CCL | C100: 604.25 | D100: 605.03 | E100: 599.32 | F100: 594.38 | G100: 588.67 | H100: 609.97 | I100: 615.68 | J100: 620.62 | K100: 610.75 | L100: 600.1 | M100: 2.49272
A101: 91 | B101: CEATLTD | C101: 2256.05 | D101: 2260.03 | E101: 2245.02 | F101: 2233.98 | G101: 2218.97 | H101: 2271.07 | I101: 2286.08 | J101: 2297.12 | K101: 2275.05 | L101: 2249 | M101: 0.54822
A102: 92 | B102: CENTRALBK | C102: 34.95 | D102: 34.75 | E102: 34.30 | F102: 33.65 | G102: 33.20 | H102: 35.40 | I102: 35.85 | J102: 36.50 | K102: 35.2 | L102: 34.1 | M102: 134.50855
A103: 93 | B103: CDSL | C103: 1141.45 | D103: 1135.60 | E103: 1113.20 | F103: 1084.95 | G103: 1062.55 | H103: 1163.85 | I103: 1186.25 | J103: 1214.50 | K103: 1158 | L103: 1107.35 | M103: 8.94687
A104: 94 | B104: CENTURYPLY | C104: 691.4 | D104: 692.35 | E104: 681.65 | F104: 671.90 | G104: 661.20 | H104: 702.10 | I104: 712.80 | J104: 722.55 | K104: 703.05 | L104: 682.6 | M104: 2.22375
A105: 95 | B105: CENTURYTEX | C105: 1072.05 | D105: 1059.77 | E105: 1042.03 | F105: 1012.02 | G105: 994.28 | H105: 1089.78 | I105: 1107.52 | J105: 1137.53 | K105: 1077.5 | L105: 1029.75 | M105: 2.92271
A106: 96 | B106: CERA | C106: 9546.3 | D106: 9571.10 | E106: 9402.20 | F106: 9258.10 | G106: 9089.20 | H106: 9715.20 | I106: 9884.10 | J106: 10028.20 | K106: 9740 | L106: 9427 | M106: 0.23178
A107: 97 | B107: CESC | C107: 86.45 | D107: 85.88 | E107: 84.07 | F107: 81.68 | G107: 79.87 | H107: 88.27 | I107: 90.08 | J107: 92.47 | K107: 87.7 | L107: 83.5 | M107: 125.20419
A108: 98 | B108: CGPOWER | C108: 423.95 | D108: 422.18 | E108: 418.37 | F108: 412.78 | G108: 408.97 | H108: 427.77 | I108: 431.58 | J108: 437.17 | K108: 426 | L108: 416.6 | M108: 21.90945
A109: 99 | B109: CHALET | C109: 540.75 | D109: 543.22 | E109: 534.68 | F109: 528.62 | G109: 520.08 | H109: 549.28 | I109: 557.82 | J109: 563.88 | K109: 551.75 | L109: 537.15 | M109: 1.33675
A110: 100 | B110: CHAMBLFERT | C110: 278.95 | D110: 277.85 | E110: 275.70 | F110: 272.45 | G110: 270.30 | H110: 281.10 | I110: 283.25 | J110: 286.50 | K110: 280 | L110: 274.6 | M110: 14.76792
A111: 101 | B111: CHEMPLASTS | C111: 528.55 | D111: 526.23 | E111: 519.62 | F111: 510.68 | G111: 504.07 | H111: 535.17 | I111: 541.78 | J111: 550.72 | K111: 532.85 | L111: 517.3 | M111: 1.78396
A112: 102 | B112: CHOLAHLDNG | C112: 963.85 | D112: 967.98 | E112: 951.97 | F112: 940.08 | G112: 924.07 | H112: 979.87 | I112: 995.88 | J112: 1007.77 | K112: 984 | L112: 956.1 | M112: 1.16265
A113: 103 | B113: CHOLAFIN | C113: 1128.85 | D113: 1126.45 | E113: 1118.90 | F113: 1108.95 | G113: 1101.40 | H113: 1136.40 | I113: 1143.95 | J113: 1153.90 | K113: 1134 | L113: 1116.5 | M113: 8.81841
A114: 104 | B114: CIEINDIA | C114: 519.45 | D114: 521.87 | E114: 512.63 | F114: 505.82 | G114: 496.58 | H114: 528.68 | I114: 537.92 | J114: 544.73 | K114: 531.1 | L114: 515.05 | M114: 4.78728
A115: 105 | B115: CIPLA | C115: 1245.4 | D115: 1251.32 | E115: 1233.73 | F115: 1222.07 | G115: 1204.48 | H115: 1262.98 | I115: 1280.57 | J115: 1292.23 | K115: 1268.9 | L115: 1239.65 | M115: 11.67597
A116: 106 | B116: CUB | C116: 125.6 | D116: 124.97 | E116: 124.03 | F116: 122.47 | G116: 121.53 | H116: 126.53 | I116: 127.47 | J116: 129.03 | K116: 125.9 | L116: 123.4 | M116: 44.01592
A117: 107 | B117: CLEAN | C117: 1412.15 | D117: 1416.38 | E117: 1403.77 | F117: 1395.38 | G117: 1382.77 | H117: 1424.77 | I117: 1437.38 | J117: 1445.77 | K117: 1429 | L117: 1408 | M117: 0.78848
A118: 108 | B118: COALINDIA | C118: 236.9 | D118: 234.93 | E118: 232.62 | F118: 228.33 | G118: 226.02 | H118: 239.22 | I118: 241.53 | J118: 245.82 | K118: 237.25 | L118: 230.65 | M118: 148.69577
A119: 109 | B119: COCHINSHIP | C119: 908.5 | D119: 907.87 | E119: 893.73 | F119: 878.97 | G119: 864.83 | H119: 922.63 | I119: 936.77 | J119: 951.53 | K119: 922 | L119: 893.1 | M119: 36.80131
A120: 110 | B120: COFORGE | C120: 5451.9 | D120: 5461.88 | E120: 5417.37 | F120: 5382.83 | G120: 5338.32 | H120: 5496.42 | I120: 5540.93 | J120: 5575.47 | K120: 5506.4 | L120: 5427.35 | M120: 3.64138
A121: 111 | B121: COLPAL | C121: 1939.4 | D121: 1934.90 | E121: 1918.50 | F121: 1897.60 | G121: 1881.20 | H121: 1955.80 | I121: 1972.20 | J121: 1993.10 | K121: 1951.3 | L121: 1914 | M121: 6.61806
A122: 112 | B122: CAMS | C122: 2356.1 | D122: 2365.65 | E122: 2341.45 | F122: 2326.80 | G122: 2302.60 | H122: 2380.30 | I122: 2404.50 | J122: 2419.15 | K122: 2389.85 | L122: 2351 | M122: 0.4942
A123: 113 | B123: CONCOR | C123: 687 | D123: 683.48 | E123: 675.92 | F123: 664.83 | G123: 657.27 | H123: 694.57 | I123: 702.13 | J123: 713.22 | K123: 691.05 | L123: 672.4 | M123: 9.71508
A124: 114 | B124: COROMANDEL | C124: 1111 | D124: 1105.32 | E124: 1092.68 | F124: 1074.37 | G124: 1061.73 | H124: 1123.63 | I124: 1136.27 | J124: 1154.58 | K124: 1117.95 | L124: 1087 | M124: 3.88422
A125: 115 | B125: CRAFTSMAN | C125: 4895.25 | D125: 4922.55 | E125: 4850.20 | F125: 4805.15 | G125: 4732.80 | H125: 4967.60 | I125: 5039.95 | J125: 5085.00 | K125: 4994.9 | L125: 4877.5 | M125: 0.12429
A126: 116 | B126: CREDITACC | C126: 1409.2 | D126: 1409.78 | E126: 1394.72 | F126: 1380.23 | G126: 1365.17 | H126: 1424.27 | I126: 1439.33 | J126: 1453.82 | K126: 1424.85 | L126: 1395.3 | M126: 1.38366
A127: 117 | B127: CRISIL | C127: 3929.05 | D127: 3932.35 | E127: 3891.70 | F127: 3854.35 | G127: 3813.70 | H127: 3969.70 | I127: 4010.35 | J127: 4047.70 | K127: 3973 | L127: 3895 | M127: 0.28574
A128: 118 | B128: CROMPTON | C128: 303.05 | D128: 302.38 | E128: 299.87 | F128: 296.68 | G128: 294.17 | H128: 305.57 | I128: 308.08 | J128: 311.27 | K128: 304.9 | L128: 299.2 | M128: 13.73585
A129: 119 | B129: CSBBANK | C129: 327.25 | D129: 328.30 | E129: 324.60 | F129: 321.95 | G129: 318.25 | H129: 330.95 | I129: 334.65 | J129: 337.30 | K129: 332 | L129: 325.65 | M129: 1.45918
A130: 120 | B130: CUMMINSIND | C130: 1706 | D130: 1696.30 | E130: 1681.60 | F130: 1657.20 | G130: 1642.50 | H130: 1720.70 | I130: 1735.40 | J130: 1759.80 | K130: 1711 | L130: 1671.9 | M130: 8.81138
A131: 121 | B131: CYIENT | C131: 1709.75 | D131: 1708.48 | E131: 1638.62 | F131: 1567.48 | G131: 1497.62 | H131: 1779.62 | I131: 1849.48 | J131: 1920.62 | K131: 1778.35 | L131: 1637.35 | M131: 11.88764
A132: 122 | B132: DABUR | C132: 553.35 | D132: 553.23 | E132: 550.52 | F132: 547.68 | G132: 544.97 | H132: 556.07 | I132: 558.78 | J132: 561.62 | K132: 555.95 | L132: 550.4 | M132: 9.24117
A133: 123 | B133: DALBHARAT | C133: 2123.55 | D133: 2109.47 | E133: 2083.93 | F133: 2044.32 | G133: 2018.78 | H133: 2149.08 | I133: 2174.62 | J133: 2214.23 | K133: 2135 | L133: 2069.85 | M133: 2.99204
A134: 124 | B134: DATAPATTNS | C134: 2469.8 | D134: 2443.10 | E134: 2401.20 | F134: 2332.60 | G134: 2290.70 | H134: 2511.70 | I134: 2553.60 | J134: 2622.20 | K134: 2485 | L134: 2374.5 | M134: 5.51556
A135: 125 | B135: DCMSHRIRAM | C135: 1034.55 | D135: 1029.73 | E135: 940.97 | F135: 847.38 | G135: 758.62 | H135: 1123.32 | I135: 1212.08 | J135: 1305.67 | K135: 1118.5 | L135: 936.15 | M135: 20.14118
A136: 126 | B136: DEEPAKFERT | C136: 603.75 | D136: 605.72 | E136: 599.43 | F136: 595.12 | G136: 588.83 | H136: 610.03 | I136: 616.32 | J136: 620.63 | K136: 612 | L136: 601.4 | M136: 6.38449
A137: 127 | B137: DEEPAKNTR | C137: 2226.05 | D137: 2221.02 | E137: 2208.98 | F137: 2191.92 | G137: 2179.88 | H137: 2238.08 | I137: 2250.12 | J137: 2267.18 | K137: 2233.05 | L137: 2203.95 | M137: 3.25696
A138: 128 | B138: DELHIVERY | C138: 438.15 | D138: 437.85 | E138: 433.40 | F138: 428.65 | G138: 424.20 | H138: 442.60 | I138: 447.05 | J138: 451.80 | K138: 442.3 | L138: 433.1 | M138: 7.13691
A139: 129 | B139: DELTACORP | C139: 182.7 | D139: 182.23 | E139: 181.22 | F139: 179.73 | G139: 178.72 | H139: 183.72 | I139: 184.73 | J139: 186.22 | K139: 183.25 | L139: 180.75 | M139: 26.75302
A140: 130 | B140: DEVYANI | C140: 197.05 | D140: 197.25 | E140: 195.50 | F140: 193.95 | G140: 192.20 | H140: 198.80 | I140: 200.55 | J140: 202.10 | K140: 199 | L140: 195.7 | M140: 13.93506
A141: 131 | B141: DIVISLAB | C141: 3589.3 | D141: 3573.02 | E141: 3546.03 | F141: 3502.77 | G141: 3475.78 | H141: 3616.28 | I141: 3643.27 | J141: 3686.53 | K141: 3600 | L141: 3529.75 | M141: 5.8629
A142: 132 | B142: DIXON | C142: 5057.25 | D142: 5070.28 | E142: 4977.57 | F142: 4897.88 | G142: 4805.17 | H142: 5149.97 | I142: 5242.68 | J142: 5322.37 | K142: 5163 | L142: 4990.6 | M142: 5.77891
A143: 133 | B143: DLF | C143: 503.25 | D143: 504.35 | E143: 499.20 | F143: 495.15 | G143: 490.00 | H143: 508.40 | I143: 513.55 | J143: 517.60 | K143: 509.5 | L143: 500.3 | M143: 30.4408
A144: 134 | B144: LALPATHLAB | C144: 2201.25 | D144: 2189.50 | E144: 2169.00 | F144: 2136.75 | G144: 2116.25 | H144: 2221.75 | I144: 2242.25 | J144: 2274.50 | K144: 2210 | L144: 2157.25 | M144: 1.11459
A145: 135 | B145: DRREDDY | C145: 5578.55 | D145: 5587.63 | E145: 5541.02 | F145: 5503.48 | G145: 5456.87 | H145: 5625.17 | I145: 5671.78 | J145: 5709.32 | K145: 5634.25 | L145: 5550.1 | M145: 2.21056
A146: 136 | B146: EIDPARRY | C146: 477.1 | D146: 477.72 | E146: 474.38 | F146: 471.67 | G146: 468.33 | H146: 480.43 | I146: 483.77 | J146: 486.48 | K146: 481.05 | L146: 475 | M146: 2.86359
A147: 137 | B147: EASEMYTRIP | C147: 40.8 | D147: 41.10 | E147: 40.20 | F147: 39.60 | G147: 38.70 | H147: 41.70 | I147: 42.60 | J147: 43.20 | K147: 42 | L147: 40.5 | M147: 224.57159
A148: 138 | B148: ECLERX | C148: 1624.75 | D148: 1621.45 | E148: 1610.30 | F148: 1595.85 | G148: 1584.70 | H148: 1635.90 | I148: 1647.05 | J148: 1661.50 | K148: 1632.6 | L148: 1607 | M148: 0.40969
A149: 139 | B149: EICHERMOT | C149: 3400.4 | D149: 3376.32 | E149: 3346.18 | F149: 3291.97 | G149: 3261.83 | H149: 3430.53 | I149: 3460.67 | J149: 3514.88 | K149: 3406.45 | L149: 3322.1 | M149: 6.9151
A150: 140 | B150: EIHOTEL | C150: 272.25 | D150: 265.35 | E150: 255.75 | F150: 239.25 | G150: 229.65 | H150: 281.85 | I150: 291.45 | J150: 307.95 | K150: 274.95 | L150: 248.85 | M150: 90.07478
A151: 141 | B151: ELGIEQUIP | C151: 493.4 | D151: 494.82 | E151: 489.63 | F151: 485.87 | G151: 480.68 | H151: 498.58 | I151: 503.77 | J151: 507.53 | K151: 500 | L151: 491.05 | M151: 2.8921
A152: 142 | B152: EMAMILTD | C152: 535.6 | D152: 537.72 | E152: 530.43 | F152: 525.27 | G152: 517.98 | H152: 542.88 | I152: 550.17 | J152: 555.33 | K152: 545 | L152: 532.55 | M152: 14.6654
A153: 143 | B153: ENDURANCE | C153: 1659.6 | D153: 1661.85 | E153: 1644.75 | F153: 1629.90 | G153: 1612.80 | H153: 1676.70 | I153: 1693.80 | J153: 1708.65 | K153: 1678.95 | L153: 1647 | M153: 1.49064
A154: 144 | B154: ENGINERSIN | C154: 157.75 | D154: 156.78 | E154: 154.57 | F154: 151.38 | G154: 149.17 | H154: 159.97 | I154: 162.18 | J154: 165.37 | K154: 159 | L154: 153.6 | M154: 36.91263
A155: 145 | B155: EPL | C155: 195.9 | D155: 196.45 | E155: 194.30 | F155: 192.70 | G155: 190.55 | H155: 198.05 | I155: 200.20 | J155: 201.80 | K155: 198.6 | L155: 194.85 | M155: 3.08682
A156: 146 | B156: EQUITASBNK | C156: 88.8 | D156: 89.50 | E156: 87.30 | F156: 85.80 | G156: 83.60 | H156: 91.00 | I156: 93.20 | J156: 94.70 | K156: 91.7 | L156: 88 | M156: 52.5398
A157: 147 | B157: ERIS | C157: 812.35 | D157: 815.78 | E157: 800.57 | F157: 788.78 | G157: 773.57 | H157: 827.57 | I157: 842.78 | J157: 854.57 | K157: 831 | L157: 804 | M157: 0.48239
A158: 148 | B158: ESCORTS | C158: 3133.9 | D158: 3133.93 | E158: 3072.87 | F158: 3011.83 | G158: 2950.77 | H158: 3194.97 | I158: 3256.03 | J158: 3317.07 | K158: 3195 | L158: 3072.9 | M158: 6.27016
A159: 149 | B159: EXIDEIND | C159: 265.75 | D159: 266.45 | E159: 263.50 | F159: 261.25 | G159: 258.30 | H159: 268.70 | I159: 271.65 | J159: 273.90 | K159: 269.4 | L159: 264.2 | M159: 17.34067
A160: 150 | B160: FDC | C160: 380.4 | D160: 379.70 | E160: 375.70 | F160: 371.00 | G160: 367.00 | H160: 384.40 | I160: 388.40 | J160: 393.10 | K160: 383.7 | L160: 375 | M160: 0.91803
A161: 151 | B161: FEDERALBNK | C161: 143.8 | D161: 143.43 | E161: 141.67 | F161: 139.53 | G161: 137.77 | H161: 145.57 | I161: 147.33 | J161: 149.47 | K161: 145.2 | L161: 141.3 | M161: 136.87325
A162: 152 | B162: FACT | C162: 467.2 | D162: 471.38 | E162: 459.82 | F162: 452.43 | G162: 440.87 | H162: 478.77 | I162: 490.33 | J162: 497.72 | K162: 482.95 | L162: 464 | M162: 8.721
A163: 153 | B163: FINEORG | C163: 4817.4 | D163: 4820.82 | E163: 4796.58 | F163: 4775.77 | G163: 4751.53 | H163: 4841.63 | I163: 4865.87 | J163: 4886.68 | K163: 4845.05 | L163: 4800 | M163: 0.22441
A164: 154 | B164: FINCABLES | C164: 1093.4 | D164: 1100.70 | E164: 1072.70 | F164: 1052.00 | G164: 1024.00 | H164: 1121.40 | I164: 1149.40 | J164: 1170.10 | K164: 1128.7 | L164: 1080 | M164: 3.97312
A165: 155 | B165: FINPIPE | C165: 248.05 | D165: 246.30 | E165: 242.60 | F165: 237.15 | G165: 233.45 | H165: 251.75 | I165: 255.45 | J165: 260.90 | K165: 250 | L165: 240.85 | M165: 25.92493
A166: 156 | B166: FSL | C166: 167.8 | D166: 169.20 | E166: 163.60 | F166: 159.40 | G166: 153.80 | H166: 173.40 | I166: 179.00 | J166: 183.20 | K166: 174.8 | L166: 165 | M166: 127.00402
A167: 157 | B167: FIVESTAR | C167: 728.25 | D167: 731.68 | E167: 721.67 | F167: 715.08 | G167: 705.07 | H167: 738.27 | I167: 748.28 | J167: 754.87 | K167: 741.7 | L167: 725.1 | M167: 52.80583
A168: 158 | B168: FORTIS | C168: 324.4 | D168: 327.18 | E168: 318.87 | F168: 313.33 | G168: 305.02 | H168: 332.72 | I168: 341.03 | J168: 346.57 | K168: 335.5 | L168: 321.65 | M168: 8.43338
A169: 159 | B169: NYKAA | C169: 135.45 | D169: 135.02 | E169: 134.18 | F169: 132.92 | G169: 132.08 | H169: 136.28 | I169: 137.12 | J169: 138.38 | K169: 135.85 | L169: 133.75 | M169: 63.75295
A170: 160 | B170: GRINFRA | C170: 1275.1 | D170: 1273.38 | E170: 1262.82 | F170: 1250.53 | G170: 1239.97 | H170: 1285.67 | I170: 1296.23 | J170: 1308.52 | K170: 1283.95 | L170: 1261.1 | M170: 0.19121
A171: 161 | B171: GAIL | C171: 121.35 | D171: 119.73 | E171: 117.17 | F171: 112.98 | G171: 110.42 | H171: 123.92 | I171: 126.48 | J171: 130.67 | K171: 122.3 | L171: 115.55 | M171: 319.91938
A172: 162 | B172: GALAXYSURF | C172: 2669.4 | D172: 2673.85 | E172: 2655.55 | F172: 2641.70 | G172: 2623.40 | H172: 2687.70 | I172: 2706.00 | J172: 2719.85 | K172: 2692.15 | L172: 2660 | M172: 0.0691
A173: 163 | B173: GARFIBRES | C173: 3187.25 | D173: 3197.85 | E173: 3171.75 | F173: 3156.25 | G173: 3130.15 | H173: 3213.35 | I173: 3239.45 | J173: 3254.95 | K173: 3223.95 | L173: 3182.35 | M173: 0.04732
A174: 164 | B174: GICRE | C174: 219.55 | D174: 219.37 | E174: 217.73 | F174: 215.92 | G174: 214.28 | H174: 221.18 | I174: 222.82 | J174: 224.63 | K174: 221 | L174: 217.55 | M174: 4.87737
A175: 165 | B175: GLAND | C175: 1768.1 | D175: 1765.80 | E175: 1720.75 | F175: 1673.40 | G175: 1628.35 | H175: 1813.15 | I175: 1858.20 | J175: 1905.55 | K175: 1810.85 | L175: 1718.45 | M175: 12.68319
A176: 166 | B176: GLAXO | C176: 1438.3 | D176: 1440.93 | E176: 1413.87 | F176: 1389.43 | G176: 1362.37 | H176: 1465.37 | I176: 1492.43 | J176: 1516.87 | K176: 1468 | L176: 1416.5 | M176: 1.14833
A177: 167 | B177: GLENMARK | C177: 757.05 | D177: 761.02 | E177: 750.03 | F177: 743.02 | G177: 732.03 | H177: 768.03 | I177: 779.02 | J177: 786.03 | K177: 772 | L177: 754 | M177: 6.02134
A178: 168 | B178: MEDANTA | C178: 706.75 | D178: 708.88 | E178: 700.87 | F178: 694.98 | G178: 686.97 | H178: 714.77 | I178: 722.78 | J178: 728.67 | K178: 716.9 | L178: 703 | M178: 1.19598
A179: 169 | B179: GMMPFAUDLR | C179: 1670.3 | D179: 1644.05 | E179: 1605.00 | F179: 1539.70 | G179: 1500.65 | H179: 1709.35 | I179: 1748.40 | J179: 1813.70 | K179: 1683.1 | L179: 1578.75 | M179: 12.59326
A180: 170 | B180: GMRINFRA | C180: 62.95 | D180: 62.48 | E180: 61.77 | F180: 60.58 | G180: 59.87 | H180: 63.67 | I180: 64.38 | J180: 65.57 | K180: 63.2 | L180: 61.3 | M180: 276.51099
A181: 171 | B181: GOCOLORS | C181: 1352.5 | D181: 1347.80 | E181: 1329.65 | F181: 1306.80 | G181: 1288.65 | H181: 1370.65 | I181: 1388.80 | J181: 1411.65 | K181: 1365.95 | L181: 1324.95 | M181: 0.35368
A182: 172 | B182: GODFRYPHLP | C182: 2132.35 | D182: 2148.80 | E182: 2109.65 | F182: 2086.95 | G182: 2047.80 | H182: 2171.50 | I182: 2210.65 | J182: 2233.35 | K182: 2187.95 | L182: 2126.1 | M182: 0.53365
A183: 173 | B183: GODREJAGRO | C183: 480.65 | D183: 480.12 | E183: 477.63 | F183: 474.62 | G183: 472.13 | H183: 483.13 | I183: 485.62 | J183: 488.63 | K183: 482.6 | L183: 477.1 | M183: 0.66522
A184: 174 | B184: GODREJCP | C184: 1005.35 | D184: 1006.12 | E184: 1000.28 | F184: 995.22 | G184: 989.38 | H184: 1011.18 | I184: 1017.02 | J184: 1022.08 | K184: 1011.95 | L184: 1001.05 | M184: 3.10557
A185: 175 | B185: GODREJIND | C185: 536.95 | D185: 536.63 | E185: 527.62 | F185: 518.28 | G185: 509.27 | H185: 545.97 | I185: 554.98 | J185: 564.32 | K185: 545.65 | L185: 527.3 | M185: 2.94404
A186: 176 | B186: GODREJPROP | C186: 1643.65 | D186: 1645.75 | E186: 1634.05 | F186: 1624.45 | G186: 1612.75 | H186: 1655.35 | I186: 1667.05 | J186: 1676.65 | K186: 1657.45 | L186: 1636.15 | M186: 3.28723
A187: 177 | B187: GRANULES | C187: 302.3 | D187: 301.35 | E187: 299.20 | F187: 296.10 | G187: 293.95 | H187: 304.45 | I187: 306.60 | J187: 309.70 | K187: 303.5 | L187: 298.25 | M187: 8.09021
A188: 178 | B188: GRAPHITE | C188: 476.55 | D188: 478.88 | E188: 470.92 | F188: 465.28 | G188: 457.32 | H188: 484.52 | I188: 492.48 | J188: 498.12 | K188: 486.85 | L188: 473.25 | M188: 8.50192
A189: 179 | B189: GRASIM | C189: 1811.5 | D189: 1808.13 | E189: 1791.27 | F189: 1771.03 | G189: 1754.17 | H189: 1828.37 | I189: 1845.23 | J189: 1865.47 | K189: 1825 | L189: 1787.9 | M189: 4.20245
A190: 180 | B190: GESHIP | C190: 768.2 | D190: 771.10 | E190: 761.10 | F190: 754.00 | G190: 744.00 | H190: 778.20 | I190: 788.20 | J190: 795.30 | K190: 781.1 | L190: 764 | M190: 1.9838
A191: 181 | B191: GREENPANEL | C191: 381.5 | D191: 383.15 | E191: 378.35 | F191: 375.20 | G191: 370.40 | H191: 386.30 | I191: 391.10 | J191: 394.25 | K191: 387.95 | L191: 380 | M191: 5.91182
A192: 182 | B192: GRINDWELL | C192: 2251.05 | D192: 2262.78 | E192: 2231.67 | F192: 2212.28 | G192: 2181.17 | H192: 2282.17 | I192: 2313.28 | J192: 2332.67 | K192: 2293.9 | L192: 2243.4 | M192: 0.13975
A193: 183 | B193: GUJALKALI | C193: 731.95 | D193: 725.98 | E193: 705.97 | F193: 679.98 | G193: 659.97 | H193: 751.97 | I193: 771.98 | J193: 797.97 | K193: 746 | L193: 700 | M193: 10.15833
A194: 184 | B194: GAEL | C194: 260.65 | D194: 261.93 | E194: 258.22 | F194: 255.78 | G194: 252.07 | H194: 264.37 | I194: 268.08 | J194: 270.52 | K194: 265.65 | L194: 259.5 | M194: 2.97693
A195: 185 | B195: FLUOROCHEM | C195: 3073.55 | D195: 3080.40 | E195: 3039.75 | F195: 3005.95 | G195: 2965.30 | H195: 3114.20 | I195: 3154.85 | J195: 3188.65 | K195: 3121.05 | L195: 3046.6 | M195: 1.35129
A196: 186 | B196: GUJGASLTD | C196: 458 | D196: 455.97 | E196: 452.58 | F196: 447.17 | G196: 443.78 | H196: 461.38 | I196: 464.77 | J196: 470.18 | K196: 459.35 | L196: 450.55 | M196: 32.22741
A197: 187 | B197: GNFC | C197: 623.4 | D197: 619.18 | E197: 614.37 | F197: 605.33 | G197: 600.52 | H197: 628.22 | I197: 633.03 | J197: 642.07 | K197: 624 | L197: 610.15 | M197: 17.96857
A198: 188 | B198: GPPL | C198: 129.95 | D198: 129.62 | E198: 128.43 | F198: 126.92 | G198: 125.73 | H198: 131.13 | I198: 132.32 | J198: 133.83 | K198: 130.8 | L198: 128.1 | M198: 13.4644
A199: 189 | B199: GSFC | C199: 177.6 | D199: 177.63 | E199: 175.97 | F199: 174.33 | G199: 172.67 | H199: 179.27 | I199: 180.93 | J199: 182.57 | K199: 179.3 | L199: 176 | M199: 28.95287
A200: 190 | B200: GSPL | C200: 277.35 | D200: 275.95 | E200: 272.90 | F200: 268.45 | G200: 265.40 | H200: 280.40 | I200: 283.45 | J200: 287.90 | K200: 279 | L200: 271.5 | M200: 7.79511
A201: 191 | B201: HEG | C201: 1745.25 | D201: 1753.70 | E201: 1728.60 | F201: 1711.95 | G201: 1686.85 | H201: 1770.35 | I201: 1795.45 | J201: 1812.10 | K201: 1778.8 | L201: 1737.05 | M201: 1.46006
A202: 192 | B202: HAPPSTMNDS | C202: 924.7 | D202: 927.02 | E202: 918.03 | F202: 911.37 | G202: 902.38 | H202: 933.68 | I202: 942.67 | J202: 949.33 | K202: 936 | L202: 920.35 | M202: 2.78275
A203: 193 | B203: HAVELLS | C203: 1377.75 | D203: 1378.80 | E203: 1367.95 | F203: 1358.15 | G203: 1347.30 | H203: 1388.60 | I203: 1399.45 | J203: 1409.25 | K203: 1389.65 | L203: 1369 | M203: 8.48245
A204: 194 | B204: HCLTECH | C204: 1185.8 | D204: 1181.63 | E204: 1175.27 | F204: 1164.73 | G204: 1158.37 | H204: 1192.17 | I204: 1198.53 | J204: 1209.07 | K204: 1188 | L204: 1171.1 | M204: 16.6964
A205: 195 | B205: HDFCAMC | C205: 2431.25 | D205: 2440.98 | E205: 2412.27 | F205: 2393.28 | G205: 2364.57 | H205: 2459.97 | I205: 2488.68 | J205: 2507.67 | K205: 2469.7 | L205: 2422 | M205: 12.41184
A206: 196 | B206: HDFCBANK | C206: 1574.7 | D206: 1571.02 | E206: 1563.03 | F206: 1551.37 | G206: 1543.38 | H206: 1582.68 | I206: 1590.67 | J206: 1602.33 | K206: 1579 | L206: 1559.35 | M206: 216.13388
... 319 more rows

Sheet Bulk Deals
E6: Back To Main Page
A7: Subject : | B7: BULK DEAL | D7: =Main!B10 -> 2023-09-04
A9: Date | B9: Scrip code | C9: Scrip Name | D9: Client Name | E9: Buy / Sell | F9: Quantity Traded | G9: Trade Price / Wt.Avg.trade price | H9: Exchange
A10: 2023-09-01 | B10: 540615 | C10: 7NR | D10: VAX FASHION PRIVATE LIMITED | E10: SELL | F10: 1,550,000 | G10: 0.62 | H10: BSE
A11: 2023-09-01 | B11: 539773 | C11: ADVIKCA | D11: G G ENGINEERING LIMITED | E11: BUY | F11: 389,344 | G11: 2.48 | H11: BSE
A12: 2023-09-01 | B12: 539773 | C12: ADVIKCA | D12: SAROJ GUPTA | E12: SELL | F12: 2,140,842 | G12: 2.49 | H12: BSE
A13: 2023-09-01 | B13: 539773 | C13: ADVIKCA | D13: G G ENGINEERING LIMITED | E13: SELL | F13: 1,389,888 | G13: 2.57 | H13: BSE
A14: 2023-09-01 | B14: 531017 | C14: ARISE | D14: LOREM INVESTMENT | E14: SELL | F14: 53,070 | G14: 13.77 | H14: BSE
A15: 2023-09-01 | B15: 531017 | C15: ARISE | D15: LOREM INVESTMENT | E15: BUY | F15: 59 | G15: 13.76 | H15: BSE
A16: 2023-09-01 | B16: 540023 | C16: COLORCHIPS | D16: SETU SECURITIES PVT. LTD. | E16: SELL | F16: 1,134,869 | G16: 4.83 | H16: BSE
A17: 2023-09-01 | B17: 540023 | C17: COLORCHIPS | D17: MULTIPLIER SHARE & STOCK ADVISORS PRIVATE LIMITED | E17: SELL | F17: 924,719 | G17: 4.68 | H17: BSE
A18: 2023-09-01 | B18: 540023 | C18: COLORCHIPS | D18: SAHASTRAA ADVISORS PRIVATE LIMITED | E18: SELL | F18: 100,550 | G18: 4.94 | H18: BSE
A19: 2023-09-01 | B19: 540023 | C19: COLORCHIPS | D19: SAHASTRAA ADVISORS PRIVATE LIMITED | E19: BUY | F19: 500,000 | G19: 4.92 | H19: BSE
A20: 2023-09-01 | B20: 540023 | C20: COLORCHIPS | D20: ANKITA VISHAL SHAH | E20: BUY | F20: 1,808,324 | G20: 4.67 | H20: BSE
A21: 2023-09-01 | B21: 543225 | C21: DATAINFRA | D21: BCI IRR INDIA HOLDINGS INC | E21: BUY | F21: 123,400,000 | G21: 155 | H21: BSE
A22: 2023-09-01 | B22: 543225 | C22: DATAINFRA | D22: BIF IV JARVIS INDIA PTE LTD | E22: SELL | F22: 126,200,000 | G22: 155 | H22: BSE
A23: 2023-09-01 | B23: 539405 | C23: DITCO | D23: JIGAR MUKESHBHAI SHAH | E23: SELL | F23: 20,857 | G23: 13.16 | H23: BSE
A24: 2023-09-01 | B24: 539405 | C24: DITCO | D24: JIGAR MUKESHBHAI SHAH | E24: BUY | F24: 90 | G24: 13.1 | H24: BSE
A25: 2023-09-01 | B25: 539405 | C25: DITCO | D25: HARSH KUMAR | E25: BUY | F25: 18,001 | G25: 13.17 | H25: BSE
A26: 2023-09-01 | B26: 542724 | C26: EARUM | D26: AMRAPALI CAPITAL AND FINANCE SERVICES LIMITED | E26: SELL | F26: 1,848,830 | G26: 1.01 | H26: BSE
A27: 2023-09-01 | B27: 543663 | C27: FIVESTAR | D27: HDFC MUTUAL FUND A/C HTCL - HDFC MID - CAP OPPORTUNITIES FUND | E27: BUY | F27: 4,119,334 | G27: 730 | H27: BSE
A28: 2023-09-01 | B28: 543663 | C28: FIVESTAR | D28: NORWEST VENTURE PARTNERS X - MAURITIUS | E28: SELL | F28: 3,771,845 | G28: 730.07 | H28: BSE
A29: 2023-09-01 | B29: 543663 | C29: FIVESTAR | D29: MATRIX PARTNERS INDIA INVESTMENT HOLDINGS II LLC | E29: SELL | F29: 8,907,912 | G29: 730.12 | H29: BSE
A30: 2023-09-01 | B30: 543663 | C30: FIVESTAR | D30: NORWEST VENTURE PARTNERS X MAURITIUS | E30: SELL | F30: 3,771,845 | G30: 730 | H30: BSE
A31: 2023-09-01 | B31: 543663 | C31: FIVESTAR | D31: TPG ASIA VII SF PTE LTD | E31: SELL | F31: 9,057,561 | G31: 730.62 | H31: BSE
A32: 2023-09-01 | B32: 541703 | C32: GFIL | D32: GAURAV KUMAR | E32: SELL | F32: 19,200 | G32: 19.91 | H32: BSE
A33: 2023-09-01 | B33: 531360 | C33: GOLECHA | D33: AAKASH DEEP GOYAL | E33: SELL | F33: 30,000 | G33: 15.56 | H33: BSE
A34: 2023-09-01 | B34: 531913 | C34: GOPAIST | D34: PRIYANKA AGRAWAL | E34: BUY | F34: 112,648 | G34: 10.99 | H34: BSE
A35: 2023-09-01 | B35: 531913 | C35: GOPAIST | D35: ANJNADEVISHYAMSUNDARSARDANA | E35: BUY | F35: 16,365 | G35: 10.92 | H35: BSE
A36: 2023-09-01 | B36: 531913 | C36: GOPAIST | D36: MISTERKAPOORKESHRI | E36: BUY | F36: 6,501 | G36: 10.76 | H36: BSE
A37: 2023-09-01 | B37: 531913 | C37: GOPAIST | D37: ANJNADEVISHYAMSUNDARSARDANA | E37: SELL | F37: 44,157 | G37: 10.84 | H37: BSE
A38: 2023-09-01 | B38: 531913 | C38: GOPAIST | D38: MISTERKAPOORKESHRI | E38: SELL | F38: 40,943 | G38: 10.94 | H38: BSE
A39: 2023-09-01 | B39: 531913 | C39: GOPAIST | D39: SINDHI VIVEK | E39: BUY | F39: 50,000 | G39: 11 | H39: BSE
A40: 2023-09-01 | B40: 531913 | C40: GOPAIST | D40: SINDHI VIVEK | E40: SELL | F40: 169 | G40: 10.93 | H40: BSE
A41: 2023-09-01 | B41: 531913 | C41: GOPAIST | D41: SHALINI JAIN | E41: BUY | F41: 35,000 | G41: 10.99 | H41: BSE
A42: 2023-09-01 | B42: 531913 | C42: GOPAIST | D42: KUNDANBEN BHAVESHBHAI PATEL | E42: SELL | F42: 25,000 | G42: 11 | H42: BSE
A43: 2023-09-01 | B43: 531913 | C43: GOPAIST | D43: HIRENI ISHAN PATEL | E43: SELL | F43: 40,000 | G43: 11 | H43: BSE
A44: 2023-09-01 | B44: 531913 | C44: GOPAIST | D44: HARSHABEN BALDEVBHAI PATEL | E44: SELL | F44: 53,500 | G44: 10.98 | H44: BSE
A45: 2023-09-01 | B45: 531913 | C45: GOPAIST | D45: BALDEVBHAI GOPALBHAI PATEL | E45: SELL | F45: 80,758 | G45: 10.96 | H45: BSE
A46: 2023-09-01 | B46: 539437 | C46: IDFCFIRSTB | D46: CLOVERDELL INVESTMENT LTD | E46: SELL | F46: 278,690,000 | G46: 89 | H46: BSE
A47: 2023-09-01 | B47: 539437 | C47: IDFCFIRSTB | D47: GOLDMAN SACHS TRUST II-GOLDMAN SACHS GQG PARTNERS INTL OPPORTUNITIES FUND | E47: BUY | F47: 107,755,028 | G47: 89 | H47: BSE
A48: 2023-09-01 | B48: 539437 | C48: IDFCFIRSTB | D48: GQG PARTNERS EMERGING MARKETS EQUITY FUND | E48: BUY | F48: 63,847,470 | G48: 89 | H48: BSE
A49: 2023-09-01 | B49: 543939 | C49: KAKA | D49: YUGA STOCKS AND COMMODITIES PRIVATE LIMITED . | E49: SELL | F49: 20,000 | G49: 204.7 | H49: BSE
A50: 2023-09-01 | B50: 543939 | C50: KAKA | D50: YUGA STOCKS AND COMMODITIES PRIVATE LIMITED . | E50: BUY | F50: 80,000 | G50: 203.3 | H50: BSE
A51: 2023-09-01 | B51: 543366 | C51: SBLI | D51: LILABEN JASVANTSINH KHATEDIYA | E51: BUY | F51: 9,600 | G51: 82.89 | H51: BSE
A52: 2023-09-01 | B52: 543366 | C52: SBLI | D52: TARA HARSHADBHAI GOHIL | E52: BUY | F52: 3,600 | G52: 83.57 | H52: BSE
A53: 2023-09-01 | B53: 543366 | C53: SBLI | D53: TARA HARSHADBHAI GOHIL | E53: SELL | F53: 4,800 | G53: 82.83 | H53: BSE
A54: 2023-09-01 | B54: 543366 | C54: SBLI | D54: LALJIBHAI TRIVEDI | E54: SELL | F54: 10,800 | G54: 79.76 | H54: BSE
A55: 2023-09-01 | B55: 543366 | C55: SBLI | D55: ASHISH PANCHAL | E55: SELL | F55: 8,400 | G55: 83.99 | H55: BSE
A56: 2023-09-01 | B56: 543366 | C56: SBLI | D56: SKSE SECURITIES LIMITED CORP CM/TM PROP A/C | E56: SELL | F56: 6,000 | G56: 84.63 | H56: BSE
A57: 2023-09-01 | B57: 543366 | C57: SBLI | D57: PANCHAL JAYESHKUMAR | E57: BUY | F57: 10,800 | G57: 79.76 | H57: BSE
A58: 2023-09-01 | B58: 543366 | C58: SBLI | D58: SKSE SECURITIES LIMITED CORP CM/TM PROP A/C | E58: BUY | F58: 2,400 | G58: 85 | H58: BSE
A59: 2023-09-01 | B59: 542753 | C59: SEACOAST | D59: MULTIPLIER SHARE & STOCK ADVISORS PRIVATE LIMITED | E59: SELL | F59: 5,000,000 | G59: 2.66 | H59: BSE
A60: 2023-09-01 | B60: 542753 | C60: SEACOAST | D60: VAKANDA SERVICES PRIVATE LIMITED | E60: SELL | F60: 3,645,740 | G60: 2.66 | H60: BSE
A61: 2023-09-01 | B61: 543625 | C61: SECURCRED | D61: KRISHNA AWTAR KABRA | E61: BUY | F61: 1,169,725 | G61: 19 | H61: BSE
A62: 2023-09-01 | B62: 543625 | C62: SECURCRED | D62: RAHUL BELWALKAR | E62: SELL | F62: 1,500,000 | G62: 19 | H62: BSE
A63: 2023-09-01 | B63: 543515 | C63: SEML | D63: VARSHABEN JIGNESHKUMAR THOBHANI | E63: SELL | F63: 29,000 | G63: 227.7 | H63: BSE
A64: 2023-09-01 | B64: 539406 | C64: SWAGTAM | D64: RESIMPEX REAL ESTATE PRIVATE LIMITED | E64: SELL | F64: 12,000 | G64: 34 | H64: BSE
A65: 2023-09-01 | B65: 539406 | C65: SWAGTAM | D65: RAUNAKAGARWAL | E65: SELL | F65: 13,000 | G65: 34 | H65: BSE
A66: 2023-09-01 | B66: 531025 | C66: VISAGAR | D66: MULTIPLIER SHARE & STOCK ADVISORS PRIVATE LIMITED | E66: SELL | F66: 8,096,650 | G66: 0.96 | H66: BSE
A67: 2023-09-01 | B67: 531025 | C67: VISAGAR | D67: VICKY RAJESH JHAVERI | E67: SELL | F67: 7,500,000 | G67: 0.96 | H67: BSE
A68: 2023-09-01 | B68: 531025 | C68: VISAGAR | D68: RAJESH NANUBHAI JHAVERI | E68: SELL | F68: 4,459,477 | G68: 0.96 | H68: BSE
A69: 2023-09-01 | B69: 531025 | C69: VISAGAR | D69: MULTIPLIER SHARE & STOCK ADVISORS PRIVATE LIMITED | E69: SELL | F69: 7,406,538 | G69: 0.96 | H69: BSE
A70: 2023-09-01 | B70: 531025 | C70: VISAGAR | D70: NIKHIL RAJESH SINGH | E70: SELL | F70: 4,135,506 | G70: 0.96 | H70: BSE
A71: 2023-09-01 | B71: 531025 | C71: VISAGAR | D71: AJAY SALVI | E71: SELL | F71: 4,426,235 | G71: 0.96 | H71: BSE
A72: 2023-09-01 | B72: 531025 | C72: VISAGAR | D72: NIKHIL RAJESH SINGH | E72: SELL | F72: 4,085,506 | G72: 0.96 | H72: BSE
A73: 2023-09-01 | B73: 531025 | C73: VISAGAR | D73: AJAY SALVI | E73: SELL | F73: 4,426,235 | G73: 0.97 | H73: BSE
A74: 2023-09-01 | B74: 543436 | C74: WITS | D74: PRANSHU AGRAWAL | E74: SELL | F74: 5,600 | G74: 149.5 | H74: BSE
A75: 2023-09-01 | B75: 543436 | C75: WITS | D75: NARENDRASINH MANUBHA ZALA | E75: SELL | F75: 6,400 | G75: 148.56 | H75: BSE
A76: 2023-09-01 | B76: 539939 | C76: YASHCHEM | D76: DIMPLE PRITESHKUMAR SHAH | E76: SELL | F76: 59,661 | G76: 70.86 | H76: BSE
A77: 2023-09-01 | B77: AEROFLEX | C77: Aeroflex Industries Ltd | D77: GRAVITON RESEARCH CAPITAL LLP | E77: BUY | F77: 969,095 | G77: 165.03 | H77: NSE
A78: 2023-09-01 | B78: APEX | C78: Apex Frozen Foods Limited | D78: GRAVITON RESEARCH CAPITAL LLP | E78: BUY | F78: 242,420 | G78: 229.04 | H78: NSE
A79: 2023-09-01 | B79: ATALREAL | C79: Atal Realtech Limited | D79: AJAY SALVI | E79: BUY | F79: 355,012 | G79: 109.45 | H79: NSE
A80: 2023-09-01 | B80: ATALREAL | C80: Atal Realtech Limited | D80: MANSI SHARE AND STOCK ADVISORS PVT LTD | E80: BUY | F80: 190,938 | G80: 110.31 | H80: NSE
A81: 2023-09-01 | B81: ATALREAL | C81: Atal Realtech Limited | D81: NIKHIL RAJESH SINGH | E81: BUY | F81: 883,815 | G81: 110.89 | H81: NSE
A82: 2023-09-01 | B82: ATALREAL | C82: Atal Realtech Limited | D82: PARSHVA TRADING | E82: BUY | F82: 80,705 | G82: 110.98 | H82: NSE
A83: 2023-09-01 | B83: ATALREAL | C83: Atal Realtech Limited | D83: VICKY RAJESH JHAVERI | E83: BUY | F83: 100,000 | G83: 111.2 | H83: NSE
A84: 2023-09-01 | B84: ATALREAL | C84: Atal Realtech Limited | D84: MAHADEV MANUBHAI MAKVANA | E84: BUY | F84: 105,300 | G84: 109.45 | H84: NSE
A85: 2023-09-01 | B85: BSE | C85: BSE Limited | D85: GRAVITON RESEARCH CAPITAL LLP | E85: BUY | F85: 925,534 | G85: 1094.4 | H85: NSE
A86: 2023-09-01 | B86: CAPACITE | C86: Capacite Infraproject Ltd | D86: GRAVITON RESEARCH CAPITAL LLP | E86: BUY | F86: 494,501 | G86: 223.6 | H86: NSE
A87: 2023-09-01 | B87: COFFEEDAY | C87: Coffee Day Enterprise Ltd | D87: MANSI SHARE AND STOCK ADVISORS PVT LTD | E87: BUY | F87: 1,500,000 | G87: 49.77 | H87: NSE
A88: 2023-09-01 | B88: COFFEEDAY | C88: Coffee Day Enterprise Ltd | D88: JAINAM BROKING LIMITED | E88: BUY | F88: 2,354,614 | G88: 50.3 | H88: NSE
A89: 2023-09-01 | B89: COFFEEDAY | C89: Coffee Day Enterprise Ltd | D89: HRTI PRIVATE LIMITED | E89: BUY | F89: 2,013,418 | G89: 50.73 | H89: NSE
A90: 2023-09-01 | B90: COFFEEDAY | C90: Coffee Day Enterprise Ltd | D90: GRAVITON RESEARCH CAPITAL LLP | E90: BUY | F90: 1,677,691 | G90: 50.82 | H90: NSE
A91: 2023-09-01 | B91: ELIN | C91: Elin Electronics Limited | D91: GRAVITON RESEARCH CAPITAL LLP | E91: BUY | F91: 284,118 | G91: 171.9 | H91: NSE
A92: 2023-09-01 | B92: EXXARO | C92: Exxaro Tiles Limited | D92: GRAVITON RESEARCH CAPITAL LLP | E92: BUY | F92: 389,351 | G92: 144.08 | H92: NSE
A93: 2023-09-01 | B93: GLOBALPET | C93: Global Pet Industries Ltd | D93: SHRENI SHARES PRIVATE LIMITED | E93: BUY | F93: 57,000 | G93: 93.44 | H93: NSE
A94: 2023-09-01 | B94: IBULHSGFIN | C94: Indiabulls Hsg Fin Ltd | D94: GRAVITON RESEARCH CAPITAL LLP | E94: BUY | F94: 3,568,566 | G94: 198.73 | H94: NSE
A95: 2023-09-01 | B95: IPL | C95: India Pesticides Limited | D95: MSB E TRADE SECURITIES LIMITED | E95: BUY | F95: 998,604 | G95: 292.76 | H95: NSE
A96: 2023-09-01 | B96: ITDCEM | C96: ITD Cementation India Lim | D96: GRAVITON RESEARCH CAPITAL LLP | E96: BUY | F96: 1,496,792 | G96: 240.88 | H96: NSE
A97: 2023-09-01 | B97: MANGLMCEM | C97: Mangalam Cement Ltd | D97: RAMBARA TRADING PRIVATE LIMITED | E97: BUY | F97: 250,000 | G97: 349 | H97: NSE
A98: 2023-09-01 | B98: MANINDS | C98: Man Industries (I) Ltd | D98: HRTI PRIVATE LIMITED | E98: BUY | F98: 260,764 | G98: 172.39 | H98: NSE
A99: 2023-09-01 | B99: MANINDS | C99: Man Industries (I) Ltd | D99: GRAVITON RESEARCH CAPITAL LLP | E99: BUY | F99: 448,332 | G99: 173.64 | H99: NSE
A100: 2023-09-01 | B100: MTARTECH | C100: MTAR Technologies Limited | D100: GRAVITON RESEARCH CAPITAL LLP | E100: BUY | F100: 430,816 | G100: 2683.53 | H100: NSE
A101: 2023-09-01 | B101: MTARTECH | C101: MTAR Technologies Limited | D101: NK SECURITIES RESEARCH PRIVATE LIMITED | E101: BUY | F101: 327,839 | G101: 2693.42 | H101: NSE
A102: 2023-09-01 | B102: MTARTECH | C102: MTAR Technologies Limited | D102: QE SECURITIES LLP | E102: BUY | F102: 160,834 | G102: 2684.29 | H102: NSE
A103: 2023-09-01 | B103: MTNL | C103: Maha Tel Nigam Ltd. | D103: JAINAM BROKING LIMITED | E103: BUY | F103: 562,915 | G103: 23.64 | H103: NSE
A104: 2023-09-01 | B104: MTNL | C104: Maha Tel Nigam Ltd. | D104: GDN INVESTMENTS PRIVATE LIMITED | E104: BUY | F104: 1,800,000 | G104: 25.67 | H104: NSE
A105: 2023-09-01 | B105: PARAS | C105: Paras Def and Spce Tech L | D105: GRAVITON RESEARCH CAPITAL LLP | E105: BUY | F105: 219,140 | G105: 778.61 | H105: NSE
A106: 2023-09-01 | B106: PNC | C106: Pritish Nandy Comm. Ltd. | D106: PIYUSH MAKHIJANI | E106: BUY | F106: 75,000 | G106: 40.59 | H106: NSE
A107: 2023-09-01 | B107: RAILTEL | C107: Railtel Corp of Ind Ltd | D107: HRTI PRIVATE LIMITED | E107: BUY | F107: 1,592,331 | G107: 226.79 | H107: NSE
A108: 2023-09-01 | B108: RAILTEL | C108: Railtel Corp of Ind Ltd | D108: QE SECURITIES LLP | E108: BUY | F108: 2,161,493 | G108: 230.26 | H108: NSE
A109: 2023-09-01 | B109: RAILTEL | C109: Railtel Corp of Ind Ltd | D109: GRAVITON RESEARCH CAPITAL LLP | E109: BUY | F109: 2,739,548 | G109: 227.45 | H109: NSE
A110: 2023-09-01 | B110: RPOWER | C110: Reliance Power Limited | D110: HRTI PRIVATE LIMITED | E110: BUY | F110: 25,064,622 | G110: 19.35 | H110: NSE
A111: 2023-09-01 | B111: SECURCRED | C111: SecUR Credentials Limited | D111: KRISHNA AWTAR KABRA | E111: BUY | F111: 680,275 | G111: 19 | H111: NSE
A112: 2023-09-01 | B112: SEL | C112: Sungarner Energies Ltd | D112: SELVAMURTHY AKILANDESWARI | E112: BUY | F112: 16,000 | G112: 269 | H112: NSE
A113: 2023-09-01 | B113: SHAKTIPUMP | C113: Shakti Pumps (I) Ltd | D113: GRAVITON RESEARCH CAPITAL LLP | E113: BUY | F113: 169,073 | G113: 870.31 | H113: NSE
A114: 2023-09-01 | B114: TIMESGTY | C114: Times Guaranty Limited | D114: DIVYRAJSINH NARENDRASINH SOLANKI | E114: BUY | F114: 78,510 | G114: 75.45 | H114: NSE
A115: 2023-09-01 | B115: TIMESGTY | C115: Times Guaranty Limited | D115: NK SECURITIES RESEARCH PRIVATE LIMITED | E115: BUY | F115: 50,922 | G115: 74.38 | H115: NSE
A116: 2023-09-01 | B116: TRU | C116: TruCap Finance Limited | D116: MITHANI INVESTMENT AND TRADING PRIVATE LIMITED | E116: BUY | F116: 822,479 | G116: 64.33 | H116: NSE
A117: 2023-09-01 | B117: VIKASLIFE | C117: Vikas Lifecare Limited | D117: HI GROWTH CORPORATE SERVICES PVT LTD | E117: BUY | F117: 7,490,300 | G117: 4.26 | H117: NSE
A118: 2023-09-01 | B118: AEROFLEX | C118: Aeroflex Industries Ltd | D118: GRAVITON RESEARCH CAPITAL LLP | E118: SELL | F118: 969,095 | G118: 165.15 | H118: NSE
A119: 2023-09-01 | B119: ALLETEC | C119: All E Technologies Ltd | D119: CHHATTISGARH INVESTMENTS LIMITED | E119: SELL | F119: 177,600 | G119: 151.67 | H119: NSE
A120: 2023-09-01 | B120: ALLETEC | C120: All E Technologies Ltd | D120: MONEY PLANT PICTURES LLP | E120: SELL | F120: 121,600 | G120: 150.98 | H120: NSE
A121: 2023-09-01 | B121: ALLETEC | C121: All E Technologies Ltd | D121: COEUS GLOBAL OPPORTUNITIES FUND | E121: SELL | F121: 121,600 | G121: 155.76 | H121: NSE
A122: 2023-09-01 | B122: APEX | C122: Apex Frozen Foods Limited | D122: GRAVITON RESEARCH CAPITAL LLP | E122: SELL | F122: 242,420 | G122: 228.95 | H122: NSE
A123: 2023-09-01 | B123: ATALREAL | C123: Atal Realtech Limited | D123: MANSI SHARE AND STOCK ADVISORS PVT LTD | E123: SELL | F123: 91,824 | G123: 109.74 | H123: NSE
A124: 2023-09-01 | B124: ATALREAL | C124: Atal Realtech Limited | D124: OPTUME INVESTMENTS PRIVATE LIMITED | E124: SELL | F124: 145,751 | G124: 109.45 | H124: NSE
A125: 2023-09-01 | B125: ATALREAL | C125: Atal Realtech Limited | D125: MAHADEV MANUBHAI MAKVANA | E125: SELL | F125: 5,000 | G125: 111.1 | H125: NSE
A126: 2023-09-01 | B126: ATALREAL | C126: Atal Realtech Limited | D126: GAURANG JITENDRA PAREKH | E126: SELL | F126: 340,521 | G126: 109.45 | H126: NSE
A127: 2023-09-01 | B127: ATALREAL | C127: Atal Realtech Limited | D127: KAUSHIK MAHESHBHAI WAGHELA | E127: SELL | F127: 291,174 | G127: 109.45 | H127: NSE
A128: 2023-09-01 | B128: ATALREAL | C128: Atal Realtech Limited | D128: MANISH NITIN THAKUR | E128: SELL | F128: 190,366 | G128: 109.45 | H128: NSE
A129: 2023-09-01 | B129: ATALREAL | C129: Atal Realtech Limited | D129: AJAY SALVI | E129: SELL | F129: 125,000 | G129: 111.18 | H129: NSE
A130: 2023-09-01 | B130: ATALREAL | C130: Atal Realtech Limited | D130: RAMAN TALWAR | E130: SELL | F130: 167,503 | G130: 109.45 | H130: NSE
A131: 2023-09-01 | B131: ATALREAL | C131: Atal Realtech Limited | D131: PARSHVA TRADING | E131: SELL | F131: 34,205 | G131: 110.54 | H131: NSE
A132: 2023-09-01 | B132: ATALREAL | C132: Atal Realtech Limited | D132: NIKHIL RAJESH SINGH | E132: SELL | F132: 433,227 | G132: 119.77 | H132: NSE
A133: 2023-09-01 | B133: BSE | C133: BSE Limited | D133: GRAVITON RESEARCH CAPITAL LLP | E133: SELL | F133: 925,534 | G133: 1093.97 | H133: NSE
A134: 2023-09-01 | B134: CAPACITE | C134: Capacite Infraproject Ltd | D134: GRAVITON RESEARCH CAPITAL LLP | E134: SELL | F134: 494,501 | G134: 223.58 | H134: NSE
A135: 2023-09-01 | B135: COFFEEDAY | C135: Coffee Day Enterprise Ltd | D135: JAINAM BROKING LIMITED | E135: SELL | F135: 1,237,573 | G135: 52.68 | H135: NSE
A136: 2023-09-01 | B136: COFFEEDAY | C136: Coffee Day Enterprise Ltd | D136: HRTI PRIVATE LIMITED | E136: SELL | F136: 2,333,944 | G136: 50.5 | H136: NSE
A137: 2023-09-01 | B137: COFFEEDAY | C137: Coffee Day Enterprise Ltd | D137: GRAVITON RESEARCH CAPITAL LLP | E137: SELL | F137: 1,677,691 | G137: 50.77 | H137: NSE
A138: 2023-09-01 | B138: COFFEEDAY | C138: Coffee Day Enterprise Ltd | D138: MANSI SHARE AND STOCK ADVISORS PVT LTD | E138: SELL | F138: 1,500,000 | G138: 49.8 | H138: NSE
A139: 2023-09-01 | B139: ELIN | C139: Elin Electronics Limited | D139: GRAVITON RESEARCH CAPITAL LLP | E139: SELL | F139: 284,118 | G139: 172.03 | H139: NSE
A140: 2023-09-01 | B140: EXXARO | C140: Exxaro Tiles Limited | D140: GRAVITON RESEARCH CAPITAL LLP | E140: SELL | F140: 389,351 | G140: 144.2 | H140: NSE
A141: 2023-09-01 | B141: GLOBALPET | C141: Global Pet Industries Ltd | D141: SHRENI SHARES PRIVATE LIMITED | E141: SELL | F141: 57,000 | G141: 94.06 | H141: NSE
A142: 2023-09-01 | B142: IBULHSGFIN | C142: Indiabulls Hsg Fin Ltd | D142: GRAVITON RESEARCH CAPITAL LLP | E142: SELL | F142: 3,568,566 | G142: 197.81 | H142: NSE
A143: 2023-09-01 | B143: IPL | C143: India Pesticides Limited | D143: MSB E TRADE SECURITIES LIMITED | E143: SELL | F143: 998,604 | G143: 292.13 | H143: NSE
A144: 2023-09-01 | B144: ITDCEM | C144: ITD Cementation India Lim | D144: GRAVITON RESEARCH CAPITAL LLP | E144: SELL | F144: 1,496,792 | G144: 241.02 | H144: NSE
A145: 2023-09-01 | B145: MANGLMCEM | C145: Mangalam Cement Ltd | D145: KAJAL SYNTHETICS & SILK MILLS LTD | E145: SELL | F145: 280,038 | G145: 348.95 | H145: NSE
A146: 2023-09-01 | B146: MANINDS | C146: Man Industries (I) Ltd | D146: HRTI PRIVATE LIMITED | E146: SELL | F146: 307,743 | G146: 172.49 | H146: NSE
A147: 2023-09-01 | B147: MANINDS | C147: Man Industries (I) Ltd | D147: GRAVITON RESEARCH CAPITAL LLP | E147: SELL | F147: 448,332 | G147: 173.52 | H147: NSE
A148: 2023-09-01 | B148: MTARTECH | C148: MTAR Technologies Limited | D148: GRAVITON RESEARCH CAPITAL LLP | E148: SELL | F148: 430,816 | G148: 2685.36 | H148: NSE
A149: 2023-09-01 | B149: MTARTECH | C149: MTAR Technologies Limited | D149: QE SECURITIES LLP | E149: SELL | F149: 157,062 | G149: 2688.02 | H149: NSE
A150: 2023-09-01 | B150: MTARTECH | C150: MTAR Technologies Limited | D150: NK SECURITIES RESEARCH PRIVATE LIMITED | E150: SELL | F150: 327,839 | G150: 2694.82 | H150: NSE
A151: 2023-09-01 | B151: MTNL | C151: Maha Tel Nigam Ltd. | D151: JAINAM BROKING LIMITED | E151: SELL | F151: 1,990,915 | G151: 25.2 | H151: NSE
A152: 2023-09-01 | B152: PARAS | C152: Paras Def and Spce Tech L | D152: GRAVITON RESEARCH CAPITAL LLP | E152: SELL | F152: 219,140 | G152: 778.92 | H152: NSE
A153: 2023-09-01 | B153: RAILTEL | C153: Railtel Corp of Ind Ltd | D153: HRTI PRIVATE LIMITED | E153: SELL | F153: 1,647,694 | G153: 225.87 | H153: NSE
A154: 2023-09-01 | B154: RAILTEL | C154: Railtel Corp of Ind Ltd | D154: QE SECURITIES LLP | E154: SELL | F154: 2,248,344 | G154: 229.14 | H154: NSE
A155: 2023-09-01 | B155: RAILTEL | C155: Railtel Corp of Ind Ltd | D155: GRAVITON RESEARCH CAPITAL LLP | E155: SELL | F155: 2,739,548 | G155: 227.5 | H155: NSE
A156: 2023-09-01 | B156: RPOWER | C156: Reliance Power Limited | D156: HRTI PRIVATE LIMITED | E156: SELL | F156: 24,861,394 | G156: 19.36 | H156: NSE
A157: 2023-09-01 | B157: RTNPOWER | C157: RattanIndia Power Limited | D157: ABARC-AST-002-TRUST | E157: SELL | F157: 29,874,813 | G157: 7.04 | H157: NSE
A158: 2023-09-01 | B158: SECURCRED | C158: SecUR Credentials Limited | D158: RAHUL BELWALKAR | E158: SELL | F158: 1,685,600 | G158: 19 | H158: NSE
A159: 2023-09-01 | B159: SEL | C159: Sungarner Energies Ltd | D159: MANSI SHARE AND STOCK ADVISORS PVT LTD | E159: SELL | F159: 16,000 | G159: 273.95 | H159: NSE
A160: 2023-09-01 | B160: SEL | C160: Sungarner Energies Ltd | D160: YUGA STOCKS AND COMMODITIES PRIVATE LIMITED . | E160: SELL | F160: 20,800 | G160: 269.31 | H160: NSE
A161: 2023-09-01 | B161: SHAKTIPUMP | C161: Shakti Pumps (I) Ltd | D161: GRAVITON RESEARCH CAPITAL LLP | E161: SELL | F161: 169,073 | G161: 870.89 | H161: NSE
A162: 2023-09-01 | B162: SSFL | C162: Srivari Spices N Foods L | D162: ASHWIN STOCKS AND INVESTMENT PRIVATE LIMITED | E162: SELL | F162: 36,000 | G162: 138.4 | H162: NSE
A163: 2023-09-01 | B163: TIMESGTY | C163: Times Guaranty Limited | D163: NK SECURITIES RESEARCH PRIVATE LIMITED | E163: SELL | F163: 50,922 | G163: 74.47 | H163: NSE
A164: 2023-09-01 | B164: TIMESGTY | C164: Times Guaranty Limited | D164: DIVYRAJSINH NARENDRASINH SOLANKI | E164: SELL | F164: 78,510 | G164: 75.52 | H164: NSE
A165: 2023-09-01 | B165: TRU | C165: TruCap Finance Limited | D165: MITHANI INVESTMENT AND TRADING PRIVATE LIMITED | E165: SELL | F165: 822,479 | G165: 64.02 | H165: NSE
A166: 2023-09-01 | B166: UCL | C166: Ushanti Colour Chem Ltd | D166: RAJASVEE SAGAR SHAH | E166: SELL | F166: 96,000 | G166: 66.15 | H166: NSE
A167: 2023-09-01 | B167: VIKASLIFE | C167: Vikas Lifecare Limited | D167: HI GROWTH CORPORATE SERVICES PVT LTD | E167: SELL | F167: 7,742,300 | G167: 4.28 | H167: NSE

Sheet Call Tracker (Equity & F&O)
M5: Back To Main Page
A6: Retail Research Technical Calls & Fundamental Performance Report for the month of August-2023
M7: =Main!B10 -> 2023-09-04
B8: Positional Call
A9: Sr.no | B9: Date | D9: Company | E9: Rec | F9: Rec Price | G9: Stop Loss*** | H9: Call Closed At | I9: Target | J9: Remark | K9: Profit / Loss per Share | L9: All charges | M9: Net Gain / Loss % | N9: Status | O9: Closed Date | P9: Market Closing Price
A10: 1 | B10: 2023-07-12 | D10: HDFCBANK | E10: Accu | F10: 1595-1655 | G10: 1540 | I10: 1800-1900 | J10: Open | P10: =VLOOKUP(D10,'MidCap Intra'!$B$11:$C$568,2,0) -> 1574.70 | R10: H
A11: 2 | B11: 2023-07-26 | D11: BANKBARODA | E11: Accu | F11: 191-197 | G11: 185 | I11: 215-225 | J11: Open | P11: =VLOOKUP(D11,'MidCap Intra'!$B$11:$C$568,2,0) -> 190.60 | R11: H
A12: 3 | B12: 2023-07-26 | D12: RVNL | E12: Accu | F12: 127.5 | G12: 118 | H12: 134.75 | I12: 145-150 | J12: Profit of Rs.7.25/- | K12: =H12-F12 -> 7.25 | L12: =(F12*-0.3)/100 -> -0.38 | M12: =(K12+L12)/F12 -> 5.39% | N12: Successful | O12: 2023-09-01 | R12: H
A13: 4 | B13: 2023-08-04 | D13: VINATIORGA | E13: Accu | F13: 1805-1855 | G13: 1745 | I13: 2000-2050 | J13: Open | P13: =VLOOKUP(D13,'MidCap Intra'!$B$11:$C$568,2,0) -> 1855.85 | R13: H
A14: 5 | B14: 2023-08-07 | D14: TATAMTRDVR | E14: Accu | F14: 381-399 | G14: 365 | I14: 440-460 | J14: Open | P14: =VLOOKUP(D14,'MidCap Intra'!$B$11:$C$568,2,0) -> 406.05 | R14: H
A15: 6 | B15: 2023-08-29 | D15: FLUOROCHEM | E15: Accu | F15: 2815-2935 | G15: 2700 | I15: 3180-3380 | J15: Open | P15: =VLOOKUP(D15,'MidCap Intra'!$B$11:$C$568,2,0) -> 3073.55 | R15: H
A16: 7 | B16: 2023-08-29 | D16: JAMNAAUTO | E16: Accu | F16: 114.5 | G16: 105 | H16: 122.25 | I16: 124-130 | J16: Profit of Rs.7.75/- | K16: =H16-F16 -> 7.75 | L16: =(F16*-0.3)/100 -> -0.34 | M16: =(K16+L16)/F16 -> 6.47% | N16: Successful | O16: 2023-09-01 | R16: H
A17: 8 | B17: 2023-08-30 | D17: AMARAJABAT | E17: Accu | F17: 597-627 | G17: 577 | I17: 670-700 | J17: Open | P17: =VLOOKUP(D17,'MidCap Intra'!$B$11:$C$568,2,0) -> 625.55 | R17: H
A18: 9 | B18: 2023-08-31 | D18: GMMPFAUDLR | E18: Accu | F18: 1530 | G18: 1415 | H18: 1612.5 | I18: 1640-1700 | J18: Profit of Rs.82.5/- | K18: =H18-F18 -> 82.5 | L18: =(F18*-0.3)/100 -> -4.59 | M18: =(K18+L18)/F18 -> 5.09% | N18: Successful | O18: 2023-09-01 | R18: H
A19: 10 | B19: 2023-09-01 | D19: TATASTEEL | E19: Accu | F19: 123.5-126.5 | G19: 119 | I19: 134-140 | J19: Open
A20: 11 | B20: 2023-09-01 | D20: FEDERALBNK | E20: Accu | F20: 136.5-141.5 | G20: 133 | I20: 149-155 | J20: Open
A28: CLBS = Closing Basis ***
A29: Dividend adjusted <> | F29: Reinitiated $
A30: Part book {} | D30: s | F30: Revised stoploss #
B32: Momentum Call
A33: Sr.no | B33: Date | D33: Company | E33: Rec | F33: Rec Price | G33: Stop Loss | H33: Call Closed At | I33: Target | J33: Remark | K33: Profit / Loss per Share/Lot | L33: All charges | M33: Net Gain / Loss % | N33: Status | O33: Closed Date
A37: CLBS = Closing Basis *** | H37: *
A38: Dividend adjusted <> | F38: Reinitiated $
F39: Revised stoploss #
A41: Master Trade High Risk
A42: Sr.no | B42: Date | D42: Company | E42: Rec | F42: Rec Price | G42: Stop Loss | H42: Call Closed At | I42: Target | J42: Remark | K42: Profit / Loss per share | L42: All charges | M42: Gain / Loss per Lot | N42: Lot | O42: Status | P42: Closed Date
A43: 1 | B43: 2023-08-31 | D43: NAUKRI SEPT FUT | E43: Buy | F43: 4375-4385 | G43: 4300 | I43: 4470-4530 | J43: Open | R43: N
A44: 2 | B44: 2023-08-31 | D44: RELIANCE SEPT FUT | E44: Buy | F44: 2428-2432 | G44: 2385 | I44: 2480-2520 | J44: Open | R44: H
A45: 3 | B45: 2023-09-01 | D45: LUPIN SEPT FUT | E45: Buy | F45: 1096-1097 | G45: 1082 | I45: 1115-1125 | J45: Open
A46: 4 | B46: 2023-09-01 | D46: ATUL SEPT FUT | E46: Buy | F46: 7340-7350 | G46: 7170 | I46: 7500-7600 | J46: Open
A51: Master Trade Medium Risk
A52: Sr.no | B52: Date | D52: Company | E52: Rec | F52: Rec Price | G52: Stop Loss | H52: Call Closed At | I52: Target | J52: Remark | K52: Profit/ Loss per lot | L52: All charges | M52: Gain / Loss per Lot | N52: Lot | O52: Status | P52: Closed Date
A53: 1 | B53: 2023-08-30 | D53: HINDUNILVR 2560 CE 28-SEPT | E53: Buy | F53: 36.5 | G53: 20 | H53: 23 | I53: 60-75 | J53: Loss of Rs.13.5/- | K53: =H53-F53 -> -13.5 | L53: 50.00 | M53: =(K53*N53)-50 -> -4100.0 | N53: 300 | O53: Unsuccessful | P53: 2023-09-01 | R53: N
A54: 2 | B54: 2023-08-30 | D54: RELIANCE 2480 CE 28-SEPT | E54: Buy | F54: 41.50-42.50 | G54: 25 | I54: 60-70 | J54: Open | R54: N
A58: Techno -Funda (positional)
A59: Sr.no | B59: Date | D59: Company | E59: Rec | F59: Rec Price | G59: Stop Loss*** | H59: Call Closed At | I59: Target | J59: Remark | K59: Profit / Loss per Share/Lot | L59: All charges | M59: Net Gain / Loss % | N59: Status | O59: Closed Date | P59: Market Closing Price
A60: 1 | B60: 2023-08-31 | D60: LATENTVIEW | E60: Buy | F60: 380-425 | G60: 350 | I60: 500-550 | J60: Open | R60: H
A63: CLBS = Closing Basis *** | F63: Reinitiated $
A64: Dividend adjusted <> | F64: Revised stoploss # | H64: .................
B73: Investment Idea
A74: Sr.no | B74: Date | D74: Company | E74: Rec | F74: Rec Price | G74: Point of Review | H74: Close Rate | I74: Target | J74: Remark | K74: Profit / Loss per Share | L74: Gain / Loss % | M74: Status | N74: Closed Date
A75: 1 | B75: 2013-11-01 | D75: L&T Finance Holding | E75: Accu | F75: 82.00 | G75: - | H75: 100 | I75: 100.00 | J75: Target Achieved | K75: =H75-F75 -> 18.00 | L75: =K75/F75 -> 21.95% | M75: Successful | N75: 2016-10-14
A76: 2 | B76: 2014-06-04 | D76: Finolex Inds | E76: Buy | F76: 257.00 | G76: - | H76: 300 | I76: 300.00 | J76: Target Achieved | K76: 43.00 | L76: 16.73% | M76: Successful | N76: 2014-07-02
A77: 3 | B77: 2014-07-08 | D77: JK Cement | E77: Buy | F77: 393.00 | G77: - | H77: 468 | I77: 468.00 | J77: Target Achieved | K77: 75.00 | L77: 19.08% | M77: Successful | N77: 2014-08-12
A78: 4 | B78: 2014-08-06 | D78: Finolex Cables | E78: Buy | F78: 205.00 | G78: - | H78: 275 | I78: 250.00 | J78: Target Achieved | K78: 70.00 | L78: 34.15% | M78: Successful | N78: 2014-11-19
A79: 5 | B79: 2014-09-04 | D79: Exide Inds | E79: Buy | F79: 162.00 | G79: - | H79: 190 | I79: 190.00 | J79: Target Achieved | K79: 28.00 | L79: 17.28% | M79: Successful | N79: 2015-01-02
A80: 6 | B80: 2014-09-04 | D80: Deepak Nitrite | E80: Buy | F80: 75.00 | G80: - | H80: 91.5 | I80: 95-100 | J80: Profit of Rs.16.50/- | K80: 16.50 | L80: 22.00% | M80: Successful | N80: 2014-11-11
A81: 7 | B81: 2014-10-01 | D81: Mercks | E81: Buy | F81: 850.00 | G81: - | H81: 982.5 | I81: 1050.00 | J81: Profit of Rs.132.50/- | K81: 132.50 | L81: 15.59% | M81: Successful | N81: 2015-02-04
A82: 8 | B82: 2014-10-01 | D82: Grindwell Norton | E82: Buy | F82: 475.00 | G82: - | H82: 515 | I82: 600.00 | J82: Profit of Rs.40/- | K82: 40.00 | L82: 8.42% | M82: Successful | N82: 2014-10-27
A83: 9 | B83: 2014-10-01 | D83: Snowman Logistics | E83: Buy | F83: 86.00 | G83: - | H83: 99 | I83: 140.00 | J83: Profit of Rs.13.00/- | K83: 13.00 | L83: 15.12% | M83: Successful | N83: 2014-10-27
A84: 10 | B84: 2014-10-14 | D84: Birla Corp | E84: Buy | F84: 496.60 | G84: - | H84: 621 | I84: 580.00 | J84: Target Achieved | K84: 124.40 | L84: 25.05% | M84: Successful | N84: 2016-08-23
A85: 11 | B85: 2014-10-14 | D85: Ultratech Cem | E85: Buy | F85: 2481.90 | G85: - | H85: 2840 | I85: 2870.00 | J85: Profit of Rs.358.10/- | K85: 358.10 | L85: 14.43% | M85: Successful | N85: 2015-01-13
A86: 12 | B86: 2014-10-16 | D86: Sintex Inds | E86: Buy | F86: 84.50 | G86: - | H86: 93 | I86: 110.00 | J86: Profit of Rs.8.50/- | K86: 8.50 | L86: 10.06% | M86: Successful | N86: 2014-10-27
A87: 13 | B87: 2014-10-16 | D87: HSIL | E87: Buy | F87: 401.00 | G87: - | H87: 428 | I87: 450.00 | J87: Profit of Rs.27.00/- | K87: 27.00 | L87: 6.73% | M87: Successful | N87: 2015-01-16
A88: 14 | B88: 2014-10-16 | D88: Eveready Inds | E88: Buy | F88: 101.00 | G88: - | H88: 112 | I88: 120.00 | J88: Profit of Rs.11.00/- | K88: 11.00 | L88: 10.89% | M88: Successful | N88: 2014-10-27
A89: 15 | B89: 2014-11-11 | D89: Pennar Inds | E89: Buy | F89: 59.00 | G89: - | H89: 76 | I89: 76.00 | J89: Target Achieved | K89: 17.00 | L89: 28.81% | M89: Successful | N89: 2017-10-24
A90: 16 | B90: 2014-11-11 | D90: Snowman Logistics | E90: Buy | F90: 99.00 | G90: - | H90: 120 | I90: 120.00 | J90: Profit of Rs.21/- | K90: 21.00 | L90: 21.21% | M90: Successful | N90: 2014-11-17
A91: 17 | B91: 2014-11-13 | D91: Dharamsi Morarji Chem | E91: Buy | F91: 22.00 | G91: - | H91: 33.55 | I91: 32.00 | J91: Profit of Rs 11.55/- | K91: 11.55 | L91: 52.50% | M91: Successful | N91: 2015-07-03
A92: 18 | B92: 2014-12-03 | D92: Tatachem | E92: Buy | F92: 440.00 | G92: - | H92: 520 | I92: 520.00 | J92: Profit of Rs 80.00/- | K92: 80.00 | L92: 18.18% | M92: Successful | N92: 2015-07-23
A93: 19 | B93: 2014-12-03 | D93: Advanta | E93: Buy | F93: 360.00 | G93: - | H93: 427 | I93: 425.00 | J93: Profit of Rs.67.00/- | K93: 67.00 | L93: 18.61% | M93: Successful | N93: 2015-02-23
A94: 20 | B94: 2015-01-08 | D94: GDL | E94: Buy | F94: 360.00 | G94: - | H94: 455 | I94: 420.00 | J94: Profit of Rs.95.00/- | K94: 95.00 | L94: 26.39% | M94: Successful | N94: 2015-01-20
A95: 21 | B95: 2015-01-08 | D95: NRB Bearing | E95: Buy | F95: 130.00 | H95: 175.5 | I95: 165.00 | J95: Profit of Rs 45.50/- | K95: 45.50 | L95: 35.00% | M95: Successful | N95: 2017-12-19
A96: 22 | B96: 2015-02-05 | D96: GSFC | E96: Accu | F96: 98.00 | H96: 120 | I96: 120.00 | J96: Target Achieved | K96: 22.00 | L96: 22.45% | M96: Successful | N96: 2017-01-18
A97: 23 | B97: 2015-02-05 | D97: Sundrmfast | E97: Accu | F97: 196.00 | H97: 262 | I97: 255.00 | J97: Target Achieved | K97: 66.00 | L97: 33.67% | M97: Successful | N97: 2016-08-17
A98: 24 | B98: 2015-03-04 | D98: GPPL | E98: Accu | F98: 235 | H98: 77.00 | I98: 280-285 | J98: Loss of Rs.158/- | K98: -158.00 | L98: -67.23% | M98: Unsuccessful | N98: 2019-02-26
A99: 25 | B99: 2015-03-04 | D99: ORIENTCEM | E99: Accu | F99: 185.00 | H99: 224 | I99: 220-225 | J99: Target Achieved | K99: 39.00 | L99: 21.08% | M99: Successful | N99: 2016-10-04
A100: 26 | B100: 2015-03-27 | D100: PFS | E100: Accu | F100: 49.5 | H100: 15.85 | I100: 67.00 | J100: Loss of Rs.33.65/- | K100: -33.65 | L100: -68% | M100: Unsuccessful | N100: 2019-06-11
A101: 27 | B101: 2015-03-30 | D101: Walchandnagar Ind Ltd | E101: Accu | F101: 183.50 | H101: 219 | I101: 218.00 | J101: Profit of Rs.35.50/- | K101: 35.50 | L101: 19.35% | M101: Successful | N101: 2015-04-09
A102: 28 | B102: 2015-04-20 | D102: Kalpataru Power Transmission Ltd | E102: Accu | F102: =(227+237)/2 -> 232.00 | H102: 298 | I102: 298.00 | J102: Target Achieved | K102: 66.00 | L102: 28.45% | M102: Successful | N102: 2017-03-29
A103: 29 | B103: 2015-05-04 | D103: Mastek Ltd | E103: Buy | F103: 385.00 | H103: =212.5+331 -> 543.5 | I103: 510.00 | J103: Profit of Rs 158.50/- | K103: 158.50 | L103: 41.17% | M103: Successful | N103: 2015-08-19
A104: 30 | B104: 2015-05-04 | D104: Suprajit Eng | E104: Buy | F104: 115.50 | H104: 146 | I104: 142.00 | J104: Profit of Rs 30.50/- | K104: 30.50 | L104: 26.41% | M104: Successful | N104: 2015-07-17
A105: 31 | B105: 2015-05-27 | D105: TCI | E105: Buy | F105: 237.50 | H105: 279.5 | I105: 278.00 | J105: Target Achieved | K105: 42.00 | L105: 17.68% | M105: Successful | N105: 2015-08-06
A106: 32 | B106: 2015-06-19 | D106: HSIL | E106: Accu | F106: 340.00 | H106: 448 | I106: 448.00 | J106: Target Achieved | K106: 108.00 | L106: 31.76% | M106: Successful | N106: 2017-10-10
A107: 33 | B107: 2015-07-06 | D107: Capital First | E107: Accu | F107: 390.00 | H107: 460 | I107: 460.00 | J107: Target Achieved | K107: 70.00 | L107: 17.95% | M107: Successful | N107: 2016-04-18
A108: 34 | B108: 2015-07-10 | D108: Dolphin OffShore | E108: Accu | F108: 122.5 | H108: 61.00 | I108: 172.00 | J108: Loss of Rs.61.50/- | K108: -61.50 | L108: -50.20% | M108: Unsuccessful | N108: 2018-08-21
A109: 35 | B109: 2015-08-03 | D109: Allcargo logistics | E109: Accu | F109: 297.50 | H109: 350 | I109: 360.00 | J109: Profit of Rs 52.50/- | K109: 52.50 | L109: 17.65% | M109: Successful | N109: 2015-08-16
A110: 36 | B110: 2015-08-03 | D110: Camline Fine | E110: Accu | F110: 115.50 | H110: 149 | I110: 140.00 | J110: Profit of Rs 33.50/- | K110: 33.50 | L110: 29.00% | M110: Successful | N110: 2017-01-05
A111: 37 | B111: 2015-09-04 | D111: TCI | E111: Accu | F111: 226.00 | H111: 292 | I111: 292.00 | J111: Target Achieved | K111: 66.00 | L111: 29.20% | M111: Successful | N111: 2015-10-09
A112: 38 | B112: 2015-09-07 | D112: Kalpataru Power Transmission Ltd | E112: Accu | F112: 232.50 | H112: 312.5 | I112: 310.00 | J112: Target Achieved | K112: 80.00 | L112: 34.41% | M112: Successful | N112: 2017-03-29
A113: 39 | B113: 2015-09-21 | D113: LLOYD ELECTRIC & ENG LTD | E113: Accu | F113: 196.50 | H113: 238 | I113: 238.00 | J113: Target Achieved | K113: 41.50 | L113: 21.12% | M113: Successful | N113: 2015-10-14
A114: 40 | B114: 2015-09-24 | D114: L&T Finance Holding | E114: Accu | F114: 65.00 | H114: 82 | I114: 82.00 | J114: Target Achieved | K114: 17.00 | L114: 26.15% | M114: Successful | N114: 2016-07-27
A115: 41 | B115: 2015-10-14 | D115: KEC International ltd | E115: Accu | F115: 144.00 | H115: 182.5 | I115: 181.00 | J115: Target Achieved | K115: 38.50 | L115: 26.74% | M115: Successful | N115: 2017-03-23
A116: 42 | B116: 2015-10-14 | D116: Gruh Finance | E116: Accu | F116: 264.00 | H116: 311 | I116: 311.00 | J116: Target Achieved | K116: 47.00 | L116: 17.80% | M116: Successful | N116: 2016-08-22
A117: 43 | B117: 2015-11-10 | D117: Pidilitind | E117: Buy | F117: 549.50 | H117: 630 | I117: 630.00 | J117: Target Achieved | K117: 80.50 | L117: 14.65% | M117: Successful | N117: 2016-02-19
A118: 44 | B118: 2015-12-04 | D118: Zensar Technology | E118: Accu | F118: 1027.50 | H118: 1315 | I118: 1250.00 | J118: Target Achieved | K118: 287.50 | L118: 27.98% | M118: Successful | N118: 2018-05-24
A119: 45 | B119: 2015-12-29 | D119: Vinati Organics Ltd | E119: Accu | F119: 465.00 | H119: 540 | I119: 540.00 | J119: Target Achieved | K119: 75.00 | L119: 16.13% | M119: Successful | N119: 2016-06-09
A120: 46 | B120: 2016-01-11 | D120: GSFC | E120: Buy | F120: 81.00 | H120: 110 | I120: 110.00 | J120: Target Achieved | K120: 29.00 | L120: 35.80% | M120: Successful | N120: 2017-01-10
A121: 47 | B121: 2016-01-13 | D121: SSWL | E121: Buy | F121: 417.50 | H121: 547 | I121: 535.00 | J121: Target Achieved | K121: 129.50 | L121: 31.02% | M121: Successful | N121: 2016-07-27
A122: 48 | B122: 2016-02-08 | D122: Persistent System Ltd | E122: Accu | F122: 650.00 | H122: 800 | I122: 800.00 | J122: Target Achieved | K122: 150.00 | L122: 23.08% | M122: Successful | N122: 2018-02-23
A123: 49 | B123: 2016-03-04 | D123: UPL | E123: Accu | F123: 437.50 | H123: 504.5 | I123: 522.00 | J123: Profit of Rs.67/- | K123: 67.00 | L123: 15.31% | M123: Successful | N123: 2016-04-20
A124: 50 | B124: 2016-03-09 | D124: Ashoka Buildcon Ltd | E124: Accu | F124: 189.50 | H124: 218 | I124: 218.00 | J124: Target Achieved | K124: 28.50 | L124: 15.04% | M124: Successful | N124: 2017-10-26
A125: 51 | B125: 2016-04-11 | D125: PTC INDIA FIN SERV LTD | E125: Accu | F125: 36.5 | H125: 15.85 | I125: 60.00 | J125: Loss of Rs.20.65/- | K125: -20.65 | L125: -56.58% | M125: Unsuccessful | N125: 2019-06-11
A126: 52 | B126: 2016-04-12 | D126: CAMLINFINE $ | E126: Accu | F126: 93.00 | H126: 149 | I126: 140.00 | J126: Profit of Rs 56/- | K126: 56.00 | L126: 60.22% | M126: Successful | N126: 2017-01-05
A127: 53 | B127: 2016-04-12 | D127: Greaves Cotton Ltd. | E127: Accu | F127: 130.00 | H127: 150 | I127: 150-155 | J127: Target Achieved | K127: 20.00 | L127: 15.38% | M127: Successful | N127: 2016-07-13
A128: 54 | B128: 2016-04-13 | D128: DHFL | E128: Accu | F128: 196.00 | H128: 299 | I128: 299.00 | J128: Target Achieved | K128: 103.00 | L128: 52.55% | M128: Successful | N128: 2016-09-07
A129: 55 | B129: 2016-04-13 | D129: Magma | E129: Accu | F129: 88.00 | H129: 103 | I129: 103.00 | J129: Target Achieved | K129: 15.00 | L129: 17.05% | M129: Successful | N129: 2016-06-09
A130: 56 | B130: 2016-05-02 | D130: KEC International ltd $ | E130: Accu | F130: 127.50 | H130: 148 | I130: 148-150 | J130: Target Achieved | K130: =H130-F130 -> 20.50 | L130: =K130/F130 -> 16.08% | M130: Successful | N130: 2016-07-13
A131: 57 | B131: 2016-05-03 | D131: Mindtree | E131: Accu | F131: 675.00 | H131: 815 | I131: 790-800 | J131: Target Achieved | K131: 140.00 | L131: 20.74% | M131: Successful | N131: 2018-02-23
A132: 58 | B132: 2016-06-01 | D132: Atulauto | E132: Accu | F132: 500 | H132: 232.50 | I132: 565-570 | J132: Loss of Rs.267.50 /- | K132: -267.50 | L132: -53.50% | M132: Unsuccessful | N132: 2019-09-27
A133: 59 | B133: 2016-06-06 | D133: TRITURBINE | E133: Accu | F133: 110.00 | H133: 126.5 | I133: 125.00 | J133: Profit of Rs.16.50/- | K133: 16.50 | L133: 15.00% | M133: Successful | N133: 2016-07-01
A134: 60 | B134: 2016-06-17 | D134: Pennar Industries Ltd | E134: Accu | F134: 44.00 | H134: 69.5 | I134: 69.50 | J134: Profit of Rs.25.50/- | K134: 25.50 | L134: 57.95% | M134: Successful | N134: 2017-08-30
A135: 61 | B135: 2016-06-28 | D135: EVEREADY | E135: Accu | F135: 262.50 | H135: 340 | I135: 333.00 | J135: Profit of Rs.77.50/- | K135: 77.50 | L135: 29.52% | M135: Successful | N135: 2017-10-09
A136: 62 | B136: 2016-06-28 | D136: FIEMIND | E136: Accu | F136: 840.00 | H136: 1230 | I136: 1230.00 | J136: Target Achieved | K136: 390.00 | L136: 46.43% | M136: Successful | N136: 2016-10-06
A137: 63 | B137: 2016-07-05 | D137: Bajaj Corp Ltd | E137: Accu | F137: 395 | H137: =(468.5+342.5)/2 -> 405.50 | I137: 510.00 | J137: Profit of Rs.10.50/- | K137: =H137-F137 -> 10.50 | L137: =K137/F137 -> 3% | M137: Neutral | N137: 2019-05-21
A138: 64 | B138: 2016-08-02 | D138: GPPL $ | E138: Buy | F138: =169.5-12.8 -> 156.7 | H138: 77.00 | I138: 198-200 | J138: Loss of Rs.79.7/- | K138: -79.70 | L138: -50.86% | M138: Unsuccessful | N138: 2019-02-26
A139: 65 | B139: 2016-08-04 | D139: WONDERLA HOLIDAYS LTD | E139: Accu | F139: 400 | H139: 305.00 | I139: 475.00 | J139: Loss of Rs.95/- | K139: -95.00 | L139: -23.75% | M139: Unsuccessful | N139: 2019-05-21
A140: 66 | B140: 2016-08-11 | D140: CAMLINFINE | E140: Accu | F140: 86.50 | H140: 130 | I140: 130.00 | J140: Profit of Rs.43.50/- | K140: 43.50 | L140: 50.29% | M140: Successful | N140: 2017-12-22
A141: 67 | B141: 2016-08-18 | D141: GRANULES | E141: Accu | F141: 133.5 | H141: 126.50 | I141: 178.00 | J141: Exit | K141: -7.00 | L141: -5.24% | M141: Unsuccessful | N141: 2016-09-02
A142: 68 | B142: 2016-08-31 | D142: VA TECH WABAG | E142: Accu | F142: 560.00 | H142: 725 | I142: 725.00 | J142: Target Achieved | K142: 165.00 | L142: 29.46% | M142: Successful | N142: 2016-03-27
A143: 69 | B143: 2016-09-01 | D143: SKIPPER LIMITED | E143: Accu | F143: 160.50 | H143: 210 | I143: 210.00 | J143: Target Achieved | K143: 49.50 | L143: 30.84% | M143: Successful | N143: 2017-05-16
A144: 70 | B144: 2016-10-03 | D144: IFBIND | E144: Accu | F144: 430.00 | H144: 596 | I144: 575.00 | J144: Profit of Rs.166/- | K144: 166.00 | L144: 38.60% | M144: Successful | N144: 2017-02-03
A145: 71 | B145: 2016-10-14 | D145: ASIANTILES | E145: Accu | F145: 280.00 | H145: 345 | I145: 345.00 | J145: Target Achieved | K145: =H145-F145 -> 65.00 | L145: =K145/F145 -> 23.21% | M145: Successful | N145: 2017-03-20
A146: 72 | B146: 2016-10-14 | D146: DEEPIND | E146: Accu | F146: 245.00 | H146: 325.5 | I146: 330.00 | J146: Profit of Rs.80.5/- | K146: 80.50 | L146: 32.86% | M146: Successful | N146: 2017-02-03
A147: 73 | B147: 2016-10-17 | D147: DCBBANK | E147: Accu | F147: 125.00 | H147: 160 | I147: 160.00 | J147: Target Achieved | K147: 35.00 | L147: 28.00% | M147: Successful | N147: 2017-03-09
A148: 74 | B148: 2016-10-17 | D148: ORIENTREF | E148: Accu | F148: 114.00 | H148: 145 | I148: 145.00 | J148: Target Achieved | K148: 31.00 | L148: =K148/F148 -> 27.19% | M148: Successful | N148: 2017-05-04
A149: 75 | B149: 2016-10-17 | D149: GANECOS | E149: Accu | F149: 212.00 | H149: 280 | I149: 276.00 | J149: Profit of Rs.68/- | K149: 68.00 | L149: 32.08% | M149: Successful | N149: 2017-05-03
A150: 76 | B150: 2016-11-04 | D150: NBCC | E150: Accu | F150: 155.00 | H150: 210 | I150: 210.00 | J150: Profit of Rs.55/- | K150: 55.00 | L150: 35.48% | M150: Successful | N150: 2017-07-28
A151: 77 | B151: 2016-12-06 | D151: PRECAM | E151: Accu | F151: 150.5 | H151: 72.50 | I151: 174.00 | J151: Loss of Rs.78/- | K151: -78.00 | L151: -51.83% | M151: Unsuccessful | N151: 2018-08-21
A152: 78 | B152: 2016-12-08 | D152: INFRATEL | E152: Accu | F152: 380.00 | H152: 478 | I152: 468.00 | J152: Target Achieved | K152: =H152-F152 -> 98.00 | L152: =K152/F152 -> 25.79% | M152: Successful | N152: 2017-10-17
A153: 79 | B153: 2016-12-30 | D153: GODREJPROP | E153: Accu | F153: 305.00 | H153: 375 | I153: 375.00 | J153: Target Achieved | K153: 70.00 | L153: 22.95% | M153: Successful | N153: 2017-02-02
A154: 80 | B154: 2017-01-04 | D154: DEEPAKNTR | E154: Accu | F154: 99.50 | H154: 158 | I154: 158.00 | J154: Target Achieved | K154: 58.50 | L154: 58.79% | M154: Successful | N154: 2017-06-12
A155: 81 | B155: 2017-01-04 | D155: DEEPAKNTR | E155: Accu | F155: 99.50 | H155: 158 | I155: 158.00 | J155: Target Achieved | K155: 58.50 | L155: 58.79% | M155: Successful | N155: 2017-06-12
A156: 82 | B156: 2017-02-20 | D156: RECLTD | E156: Accu | F156: 140.50 | H156: 220 | I156: 220.00 | J156: Target Achieved | K156: =H156-F156 -> 79.50 | L156: =K156/F156 -> 56.58% | M156: Successful | N156: 2017-05-09
A157: 83 | B157: 2017-02-20 | D157: SUBROS | E157: Accu | F157: 202.50 | H157: 234 | I157: 234.00 | J157: Target Achieved | K157: 31.50 | L157: 15.56% | M157: Successful | N157: 2017-04-11
A158: 84 | B158: 2017-03-24 | D158: VRLLOG | E158: Accu | F158: 300.50 | H158: 417.5 | I158: 420.00 | J158: Profit of Rs.117/- | K158: =H158-F158 -> 117.00 | L158: =K158/F158 -> 38.94% | M158: Successful | N158: 2017-12-01
A159: 85 | B159: 2017-03-24 | D159: FIEMIND | E159: Accu | F159: 850.00 | H159: 1042.5 | I159: 1023.00 | J159: Profit of Rs 192.50/- | K159: 192.50 | L159: 22.65% | M159: Successful | N159: 2017-04-05
A160: 86 | B160: 2017-04-05 | D160: RATNAMANI | E160: Accu | F160: 785.00 | H160: 930 | I160: 920.00 | J160: Profit of Rs.145/- | K160: =H160-F160 -> 145.00 | L160: =K160/F160 -> 18.47% | M160: Successful | N160: 2017-08-29
A161: 87 | B161: 2017-04-06 | D161: ZEEMEDIA | E161: Accu | F161: 40 | H161: 13.10 | I161: 60.00 | J161: Loss of Rs.26.9/- | K161: -26.90 | L161: -67.25% | M161: Unsuccessful | N161: 2018-02-07
A162: 88 | B162: 2017-04-12 | D162: DABUR | E162: Accu | F162: 289.50 | H162: 354 | I162: 360.00 | J162: Profit of Rs.64.5/- | K162: =H162-F162 -> 64.50 | L162: =K162/F162 -> 22.28% | M162: Successful | N162: 2017-11-01
A163: 89 | B163: 2017-04-20 | D163: KPRMILL | E163: Accu | F163: 700.00 | H163: 840 | I163: 840.00 | J163: Profit of Rs.140/- | K163: 140.00 | L163: 20.00% | M163: Successful | N163: 2017-06-07
A164: 90 | B164: 2017-06-01 | D164: ESSELPACK | E164: Accu | F164: 130.00 | H164: 144.25 | I164: 170.00 | J164: Profit of Rs.14.25/- | K164: 14.25 | L164: 10.96% | M164: Successful | N164: 2019-07-29
A165: 91 | B165: 2017-06-15 | D165: KEI | E165: Accu | F165: 214.50 | H165: 262 | I165: 262.00 | J165: Profit of Rs.47.5/- | K165: 47.50 | L165: 22.14% | M165: Successful | N165: 2017-08-30
A166: 92 | B166: 2017-07-17 | D166: MAYURUNIQ | E166: Accu | F166: 370.00 | H166: 447.5 | I166: 450.00 | J166: Target Achieved | K166: 77.50 | L166: 20.95% | M166: Successful | N166: 2017-10-27
A167: 93 | B167: 2017-07-27 | D167: RAMCOCEM | E167: Accu | F167: 657.50 | H167: 825 | I167: 820.00 | J167: Target Achieved | K167: 167.50 | L167: 25.48% | M167: Successful | N167: 2017-12-21
A168: 94 | B168: 2017-08-17 | D168: FINPIPE | E168: Accu | F168: 605.00 | H168: 750 | I168: 750.00 | J168: Profit of Rs.145/- | K168: 145.00 | L168: 23.97% | M168: Successful | N168: 2017-10-19
A169: 95 | B169: 2017-09-01 | D169: SHK | E169: Accu | F169: 255 | H169: 217.25 | I169: 320.00 | J169: Loss of Rs.37.75/- | K169: -37.75 | L169: -15% | M169: Unsuccessful | N169: 2019-07-15
A170: 96 | B170: 2017-09-19 | D170: SKIPPER | E170: Accu | F170: 215.00 | H170: 258 | I170: 258.00 | J170: Target Achieved | K170: 43.00 | L170: 20.00% | M170: Successful | N170: 2017-11-01
A171: 97 | B171: 2017-09-19 | D171: SKIPPER | E171: Accu | F171: 215.00 | H171: 258 | I171: 258.00 | J171: Target Achieved | K171: 43.00 | L171: 20.00% | M171: Successful | N171: 2017-11-01
A172: 98 | B172: 2017-09-20 | D172: CAMLINFINE$ | E172: Accu | F172: 75.00 | H172: 90 | I172: 90.00 | J172: Profit of Rs.15.00/- | K172: =H172-F172 -> 15.00 | L172: =K172/F172 -> 20.00% | M172: Successful | N172: 2017-10-11
A173: 99 | B173: 2017-10-03 | D173: GNA | E173: Accu | F173: 315.00 | H173: 392 | I173: 384.00 | J173: Profit of Rs.77/- | K173: 77.00 | L173: 24.44% | M173: Successful | N173: 2017-10-09
A174: 100 | B174: 2017-10-05 | D174: NOCIL | E174: Accu | F174: 145.00 | H174: 179 | I174: 180.00 | J174: Profit of Rs.34/- | K174: 34.00 | L174: 23.45% | M174: Successful | N174: 2017-10-17
A175: 101 | B175: 2017-10-06 | D175: CENTURYPLY | E175: Accu | F175: 256.00 | H175: 323 | I175: 320.00 | J175: Target Achieved | K175: 67.00 | L175: 26.17% | M175: Successful | N175: 2017-11-28
A176: 102 | B176: 2017-10-09 | D176: EIHOTEL | E176: Accu | F176: 137.50 | H176: 184 | I176: 183.00 | J176: Profit of Rs.46.5/- | K176: 46.50 | L176: 33.82% | M176: Successful | N176: 2018-01-08
A177: 103 | B177: 2017-10-10 | D177: NRBBEARING | E177: Accu | F177: 125.50 | H177: 158 | I177: 155.00 | J177: Profit of Rs.32.5/- | K177: 32.50 | L177: 25.90% | M177: Successful | N177: 2017-11-28
A178: 104 | B178: 2017-10-10 | D178: BOROSIL | E178: Accu | F178: 895.00 | H178: 1122.5 | I178: 1078.00 | J178: Profit of Rs.227.5/- | K178: 227.50 | L178: 25.42% | M178: Successful | N178: 2018-01-17
A179: 105 | B179: 2017-10-12 | D179: CYIENT | E179: Accu | F179: 525.00 | H179: 629 | I179: 629.00 | J179: Target Achieved | K179: 104.00 | L179: 19.81% | M179: Successful | N179: 2018-01-19
A180: 106 | B180: 2017-11-07 | D180: HATSUN | E180: Accu | F180: 740.00 | H180: 892.5 | I180: 900.00 | J180: Profit of Rs.152.5/- | K180: =H180-F180 -> 152.50 | L180: =K180/F180 -> 20.61% | M180: Successful | N180: 2017-11-13
A181: 107 | B181: 2017-12-04 | D181: SANGHIIND | E181: Accu | F181: 118.50 | H181: 143.5 | I181: 145.00 | J181: Profit of Rs.25/- | K181: 25.00 | L181: 21.10% | M181: Successful | N181: 2017-12-28
A182: 108 | B182: 2017-12-21 | D182: KAJARIACER | E182: Accu | F182: 715 | H182: 500.00 | I182: 872.00 | J182: Loss of Rs.215/- | K182: -215.00 | L182: -30.07% | M182: Unsuccessful | N182: 2019-07-24
A183: 109 | B183: 2017-12-29 | D183: GNA | E183: Accu | F183: 435.00 | H183: 542.5 | I183: 539.00 | J183: Target Achieved | K183: 107.50 | L183: 24.71% | M183: Successful | N183: 2018-04-16
A184: 110 | B184: 2017-12-29 | D184: ZENSARTECH | E184: Accu | F184: 885.00 | H184: 1090 | I184: 1084.00 | J184: Target Achieved | K184: 205.00 | L184: 23.16% | M184: Successful | N184: 2018-04-23
A185: 111 | B185: 2018-04-02 | D185: EVERESTIND | E185: Accu | F185: 478.50 | H185: 442 | I185: 613.00 | J185: Loss of Rs.36.50 /- | K185: =H185-F185 -> -36.50 | L185: =K185/F185 -> -7.63% | M185: Unsuccessful | N185: 2019-10-24
A186: 112 | B186: 2018-04-04 | D186: GPPL$ | E186: Accu | F186: =141.5-7.3 -> 134.2 | H186: 77.00 | I186: 180.00 | J186: Loss of Rs.57.2/- | K186: -57.20 | L186: -42.62% | M186: Unsuccessful | N186: 2019-02-26
A187: 113 | B187: 2018-04-19 | D187: MANPASAND | E187: Accu | F187: 430 | H187: 220.00 | I187: 537.00 | J187: Loss of Rs.210/- | K187: -210.00 | L187: -48.84% | M187: Unsuccessful | N187: 2018-06-01
A188: 114 | B188: 2018-04-30 | D188: HEIDELBERG | E188: Accu | F188: 153.5 | H188: 196 | I188: 196.00 | J188: Profit of Rs.42.50/- | K188: 42.50 | L188: 27.69% | M188: Successful | N188: 2019-05-20
A189: 115 | B189: 2018-07-25 | D189: ZEEMEDIA | E189: Accu | F189: 27.5 | H189: 13.10 | I189: 60.00 | J189: Loss of Rs.14.40/- | K189: -14.40 | L189: -52.36% | M189: Unsuccessful | N189: 2018-02-07
A190: 116 | B190: 2018-08-06 | D190: GABRIEL | E190: Accu | F190: 148.5 | H190: 102 | I190: 182.00 | J190: Loss of Rs.46.50/- | K190: =H190-F190 -> -46.50 | L190: =K190/F190 -> -31.31% | M190: Unsuccessful | N190: 2019-07-15
A191: 117 | B191: 2018-08-23 | D191: INDIANHUME | E191: Accu | F191: 285 | H191: 355 | I191: 364.00 | J191: Profit of Rs.70/- | K191: 70.00 | L191: 24.56% | M191: Successful | N191: 2018-12-21
A192: 118 | B192: 2018-08-29 | D192: GRINDWELL | E192: Accu | F192: 525 | H192: 585 | I192: 635.00 | J192: Profit of Rs.60- | K192: =H192-F192 -> 60.00 | L192: =K192/F192 -> 11.43% | M192: Successful | N192: 2019-07-16
A193: 119 | B193: 2018-10-22 | D193: FINPIPE | E193: Accu | F193: 475 | H193: 574 | I193: 570.00 | J193: Target Achieved | K193: 99.00 | L193: 20.84% | M193: Successful | N193: 2018-10-30
A194: 120 | B194: 2018-10-24 | D194: GULFOILLUB | E194: Accu | F194: 707.5 | H194: 872 | I194: 872.00 | J194: Target Achieved | K194: 164.50 | L194: 23.25% | M194: Successful | N194: 2019-01-17
A195: 121 | B195: 2018-10-25 | D195: DBCORP | E195: Accu | F195: 162 | H195: 204 | I195: 209.00 | J195: Profit of Rs.42/- | K195: 42.00 | L195: 25.93% | M195: Successful | N195: 2019-03-15
A196: 122 | B196: 2018-10-26 | D196: RITES | E196: Accu | F196: 240 | H196: 297 | I196: 297.00 | J196: Target Achieved | K196: 57.00 | L196: 23.75% | M196: Successful | N196: 2018-11-13
A197: 123 | B197: 2018-12-05 | D197: BRIGADE | E197: Accu | F197: 202.5 | H197: 255 | I197: 252.00 | J197: Target Achieved | K197: 52.50 | L197: 25.93% | M197: Successful | N197: 2019-03-18 | R197: V
A198: 124 | B198: 2018-12-31 | D198: JKCEMENT | E198: Accu | F198: 710 | H198: 866 | I198: 866.00 | J198: Target Achieved | K198: 156.00 | L198: 21.97% | M198: Successful | N198: 2019-03-29 | R198: V
A199: 125 | B199: 2019-02-26 | D199: MARICO | E199: Accu | F199: 337.25 | H199: 398.5 | I199: 411.00 | J199: Profit of Rs.61.25/- | K199: 61.25 | L199: 18.16% | M199: Successful | N199: 2019-10-22 | R199: V
A200: 126 | B200: 2019-04-04 | D200: ITDCEM | E200: Accu | F200: 130 | H200: 65 | I200: 158.00 | J200: Loss of Rs.65 /- | K200: -65.00 | L200: -50.00% | M200: Unsuccessful | N200: 2019-09-18 | R200: K
A201: 127 | B201: 2017-10-09 | D201: RECLTD | E201: Accu | F201: 141.5 | H201: 183.5 | I201: 210.00 | J201: Profit of Rs.42/- | K201: 42.00 | L201: 29.68% | M201: Successful | N201: 2017-11-03 | R201: K
A202: 128 | B202: 2017-12-05 | D202: ALLCARGO | E202: Accu | F202: 172.00 | H202: 155.25 | I202: 230.00 | J202: Loss of Rs.16.75/- | K202: -16.75 | L202: -9.74% | M202: Unsuccessful | N202: 2019-11-18 | R202: K
A203: 129 | B203: 2018-10-25 | D203: GODREJCP | E203: Accu | F203: 698.5 | H203: 890 | I203: 890.00 | J203: Profit of Rs.191.50/- | K203: 191.50 | L203: 27.42% | M203: Successful | N203: 2021-05-12 | R203: V
A204: 130 | B204: 2017-05-22 | D204: GREAVESCOT | E204: Accu | F204: 127.6 | H204: 138 | I204: 190.00 | J204: Profit of Rs.10.40 | K204: 10.40 | L204: 8.15% | M204: Successful | N204: 2019-11-05 | R204: K
A205: 131 | B205: 2018-02-27 | D205: MOLDTKPAC | E205: Accu | F205: 317 | H205: 382.5 | I205: 398.00 | J205: Profit of Rs.65.5 | K205: 65.50 | L205: 20.66% | M205: Successful | N205: 2021-02-11 | R205: K
A206: 132 | B206: 2018-03-05 | D206: LICHSGFIN | E206: Accu | F206: =510-14.4 -> 495.60 | H206: 350 | I206: 672.00 | J206: Loss of Rs.145.60/- | K206: -145.60 | L206: -29.38% | M206: Unsuccessful | N206: 2020-02-26 | R206: V
A207: 133 | B207: 2018-05-17 | D207: PHILIPCARB | E207: Accu | F207: 230.30 | H207: 102.5 | I207: 348.00 | J207: Loss of Rs.127.80/- | K207: -127.80 | L207: -55.49% | M207: Unsuccessful | N207: 2020-03-06 | R207: V
A208: 134 | B208: 2018-06-07 | D208: KEC | E208: Accu | F208: =342.5-5.1 -> 337.4 | H208: 412.5 | I208: 439.00 | J208: Profit of Rs.75.10 | K208: 75.10 | L208: 22.26% | M208: Successful | N208: 2021-02-03 | R208: K
A209: 135 | B209: 2018-07-04 | D209: ASHOKLEY | E209: Accu | F209: =127.5-5.53 -> 121.97 | H209: 122.50 | I209: 170.00 | J209: Profit of Rs.0.53/- | K209: 0.53 | L209: 0% | M209: Neutral | N209: 2021-08-23 | R209: V
A210: 136 | B210: 2018-07-13 | D210: FCONSUMER | E210: Accu | F210: 46.50 | H210: 17 | I210: 59.00 | J210: Loss of Rs.29.50/- | K210: -29.50 | L210: -63.44% | M210: Unsuccessful | N210: 2020-02-26 | R210: V
A211: 137 | B211: 2018-10-23 | D211: JKPAPER | E211: Accu | F211: 156.5 | H211: 207.5 | I211: 191.00 | J211: Target Achieved | K211: 51.00 | L211: 32.59% | M211: Successful | N211: 2021-06-22 | R211: V
A212: 138 | B212: 2018-12-05 | D212: CCL | E212: Accu | F212: 259.5 | H212: 320 | I212: 320.00 | J212: Target Achieved | K212: 60.50 | L212: 23.31% | M212: Successful | N212: 2021-05-07 | R212: V
A213: 139 | B213: 2018-12-05 | D213: VARROC | E213: Accu | F213: 715 | H213: 445 | I213: 840.00 | J213: Loss of Rs.270/- | K213: -270.00 | L213: -37.76% | M213: Unsuccessful | N213: 2019-12-01 | R213: V
A214: 140 | B214: 2019-01-04 | D214: MGL | E214: Accu | F214: 875 | H214: 1165 | I214: 1185.00 | J214: Profit of Rs.290/- | K214: 290.00 | L214: 33.14% | M214: Successful | N214: 2020-01-17 | R214: V
A215: 141 | B215: 2019-04-04 | D215: COCHINSHIP | E215: Accu | F215: =387-14.63 -> 372.37 | H215: 490 | I215: 490.00 | J215: Target Achieved | K215: 117.63 | L215: 31.59% | M215: Successful | N215: 2020-01-20 | R215: V
A216: 142 | B216: 2019-04-23 | D216: MAHINDCIE | E216: Buy | F216: 220 | H216: 127.5 | I216: 284.00 | J216: Loss of Rs.92.50/- | K216: -92.50 | L216: -42.05% | M216: Unsuccessful | N216: 2020-03-06 | R216: V
A217: 143 | B217: 2019-06-06 | D217: RADICO | E217: Buy | F217: 332.8 | H217: 405 | I217: 419.00 | J217: Profit of Rs.72.20/- | K217: 72.20 | L217: 21.69% | M217: Successful | N217: 2020-01-30 | R217: K
A218: 144 | B218: 2019-06-25 | D218: M&MFIN | E218: Accu | F218: 386 | H218: 395.00 | I218: 452.00 | J218: Profit of Rs.9/- | K218: 9.00 | L218: 2% | M218: Neutral | N218: 2020-02-07 | R218: K
A219: 145 | B219: 2019-08-30 | D219: INDHOTEL | E219: Accu | F219: 137.5 | H219: 138.50 | I219: 190.00 | J219: Profit of Rs.1/- | K219: 1.00 | L219: 1% | M219: Neutral | N219: 2021-08-24 | R219: V
A220: 146 | B220: 2019-09-23 | D220: KNRCON | E220: Accu | F220: 235 | H220: 295 | I220: 296.00 | J220: Profit of Rs.60/- | K220: 60.00 | L220: 25.53% | M220: Successful | N220: 2020-01-14 | R220: K
A221: 147 | B221: 2019-10-14 | D221: KEC$ | E221: Accu | F221: 277.5 | H221: 333 | I221: 333.00 | J221: Profit of Rs.55.50/- | K221: 55.50 | L221: 20.00% | M221: Successful | N221: 2020-01-16 | R221: V
A222: 148 | B222: 2019-10-14 | D222: MGL$ | E222: Accu | F222: 930 | H222: 1165 | I222: 1200.00 | J222: Profit of Rs.235/- | K222: 235.00 | L222: 25.27% | M222: Successful | N222: 2020-01-17 | R222: K
A223: 149 | B223: 2019-10-15 | D223: JKPAPER$ | E223: Accu | F223: 111.00 | H223: 141 | I223: 141.00 | J223: Profit of Rs.30/- | K223: 30.00 | L223: 27.03% | M223: Successful | N223: 2021-05-12 | R223: K
A224: 150 | B224: 2019-10-15 | D224: RADICO$ | E224: Accu | F224: 296.00 | H224: 370 | I224: 370.00 | J224: Target Achieved | K224: 74.00 | L224: 25.00% | M224: Successful | N224: 2020-01-23 | R224: K
A225: 151 | B225: 2019-10-16 | D225: MOLDTKPAC$ | E225: Accu | F225: 300.00 | H225: 382.5 | I225: 344.00 | J225: Profit of Rs.82.5/- | K225: 82.50 | L225: 27.50% | M225: Successful | N225: 2021-02-11 | R225: K
A226: 152 | B226: 2020-01-02 | D226: PSPPROJECT | E226: Accu | F226: 495.00 | H226: 595 | I226: 590.00 | J226: Profit of Rs.100/- | K226: 100.00 | L226: 20.20% | M226: Successful | N226: 2022-01-28 | R226: K
A227: 153 | B227: 2020-05-15 | D227: BEL | E227: Accu | F227: 67.50 | H227: 86 | I227: 86.00 | J227: Profit of Rs.18.50/- | K227: 18.50 | L227: 27.41% | M227: Successful | N227: 2020-06-26 | R227: K
A228: 154 | B228: 2020-07-23 | D228: RITES | E228: Accu | F228: 231.00 | H228: 281 | I228: 281.00 | J228: Target Achieved | K228: 50.00 | L228: 21.65% | M228: Successful | N228: 2021-06-11 | R228: K
A229: 155 | B229: 2020-09-18 | D229: IEX | E229: Accu | F229: 206 | H229: 248 | I229: 248.00 | J229: Target Achieved | K229: 42.00 | L229: 20.39% | M229: Successful | N229: 2021-01-18 | R229: K
A230: 156 | B230: 2020-11-05 | D230: IEX | E230: Accu | F230: 182.5 | H230: 248 | I230: 248.00 | J230: Target Achieved | K230: 65.50 | L230: 35.89% | M230: Successful | N230: 2021-01-18 | R230: K
A231: 157 | B231: 2020-11-05 | D231: CCL | E231: Accu | F231: 247.5 | H231: 320 | I231: 320.00 | J231: Target Achieved | K231: 72.50 | L231: 29.29% | M231: Successful | N231: 2021-05-07 | R231: K
A232: 158 | B232: 2020-11-05 | D232: POLYCAB | E232: Accu | F232: 925.00 | H232: 1095 | I232: 1093.00 | J232: Profit of Rs.170/- | K232: 170.00 | L232: 18.38% | M232: Successful | N232: 2021-01-05 | R232: K
A233: 159 | B233: 2020-11-05 | D233: COCHINSHIP | E233: Accu | F233: 332.50 | H233: 393 | I233: 406.00 | J233: Profit of Rs.60.50/- | K233: 60.50 | L233: 18.20% | M233: Successful | N233: 2021-03-01 | R233: K
... 35 more rows
